Workbook

Sheet W0IYH
A1: Calculate impedance of ferrite cored inductor
A3: Reference:
A4: A method for estimating the impedance of a ferrite cored toroidal inductor at RF
A6: Inputs:
A7: Al (nH for 1t) | B7: =100*1450 -> 145000 | D7: 2643540102 | F7: FB-43-5622
A8: N | B8: 1
A9: Cs (pF) | B9: 9
A11: Constants:
A12: Mix | B12: =Mix!B1 -> #43
A13: µi | B13: =Mix!B2 -> 800
A15: Calculated values:
A16: 2*pi*N^2*Al | B16: =2*PI()*$B$8^2*$B$7*0.000000001 -> 0.0009110618695
A18: f (MHz) | B18: 1 | C18: 1.2 | D18: 1.8 | E18: 2 | F18: 2.5 | G18: 3 | H18: 3.7 | I18: 4 | J18: 4.5 | K18: 5 | L18: 5.5 | M18: 6 | N18: 7.1 | O18: =N18+1 -> 8.1 | P18: 9.1 | Q18: 10.1 | R18: 11.1 | S18: 12.1 | T18: 13.1 | U18: 14.1 | V18: 15.1 | W18: 16.1 | X18: 17.1 | Y18: 18.1 | Z18: 19.1 | AA18: 22 | AB18: 24 | AC18: 26 | AD18: 28 | AE18: 30
A19: µ'' | B19: =csinterpolate(CSTableU2,W0IYH!B18*1000000) -> 48 | C19: =csinterpolate(CSTableU2,W0IYH!C18*1000000) -> 66.34728052 | D19: =csinterpolate(CSTableU2,W0IYH!D18*1000000) -> 177.1684779 | E19: =csinterpolate(CSTableU2,W0IYH!E18*1000000) -> 223.7827102 | F19: =csinterpolate(CSTableU2,W0IYH!F18*1000000) -> 322.9930506 | G19: =csinterpolate(CSTableU2,W0IYH!G18*1000000) -> 386.6438261 | H19: =csinterpolate(CSTableU2,W0IYH!H18*1000000) -> 426.6102323 | I19: =csinterpolate(CSTableU2,W0IYH!I18*1000000) -> 433.1603156 | J19: =csinterpolate(CSTableU2,W0IYH!J18*1000000) -> 435.2766986 | K19: =csinterpolate(CSTableU2,W0IYH!K18*1000000) -> 431.4880033 | L19: =csinterpolate(CSTableU2,W0IYH!L18*1000000) -> 424.4905265 | M19: =csinterpolate(CSTableU2,W0IYH!M18*1000000) -> 415.8713691 | N19: =csinterpolate(CSTableU2,W0IYH!N18*1000000) -> 394.572364 | O19: =csinterpolate(CSTableU2,W0IYH!O18*1000000) -> 375.2419384 | P19: =csinterpolate(CSTableU2,W0IYH!P18*1000000) -> 357.5553236 | Q19: =csinterpolate(CSTableU2,W0IYH!Q18*1000000) -> 341.4815141 | R19: =csinterpolate(CSTableU2,W0IYH!R18*1000000) -> 327.0342833 | S19: =csinterpolate(CSTableU2,W0IYH!S18*1000000) -> 314.1284568 | T19: =csinterpolate(CSTableU2,W0IYH!T18*1000000) -> 302.6086788 | U19: =csinterpolate(CSTableU2,W0IYH!U18*1000000) -> 292.0535901 | V19: =csinterpolate(CSTableU2,W0IYH!V18*1000000) -> 282.644099 | W19: =csinterpolate(CSTableU2,W0IYH!W18*1000000) -> 274.0954341 | X19: =csinterpolate(CSTableU2,W0IYH!X18*1000000) -> 266.2938804 | Y19: =csinterpolate(CSTableU2,W0IYH!Y18*1000000) -> 259.0960782 | Z19: =csinterpolate(CSTableU2,W0IYH!Z18*1000000) -> 252.4620811 | AA19: =csinterpolate(CSTableU2,W0IYH!AA18*1000000) -> 235.992491 | AB19: =csinterpolate(CSTableU2,W0IYH!AB18*1000000) -> 226.3232666 | AC19: =csinterpolate(CSTableU2,W0IYH!AC18*1000000) -> 217.6777977 | AD19: =csinterpolate(CSTableU2,W0IYH!AD18*1000000) -> 209.8349532 | AE19: =csinterpolate(CSTableU2,W0IYH!AE18*1000000) -> 202.6519482
A20: µ' | B20: =csinterpolate(CSTableU1,W0IYH!B18*1000000) -> 851.3550816 | C20: =csinterpolate(CSTableU1,W0IYH!C18*1000000) -> 871.4346251 | D20: =csinterpolate(CSTableU1,W0IYH!D18*1000000) -> 911.3994861 | E20: =csinterpolate(CSTableU1,W0IYH!E18*1000000) -> 905.1311106 | F20: =csinterpolate(CSTableU1,W0IYH!F18*1000000) -> 853.4123573 | G20: =csinterpolate(CSTableU1,W0IYH!G18*1000000) -> 778.1888488 | H20: =csinterpolate(CSTableU1,W0IYH!H18*1000000) -> 673.6699627 | I20: =csinterpolate(CSTableU1,W0IYH!I18*1000000) -> 634.6636583 | J20: =csinterpolate(CSTableU1,W0IYH!J18*1000000) -> 577.4514338 | K20: =csinterpolate(CSTableU1,W0IYH!K18*1000000) -> 529.675187 | L20: =csinterpolate(CSTableU1,W0IYH!L18*1000000) -> 488.9169538 | M20: =csinterpolate(CSTableU1,W0IYH!M18*1000000) -> 454.5472546 | N20: =csinterpolate(CSTableU1,W0IYH!N18*1000000) -> 394.4857998 | O20: =csinterpolate(CSTableU1,W0IYH!O18*1000000) -> 353.3842536 | P20: =csinterpolate(CSTableU1,W0IYH!P18*1000000) -> 321.0238076 | Q20: =csinterpolate(CSTableU1,W0IYH!Q18*1000000) -> 294.7971699 | R20: =csinterpolate(CSTableU1,W0IYH!R18*1000000) -> 273.1144687 | S20: =csinterpolate(CSTableU1,W0IYH!S18*1000000) -> 254.9809886 | T20: =csinterpolate(CSTableU1,W0IYH!T18*1000000) -> 239.279516 | U20: =csinterpolate(CSTableU1,W0IYH!U18*1000000) -> 225.5451234 | V20: =csinterpolate(CSTableU1,W0IYH!V18*1000000) -> 213.6608726 | W20: =csinterpolate(CSTableU1,W0IYH!W18*1000000) -> 202.918861 | X20: =csinterpolate(CSTableU1,W0IYH!X18*1000000) -> 193.3505214 | Y20: =csinterpolate(CSTableU1,W0IYH!Y18*1000000) -> 184.6383766 | Z20: =csinterpolate(CSTableU1,W0IYH!Z18*1000000) -> 176.6525621 | AA20: =csinterpolate(CSTableU1,W0IYH!AA18*1000000) -> 156.6493138 | AB20: =csinterpolate(CSTableU1,W0IYH!AB18*1000000) -> 145.1185194 | AC20: =csinterpolate(CSTableU1,W0IYH!AC18*1000000) -> 134.7902491 | AD20: =csinterpolate(CSTableU1,W0IYH!AD18*1000000) -> 125.5394248 | AE20: =csinterpolate(CSTableU1,W0IYH!AE18*1000000) -> 117.3042198
A21: Rl | B21: =B19/$B$13*$B$16*B18*1000000 -> 54.66371217 | C21: 90.66971615 | D21: 363.1757506 | E21: 509.6997357 | F21: 919.583289 | G21: 1320.961676 | H21: 1797.590961 | I21: 1973.179235 | J21: 2230.672516 | K21: 2456.951668 | L21: 2658.817787 | M21: 2841.634103 | N21: 3190.383541 | O21: 3461.419797 | P21: 3705.463371 | Q21: 3927.773681 | R21: 4134.03496 | S21: 4328.630695 | T21: 4514.509369 | U21: 4689.640433 | V21: 4860.430682 | W21: 5025.572711 | X21: 5185.793036 | Y21: 5340.689112 | Z21: 5491.454741 | AA21: 5912.603402 | AB21: 6185.834951 | AC21: 6445.333094 | AD21: 6691.041868 | AE21: 6923.567356
A22: Xl | B22: =B20/$B$13*$B$16*B18*1000000 -> 969.5464404 | C22: 1190.896288 | D22: 1868.267969 | E22: 2061.576104 | F22: 2429.723305 | G22: 2658.668203 | H22: 2838.616948 | I22: 2891.089295 | J22: 2959.278653 | K22: 3016.042913 | L22: 3062.355958 | M22: 3105.905037 | N22: 3189.683611 | O22: 3259.793552 | P22: 3326.87526 | Q22: 3390.803066 | R22: 3452.435476 | S22: 3513.589775 | T22: 3569.724508 | U22: 3621.683026 | V22: 3674.174922 | W22: 3720.541691 | X22: 3765.297895 | Y22: 3805.909277 | Z22: 3842.476247 | AA22: 3924.723459 | AB22: 3966.358488 | AC22: 3991.07333 | AD22: 4003.096406 | AE22: 4007.677567
A23: Yl | B23: =IMDIV(1,COMPLEX(B21,B22)) -> 0.000057967363736919-0.00102814186842462i | C23: 0.0000635629713378866-0.000834864272692982i | D23: 0.000100260486920899-0.000515765317491162i | E23: 0.000113018222637422-0.000457123382327807i | F23: 0.000136250936360066-0.000360002274285015i | G23: 0.000149880094922621-0.000301660108495612i | H23: 0.000159232732013737-0.000251448044397937i | I23: 0.000161051749317112-0.000235971968631962i | J23: 0.000162428832278093-0.000215483076354354i | K23: 0.000162355855021238-0.000199300715696879i | L23: 0.000161656439712126-0.00018619160883009i | M23: 0.000160349249021316-0.000175261670639678i | N23: 0.000156755355368285-0.000156720965204767i | O23: 0.000153108131478957-0.000144189647330278i | P23: 0.000149422535067058-0.000134155997633967i | Q23: 0.000145878579483692-0.000125935345253557i | R23: 0.000142505972627326-0.000119010284188611i | S23: 0.000139263271535023-0.000113041292124281i | T23: 0.000136292309308658-0.000107769406823604i | U23: 0.000133572540192969-0.000103154476017049i | V23: 0.000130926518596361-0.0000989720793697993i | W23: 0.000128535178224894-0.000095157411291297i | X23: 0.000126267432039307-0.0000916801910054519i | Y23: 0.00012417924183312-0.0000884932484602715i | Z23: 0.000122247758340178-0.0000855391020685721i | AA23: 0.000117401300213343-0.0000779297385141476i | AB23: 0.000114559810345817-0.0000734557710893931i | AC23: 0.000112149340953647-0.0000694450134945135i | AD23: 0.000110059403673539-0.0000658460090296778i | AE23: 0.000108185364161983-0.0000626226387049217i
A24: Yc | B24: =COMPLEX(0,2*PI()*B18*1000000*$B$9*0.000000000001) -> 0.0000565486677646163i | C24: 0.0000678584013175395i | D24: 0.000101787601976309i | E24: 0.000113097335529233i | F24: 0.000141371669411541i | G24: 0.000169646003293849i | H24: 0.00020923007072908i | I24: 0.000226194671058465i | J24: 0.000254469004940773i | K24: 0.000282743338823081i | L24: 0.000311017672705389i | M24: 0.000339292006587698i | N24: 0.000401495541128776i | O24: 0.000458044208893392i | P24: 0.000514592876658008i | Q24: 0.000571141544422624i | R24: 0.000627690212187241i | S24: 0.000684238879951857i | T24: 0.000740787547716473i | U24: 0.00079733621548109i | V24: 0.000853884883245706i | W24: 0.000910433551010322i | X24: 0.000966982218774938i | Y24: 0.00102353088653955i | Z24: 0.00108007955430417i | AA24: 0.00124407069082156i | AB24: 0.00135716802635079i | AC24: 0.00147026536188002i | AD24: 0.00158336269740926i | AE24: 0.00169646003293849i
A25: Z | B25: =IMDIV(1,IMSUM(B23,B24)) -> 61.1887324980512+1025.58668567235i | C25: 107.308569848536+1294.87815610769i | D25: 552.613376335618+2281.75256398722i | E25: 861.898682740844+2623.60873888005i | F25: 2053.0955995801+3294.4326460484i | G25: 3757.16863019584+3309.30705016906i | H25: 5867.64440299121+1555.71064925475i | I25: 6186.3838797282+375.569444929716i | J25: 5821.1901307983-1397.19346340384i | K25: 4872.31835074338-2504.12295780017i | L25: 3875.31957013038-2992.40097740446i | M25: 3047.43165141989-3117.39057471097i | N25: 1855.38204122212-2897.19194122699i | O25: 1255.53232544162-2573.70097671105i | P25: 894.428047539409-2277.25633730382i | Q25: 664.627839697226-2028.37479923931i | R25: 510.658380280311-1822.81249917995i | S25: 402.889809506626-1652.47939972903i | T25: 325.056887494809-1509.74701103928i | U25: 267.289464328233-1389.11384794905i | V25: 223.030138695756-1285.97559269651i | W25: 188.69031585832-1196.82964959347i | X25: 161.447256816864-1119.17308356782i | Y25: 139.571796118212-1050.9395987474i | Z25: 121.754018333949-990.523655398182i | AA25: 85.4655699252544-848.92501974867i | AB25: 68.9686787633231-772.835935136455i | AC25: 56.7880670733536-709.320975276297i | AD25: 47.5424757176026-655.523271072281i | AE25: 40.3506791777855-609.384171639686i
A26: R | B26: =IMREAL(B25) -> 61.1887325 | C26: 107.3085698 | D26: 552.6133763 | E26: 861.8986827 | F26: 2053.0956 | G26: 3757.16863 | H26: 5867.644403 | I26: 6186.38388 | J26: 5821.190131 | K26: 4872.318351 | L26: 3875.31957 | M26: 3047.431651 | N26: 1855.382041 | O26: 1255.532325 | P26: 894.4280475 | Q26: 664.6278397 | R26: 510.6583803 | S26: 402.8898095 | T26: 325.0568875 | U26: 267.2894643 | V26: 223.0301387 | W26: 188.6903159 | X26: 161.4472568 | Y26: 139.5717961 | Z26: 121.7540183 | AA26: 85.46556993 | AB26: 68.96867876 | AC26: 56.78806707 | AD26: 47.54247572 | AE26: 40.35067918
A27: X | B27: =IMAGINARY(B25) -> 1025.586686 | C27: 1294.878156 | D27: 2281.752564 | E27: 2623.608739 | F27: 3294.432646 | G27: 3309.30705 | H27: 1555.710649 | I27: 375.5694449 | J27: -1397.193463 | K27: -2504.122958 | L27: -2992.400977 | M27: -3117.390575 | N27: -2897.191941 | O27: -2573.700977 | P27: -2277.256337 | Q27: -2028.374799 | R27: -1822.812499 | S27: -1652.4794 | T27: -1509.747011 | U27: -1389.113848 | V27: -1285.975593 | W27: -1196.82965 | X27: -1119.173084 | Y27: -1050.939599 | Z27: -990.5236554 | AA27: -848.9250197 | AB27: -772.8359351 | AC27: -709.3209753 | AD27: -655.5232711 | AE27: -609.3841716
A28: |Z| | B28: =IMABS(B25) -> 1027.410391 | C28: 1299.316962 | D28: 2347.717254 | E28: 2761.556111 | F28: 3881.815039 | G28: 5006.778332 | H28: 6070.377786 | I28: 6197.773626 | J28: 5986.51853 | K28: 5478.149131 | L28: 4896.178651 | M28: 4359.468278 | N28: 3440.372605 | O28: 2863.616269 | P28: 2446.609482 | Q28: 2134.486939 | R28: 1892.99165 | S28: 1700.884583 | T28: 1544.343879 | U28: 1414.595681 | V28: 1305.172658 | W28: 1211.612663 | X28: 1130.757979 | Y28: 1060.167122 | Z28: 997.9785333 | AA28: 853.216299 | AB28: 775.9072504 | AC28: 711.5905638 | AD28: 657.2450425 | AE28: 610.7186308
A32: Module | B32: Version | C32: Date
A33: CubicSpline | B33: =CubicSpline_version("v") -> 1.04 | C33: =CubicSpline_version("d") -> 2014-03-07
A35: Copyright: Owen Duffy 2010. All rights reserved.

Sheet FT114-43
A1: Calculate impedance of ferrite cored inductor
A3: Reference:
A4: A method for estimating the impedance of a ferrite cored toroidal inductor at RF
A6: Inputs:
A7: Al (nH for 1t) | B7: 510
A8: N | B8: 12
A9: Cs (pF) | B9: 1.6
A11: Constants:
A12: Mix | B12: =Mix!B1 -> #43
A13: µi | B13: =Mix!B2 -> 800
A15: Calculated values:
A16: 2*pi*N^2*Al | B16: =2*PI()*$B$8^2*$B$7*0.000000001 -> 0.000461437129
A18: f (MHz) | B18: 1 | C18: 1.2 | D18: 1.8 | E18: 2 | F18: 2.5 | G18: 3 | H18: 3.5 | I18: 4 | J18: 4.5 | K18: 5 | L18: 5.5 | M18: 6 | N18: =M18+1 -> 7 | O18: 8 | P18: 9 | Q18: 10 | R18: 11 | S18: 12 | T18: 13 | U18: 14 | V18: 15 | W18: 16 | X18: 17 | Y18: 18 | Z18: 19 | AA18: 22 | AB18: 24 | AC18: 26 | AD18: 28 | AE18: 30
A19: µ'' | B19: =csinterpolate(CSTableU2,'FT114-43'!B18*1000000) -> 48 | C19: =csinterpolate(CSTableU2,'FT114-43'!C18*1000000) -> 66.34728052 | D19: =csinterpolate(CSTableU2,'FT114-43'!D18*1000000) -> 177.1684779 | E19: =csinterpolate(CSTableU2,'FT114-43'!E18*1000000) -> 223.7827102 | F19: =csinterpolate(CSTableU2,'FT114-43'!F18*1000000) -> 322.9930506 | G19: =csinterpolate(CSTableU2,'FT114-43'!G18*1000000) -> 386.6438261 | H19: =csinterpolate(CSTableU2,'FT114-43'!H18*1000000) -> 419.5012637 | I19: =csinterpolate(CSTableU2,'FT114-43'!I18*1000000) -> 433.1603156 | J19: =csinterpolate(CSTableU2,'FT114-43'!J18*1000000) -> 435.2766986 | K19: =csinterpolate(CSTableU2,'FT114-43'!K18*1000000) -> 431.4880033 | L19: =csinterpolate(CSTableU2,'FT114-43'!L18*1000000) -> 424.4905265 | M19: =csinterpolate(CSTableU2,'FT114-43'!M18*1000000) -> 415.8713691 | N19: =csinterpolate(CSTableU2,'FT114-43'!N18*1000000) -> 396.5138191 | O19: =csinterpolate(CSTableU2,'FT114-43'!O18*1000000) -> 377.106132 | P19: =csinterpolate(CSTableU2,'FT114-43'!P18*1000000) -> 359.2430163 | Q19: =csinterpolate(CSTableU2,'FT114-43'!Q18*1000000) -> 343.0117781 | R19: =csinterpolate(CSTableU2,'FT114-43'!R18*1000000) -> 328.3746682 | S19: =csinterpolate(CSTableU2,'FT114-43'!S18*1000000) -> 315.3658178 | T19: =csinterpolate(CSTableU2,'FT114-43'!T18*1000000) -> 303.7191219 | U19: =csinterpolate(CSTableU2,'FT114-43'!U18*1000000) -> 293.0529962 | V19: =csinterpolate(CSTableU2,'FT114-43'!V18*1000000) -> 283.5383128 | W19: =csinterpolate(CSTableU2,'FT114-43'!W18*1000000) -> 274.9277293 | X19: =csinterpolate(CSTableU2,'FT114-43'!X18*1000000) -> 267.0371058 | Y19: =csinterpolate(CSTableU2,'FT114-43'!Y18*1000000) -> 259.7864612 | Z19: =csinterpolate(CSTableU2,'FT114-43'!Z18*1000000) -> 253.1041337 | AA19: =csinterpolate(CSTableU2,'FT114-43'!AA18*1000000) -> 235.992491 | AB19: =csinterpolate(CSTableU2,'FT114-43'!AB18*1000000) -> 226.3232666 | AC19: =csinterpolate(CSTableU2,'FT114-43'!AC18*1000000) -> 217.6777977 | AD19: =csinterpolate(CSTableU2,'FT114-43'!AD18*1000000) -> 209.8349532 | AE19: =csinterpolate(CSTableU2,'FT114-43'!AE18*1000000) -> 202.6519482
A20: µ' | B20: =csinterpolate(CSTableU1,'FT114-43'!B18*1000000) -> 851.3550816 | C20: =csinterpolate(CSTableU1,'FT114-43'!C18*1000000) -> 871.4346251 | D20: =csinterpolate(CSTableU1,'FT114-43'!D18*1000000) -> 911.3994861 | E20: =csinterpolate(CSTableU1,'FT114-43'!E18*1000000) -> 905.1311106 | F20: =csinterpolate(CSTableU1,'FT114-43'!F18*1000000) -> 853.4123573 | G20: =csinterpolate(CSTableU1,'FT114-43'!G18*1000000) -> 778.1888488 | H20: =csinterpolate(CSTableU1,'FT114-43'!H18*1000000) -> 702.0080995 | I20: =csinterpolate(CSTableU1,'FT114-43'!I18*1000000) -> 634.6636583 | J20: =csinterpolate(CSTableU1,'FT114-43'!J18*1000000) -> 577.4514338 | K20: =csinterpolate(CSTableU1,'FT114-43'!K18*1000000) -> 529.675187 | L20: =csinterpolate(CSTableU1,'FT114-43'!L18*1000000) -> 488.9169538 | M20: =csinterpolate(CSTableU1,'FT114-43'!M18*1000000) -> 454.5472546 | N20: =csinterpolate(CSTableU1,'FT114-43'!N18*1000000) -> 399.2476453 | O20: =csinterpolate(CSTableU1,'FT114-43'!O18*1000000) -> 357.0407356 | P20: =csinterpolate(CSTableU1,'FT114-43'!P18*1000000) -> 323.9442133 | Q20: =csinterpolate(CSTableU1,'FT114-43'!Q18*1000000) -> 297.1679836 | R20: =csinterpolate(CSTableU1,'FT114-43'!R18*1000000) -> 275.111228 | S20: =csinterpolate(CSTableU1,'FT114-43'!S18*1000000) -> 256.6781559 | T20: =csinterpolate(CSTableU1,'FT114-43'!T18*1000000) -> 240.7287006 | U20: =csinterpolate(CSTableU1,'FT114-43'!U18*1000000) -> 226.836019 | V20: =csinterpolate(CSTableU1,'FT114-43'!V18*1000000) -> 214.806455 | W20: =csinterpolate(CSTableU1,'FT114-43'!W18*1000000) -> 203.9404692 | X20: =csinterpolate(CSTableU1,'FT114-43'!X18*1000000) -> 194.2608374 | Y20: =csinterpolate(CSTableU1,'FT114-43'!Y18*1000000) -> 185.4755118 | Z20: =csinterpolate(CSTableU1,'FT114-43'!Z18*1000000) -> 177.4214996 | AA20: =csinterpolate(CSTableU1,'FT114-43'!AA18*1000000) -> 156.6493138 | AB20: =csinterpolate(CSTableU1,'FT114-43'!AB18*1000000) -> 145.1185194 | AC20: =csinterpolate(CSTableU1,'FT114-43'!AC18*1000000) -> 134.7902491 | AD20: =csinterpolate(CSTableU1,'FT114-43'!AD18*1000000) -> 125.5394248 | AE20: =csinterpolate(CSTableU1,'FT114-43'!AE18*1000000) -> 117.3042198
A21: Rl | B21: =B19/$B$13*$B$16*B18*1000000 -> 27.68622774 | C21: 45.92264796 | D21: 183.942256 | E21: 258.1541282 | F21: 465.753081 | G21: 669.0443139 | H21: 846.8838818 | I21: 999.381262 | J21: 1129.797169 | K21: 1244.403659 | L21: 1346.645367 | M21: 1439.238679 | N21: 1600.954235 | O21: 1740.107709 | P21: 1864.890743 | Q21: 1978.479626 | R21: 2083.458631 | S21: 2182.822463 | T21: 2277.393293 | U21: 2366.446831 | V21: 2453.158219 | W21: 2537.237241 | X21: 2618.442752 | Y21: 2697.190173 | Z21: 2773.801564 | AA21: 2994.631682 | AB21: 3133.01875 | AC21: 3264.450086 | AD21: 3388.897343 | AE21: 3506.667494
A22: Xl | B22: =B20/$B$13*$B$16*B18*1000000 -> 491.0585557 | C22: 603.1684372 | D22: 946.245515 | E22: 1044.152752 | F22: 1230.612962 | G22: 1346.569606 | H22: 1417.205134 | I22: 1464.286882 | J22: 1498.823616 | K22: 1527.573735 | L22: 1551.030494 | M22: 1573.087351 | N22: 1611.992263 | O22: 1647.51852 | P22: 1681.648737 | Q22: 1714.054265 | R22: 1745.514859 | S22: 1776.61247 | T22: 1805.068857 | U22: 1831.734824 | V22: 1858.493886 | W22: 1882.114091 | X22: 1904.832216 | Y22: 1925.668972 | Z22: 1944.385601 | AA22: 1987.804764 | AB22: 2008.892189 | AC22: 2021.40983 | AD22: 2027.499311 | AE22: 2029.81959
A23: Yl | B23: =IMDIV(1,COMPLEX(B21,B22)) -> 0.000114450813478394-0.00202996420100176i | C23: 0.000125498786002091-0.00164835674755559i | D23: 0.000197954392749596-0.00101832749232323i | E23: 0.000223143277266155-0.000902544804432629i | F23: 0.000269013967486513-0.000710788804075806i | G23: 0.000295923390029686-0.000595597981098363i | H23: 0.000310705234285243-0.000519945015489579i | I23: 0.000317980714201816-0.000465903260507007i | J23: 0.000320699628000047-0.000425449973738852i | K23: 0.000320555541640516-0.000393499506754458i | L23: 0.000319174615444692-0.000367616874732612i | M23: 0.000316593697005593-0.000346036795244463i | N23: 0.000310167864399521-0.000312306364999266i | O23: 0.000303033644983129-0.000286909562914561i | P23: 0.000295744011128068-0.000266684546881273i | Q23: 0.000288729513827035-0.000250140586743063i | R23: 0.000282020199980132-0.000236275605455717i | S23: 0.000275571813906627-0.00022428957422978i | T23: 0.000269680154362679-0.000213749311299075i | U23: 0.00026425030262489-0.000204541456536144i | V23: 0.000258990937856702-0.000196209551697055i | W23: 0.000254234066686746-0.000188589979526918i | X23: 0.000249741116031494-0.000181678565627143i | Y23: 0.000245577836357303-0.000175331211167646i | Z23: 0.000241733832155002-0.00016945112028322i | AA23: 0.000231797229451726-0.000153864543634959i | AB23: 0.000226186989381038-0.000145031138452642i | AC23: 0.000221427756512511-0.000137112295162098i | AD23: 0.00021730138252537-0.000130006417610339i | AE23: 0.000213601277280604-0.000123642192432103i
A24: Yc | B24: =COMPLEX(0,2*PI()*B18*1000000*$B$9*0.000000000001) -> 0.0000100530964914873i | C24: 0.0000120637157897848i | D24: 0.0000180955736846772i | E24: 0.0000201061929829747i | F24: 0.0000251327412287183i | G24: 0.000030159289474462i | H24: 0.0000351858377202057i | I24: 0.0000402123859659493i | J24: 0.000045238934211693i | K24: 0.0000502654824574367i | L24: 0.0000552920307031803i | M24: 0.000060318578948924i | N24: 0.0000703716754404114i | O24: 0.0000804247719318987i | P24: 0.000090477868423386i | Q24: 0.000100530964914873i | R24: 0.000110584061406361i | S24: 0.000120637157897848i | T24: 0.000130690254389335i | U24: 0.000140743350880823i | V24: 0.00015079644737231i | W24: 0.000160849543863797i | X24: 0.000170902640355285i | Y24: 0.000180955736846772i | Z24: 0.000191008833338259i | AA24: 0.000221168122812721i | AB24: 0.000241274315795696i | AC24: 0.000261380508778671i | AD24: 0.000281486701761645i | AE24: 0.00030159289474462i
A25: Z | B25: =IMDIV(1,IMSUM(B23,B24)) -> 27.9616180794554+493.486949915209i | C25: 46.5983071741123+607.563529099097i | D25: 190.404871456376+962.085393759599i | E25: 269.337052973847+1065.1157316951i | F25: 495.88490699763+1263.89903146696i | G25: 726.564000304642+1388.28971130694i | H25: 937.18813133971+1462.19148515011i | I25: 1126.29532533998+1507.80729969423i | J25: 1296.23431260196+1536.77320593927i | K25: 1453.33523725662+1556.15497889494i | L25: 1600.52064231771+1566.17204435667i | M25: 1740.8030204871+1571.0329631947i | N25: 2004.49065457583+1563.52697974465i | O25: 2253.61868264478+1535.5984074522i | P25: 2495.44968422941+1486.8091442989i | Q25: 2730.3602792578+1414.77801635193i | R25: 2958.24068563216+1318.43690442361i | S25: 3179.05187616612+1195.75512436418i | T25: 3386.8271932219+1043.11224995428i | U25: 3575.85859130873+863.321638426437i | V25: 3745.96431401999+656.841006087579i | W25: 3887.10403860942+424.136548276848i | X25: 3996.70543928948+172.451376176202i | Y25: 4069.8938140992-93.2137142678114i | Z25: 4104.14111669376-366.00543557486i | AA25: 3978.68716502373-1155.23333591219i | AB25: 3743.37344765095-1592.81555304946i | AC25: 3434.43464855163-1927.45058379463i | AD25: 3096.95385656444-2158.87927054994i | AE25: 2763.56405640811-2302.31846449781i
A26: R | B26: =IMREAL(B25) -> 27.96161808 | C26: 46.59830717 | D26: 190.4048715 | E26: 269.337053 | F26: 495.884907 | G26: 726.5640003 | H26: 937.1881313 | I26: 1126.295325 | J26: 1296.234313 | K26: 1453.335237 | L26: 1600.520642 | M26: 1740.80302 | N26: 2004.490655 | O26: 2253.618683 | P26: 2495.449684 | Q26: 2730.360279 | R26: 2958.240686 | S26: 3179.051876 | T26: 3386.827193 | U26: 3575.858591 | V26: 3745.964314 | W26: 3887.104039 | X26: 3996.705439 | Y26: 4069.893814 | Z26: 4104.141117 | AA26: 3978.687165 | AB26: 3743.373448 | AC26: 3434.434649 | AD26: 3096.953857 | AE26: 2763.564056
A27: X | B27: =IMAGINARY(B25) -> 493.4869499 | C27: 607.5635291 | D27: 962.0853938 | E27: 1065.115732 | F27: 1263.899031 | G27: 1388.289711 | H27: 1462.191485 | I27: 1507.8073 | J27: 1536.773206 | K27: 1556.154979 | L27: 1566.172044 | M27: 1571.032963 | N27: 1563.52698 | O27: 1535.598407 | P27: 1486.809144 | Q27: 1414.778016 | R27: 1318.436904 | S27: 1195.755124 | T27: 1043.11225 | U27: 863.3216384 | V27: 656.8410061 | W27: 424.1365483 | X27: 172.4513762 | Y27: -93.21371427 | Z27: -366.0054356 | AA27: -1155.233336 | AB27: -1592.815553 | AC27: -1927.450584 | AD27: -2158.879271 | AE27: -2302.318464
A28: |Z| | B28: =IMABS(B25) -> 494.2784861 | C28: 609.3478843 | D28: 980.7457978 | E28: 1098.641875 | F28: 1357.697537 | G28: 1566.921686 | H28: 1736.757189 | I28: 1882.026571 | J28: 2010.446537 | K28: 2129.272559 | L28: 2239.321593 | M28: 2344.896528 | N28: 2542.164314 | O28: 2727.060622 | P28: 2904.801294 | Q28: 3075.136434 | R28: 3238.744174 | S28: 3396.498366 | T28: 3543.823021 | U28: 3678.598771 | V28: 3803.115663 | W28: 3910.175139 | X28: 4000.424208 | Y28: 4070.961122 | Z28: 4120.428896 | AA28: 4143.00804 | AB28: 4068.157587 | AC28: 3938.325419 | AD28: 3775.166605 | AE28: 3596.937115
A32: Module | B32: Version | C32: Date
A33: CubicSpline | B33: =CubicSpline_version("v") -> 1.04 | C33: =CubicSpline_version("d") -> 2014-03-07
A35: Copyright: Owen Duffy 2010. All rights reserved.

Sheet FT240-43
A1: Calculate impedance of ferrite cored inductor
A3: Reference:
A4: A method for estimating the impedance of a ferrite cored toroidal inductor at RF
A6: Inputs:
A7: Al (nH for 1t) | B7: 1075 | D7: 5943003801
A8: N | B8: 11 | D8: 2643803802
A9: Cs (pF) | B9: 3
A11: Constants:
A12: Mix | B12: =Mix!B1 -> #43
A13: µi | B13: =Mix!B2 -> 800
A15: Calculated values:
A16: 2*pi*N^2*Al | B16: =2*PI()*$B$8^2*$B$7*0.000000001 -> 0.0008172853288
A18: f (MHz) | B18: 1 | C18: 1.2 | D18: 1.8 | E18: 2 | F18: 2.5 | G18: 3 | H18: 3.5 | I18: 4 | J18: 4.5 | K18: 5 | L18: 5.5 | M18: 6 | N18: =M18+1 -> 7 | O18: 8 | P18: 9 | Q18: 10 | R18: 11 | S18: 12 | T18: 13 | U18: 14 | V18: 15 | W18: 16 | X18: 17 | Y18: 18 | Z18: 19 | AA18: 22 | AB18: 24 | AC18: 26 | AD18: 28 | AE18: 30
A19: µ'' | B19: =csinterpolate(CSTableU2,'FT240-43'!B18*1000000) -> 48 | C19: =csinterpolate(CSTableU2,'FT240-43'!C18*1000000) -> 66.34728052 | D19: =csinterpolate(CSTableU2,'FT240-43'!D18*1000000) -> 177.1684779 | E19: =csinterpolate(CSTableU2,'FT240-43'!E18*1000000) -> 223.7827102 | F19: =csinterpolate(CSTableU2,'FT240-43'!F18*1000000) -> 322.9930506 | G19: =csinterpolate(CSTableU2,'FT240-43'!G18*1000000) -> 386.6438261 | H19: =csinterpolate(CSTableU2,'FT240-43'!H18*1000000) -> 419.5012637 | I19: =csinterpolate(CSTableU2,'FT240-43'!I18*1000000) -> 433.1603156 | J19: =csinterpolate(CSTableU2,'FT240-43'!J18*1000000) -> 435.2766986 | K19: =csinterpolate(CSTableU2,'FT240-43'!K18*1000000) -> 431.4880033 | L19: =csinterpolate(CSTableU2,'FT240-43'!L18*1000000) -> 424.4905265 | M19: =csinterpolate(CSTableU2,'FT240-43'!M18*1000000) -> 415.8713691 | N19: =csinterpolate(CSTableU2,'FT240-43'!N18*1000000) -> 396.5138191 | O19: =csinterpolate(CSTableU2,'FT240-43'!O18*1000000) -> 377.106132 | P19: =csinterpolate(CSTableU2,'FT240-43'!P18*1000000) -> 359.2430163 | Q19: =csinterpolate(CSTableU2,'FT240-43'!Q18*1000000) -> 343.0117781 | R19: =csinterpolate(CSTableU2,'FT240-43'!R18*1000000) -> 328.3746682 | S19: =csinterpolate(CSTableU2,'FT240-43'!S18*1000000) -> 315.3658178 | T19: =csinterpolate(CSTableU2,'FT240-43'!T18*1000000) -> 303.7191219 | U19: =csinterpolate(CSTableU2,'FT240-43'!U18*1000000) -> 293.0529962 | V19: =csinterpolate(CSTableU2,'FT240-43'!V18*1000000) -> 283.5383128 | W19: =csinterpolate(CSTableU2,'FT240-43'!W18*1000000) -> 274.9277293 | X19: =csinterpolate(CSTableU2,'FT240-43'!X18*1000000) -> 267.0371058 | Y19: =csinterpolate(CSTableU2,'FT240-43'!Y18*1000000) -> 259.7864612 | Z19: =csinterpolate(CSTableU2,'FT240-43'!Z18*1000000) -> 253.1041337 | AA19: =csinterpolate(CSTableU2,'FT240-43'!AA18*1000000) -> 235.992491 | AB19: =csinterpolate(CSTableU2,'FT240-43'!AB18*1000000) -> 226.3232666 | AC19: =csinterpolate(CSTableU2,'FT240-43'!AC18*1000000) -> 217.6777977 | AD19: =csinterpolate(CSTableU2,'FT240-43'!AD18*1000000) -> 209.8349532 | AE19: =csinterpolate(CSTableU2,'FT240-43'!AE18*1000000) -> 202.6519482
A20: µ' | B20: =csinterpolate(CSTableU1,'FT240-43'!B18*1000000) -> 851.3550816 | C20: =csinterpolate(CSTableU1,'FT240-43'!C18*1000000) -> 871.4346251 | D20: =csinterpolate(CSTableU1,'FT240-43'!D18*1000000) -> 911.3994861 | E20: =csinterpolate(CSTableU1,'FT240-43'!E18*1000000) -> 905.1311106 | F20: =csinterpolate(CSTableU1,'FT240-43'!F18*1000000) -> 853.4123573 | G20: =csinterpolate(CSTableU1,'FT240-43'!G18*1000000) -> 778.1888488 | H20: =csinterpolate(CSTableU1,'FT240-43'!H18*1000000) -> 702.0080995 | I20: =csinterpolate(CSTableU1,'FT240-43'!I18*1000000) -> 634.6636583 | J20: =csinterpolate(CSTableU1,'FT240-43'!J18*1000000) -> 577.4514338 | K20: =csinterpolate(CSTableU1,'FT240-43'!K18*1000000) -> 529.675187 | L20: =csinterpolate(CSTableU1,'FT240-43'!L18*1000000) -> 488.9169538 | M20: =csinterpolate(CSTableU1,'FT240-43'!M18*1000000) -> 454.5472546 | N20: =csinterpolate(CSTableU1,'FT240-43'!N18*1000000) -> 399.2476453 | O20: =csinterpolate(CSTableU1,'FT240-43'!O18*1000000) -> 357.0407356 | P20: =csinterpolate(CSTableU1,'FT240-43'!P18*1000000) -> 323.9442133 | Q20: =csinterpolate(CSTableU1,'FT240-43'!Q18*1000000) -> 297.1679836 | R20: =csinterpolate(CSTableU1,'FT240-43'!R18*1000000) -> 275.111228 | S20: =csinterpolate(CSTableU1,'FT240-43'!S18*1000000) -> 256.6781559 | T20: =csinterpolate(CSTableU1,'FT240-43'!T18*1000000) -> 240.7287006 | U20: =csinterpolate(CSTableU1,'FT240-43'!U18*1000000) -> 226.836019 | V20: =csinterpolate(CSTableU1,'FT240-43'!V18*1000000) -> 214.806455 | W20: =csinterpolate(CSTableU1,'FT240-43'!W18*1000000) -> 203.9404692 | X20: =csinterpolate(CSTableU1,'FT240-43'!X18*1000000) -> 194.2608374 | Y20: =csinterpolate(CSTableU1,'FT240-43'!Y18*1000000) -> 185.4755118 | Z20: =csinterpolate(CSTableU1,'FT240-43'!Z18*1000000) -> 177.4214996 | AA20: =csinterpolate(CSTableU1,'FT240-43'!AA18*1000000) -> 156.6493138 | AB20: =csinterpolate(CSTableU1,'FT240-43'!AB18*1000000) -> 145.1185194 | AC20: =csinterpolate(CSTableU1,'FT240-43'!AC18*1000000) -> 134.7902491 | AD20: =csinterpolate(CSTableU1,'FT240-43'!AD18*1000000) -> 125.5394248 | AE20: =csinterpolate(CSTableU1,'FT240-43'!AE18*1000000) -> 117.3042198
A21: Rl | B21: =B19/$B$13*$B$16*B18*1000000 -> 49.03711973 | C21: 81.33698847 | D21: 325.7936949 | E21: 457.2358146 | F21: 824.9296298 | G21: 1184.993725 | H21: 1499.978498 | I21: 1770.077855 | J21: 2001.067086 | K21: 2204.055091 | L21: 2385.142922 | M21: 2549.141765 | N21: 2835.568111 | O21: 3082.033091 | P21: 3303.045525 | Q21: 3504.231173 | R21: 3690.167231 | S21: 3866.157842 | T21: 4033.659214 | U21: 4191.388501 | V21: 4344.969436 | W21: 4493.887993 | X21: 4637.717062 | Y21: 4777.192425 | Z21: 4912.88451 | AA21: 5304.013018 | AB21: 5549.12056 | AC21: 5781.908291 | AD21: 6002.326007 | AE21: 6210.917405
A22: Xl | B22: =B20/$B$13*$B$16*B18*1000000 -> 869.7500223 | C22: 1068.316101 | D22: 1675.965215 | E22: 1849.375943 | F22: 2179.629372 | G22: 2385.008734 | H22: 2510.116527 | I22: 2593.506484 | J22: 2654.67704 | K22: 2705.598496 | L22: 2747.144492 | M22: 2786.211018 | N22: 2855.118377 | O22: 2918.04155 | P22: 2978.492095 | Q22: 3035.887915 | R22: 3091.610094 | S22: 3146.689365 | T22: 3197.090572 | U22: 3244.320632 | V22: 3291.71558 | W22: 3333.551068 | X22: 3373.788814 | Y22: 3410.694329 | Z22: 3443.844731 | AA22: 3520.747613 | AB22: 3558.097106 | AC22: 3580.268024 | AD22: 3591.053551 | AE22: 3595.163169
A23: Yl | B23: =IMDIV(1,COMPLEX(B21,B22)) -> 0.0000646186257301808-0.00114611240377912i | C23: 0.0000708562817143465-0.00093065784770696i | D23: 0.000111764525108824-0.000574945001239427i | E23: 0.000125986102497992-0.000509574402748662i | F23: 0.000151884572532842-0.000401309473544701i | G23: 0.000167077561128426-0.000336273040414098i | H23: 0.000175423351188992-0.000293559576686947i | I23: 0.000179531067853018-0.000263047745159596i | J23: 0.000181066159372081-0.000240207926745196i | K23: 0.000180984808595652-0.000222168777828541i | L23: 0.000180205141328143-0.000207555512437925i | M23: 0.000178747961622839-0.000195371456796105i | N23: 0.000175119953576789-0.000176327345343425i | O23: 0.000171091992216498-0.000161988378246745i | P23: 0.000166976284276343-0.000150569387837484i | Q23: 0.000163015917704843-0.00014122871182326i | R23: 0.000159227856902102-0.000133400580162735i | S23: 0.000155587115228158-0.000126633298723314i | T23: 0.000152260699876188-0.000120682294228746i | U23: 0.000149195019986715-0.000115483563851735i | V23: 0.000146225596588093-0.000110779392478429i | W23: 0.000143539879742261-0.000106477402240683i | X23: 0.000141003171719031-0.000102575236284124i | Y23: 0.000138652595057316-0.0000989915367914808i | Z23: 0.00013648228048021-0.0000956716530739935i | AA23: 0.00013087210094895-0.0000868715132389112i | AB23: 0.00012770457428517-0.0000818841961019565i | AC23: 0.000125017524030589-0.00007741323818339i | AD23: 0.000122687784221897-0.0000734012785646994i | AE23: 0.00012059871461455-0.0000698080539090037i
A24: Yc | B24: =COMPLEX(0,2*PI()*B18*1000000*$B$9*0.000000000001) -> 0.0000188495559215388i | C24: 0.0000226194671058465i | D24: 0.0000339292006587698i | E24: 0.0000376991118430775i | F24: 0.0000471238898038469i | G24: 0.0000565486677646163i | H24: 0.0000659734457253857i | I24: 0.000075398223686155i | J24: 0.0000848230016469244i | K24: 0.0000942477796076938i | L24: 0.000103672557568463i | M24: 0.000113097335529233i | N24: 0.000131946891450771i | O24: 0.00015079644737231i | P24: 0.000169646003293849i | Q24: 0.000188495559215388i | R24: 0.000207345115136926i | S24: 0.000226194671058465i | T24: 0.000245044226980004i | U24: 0.000263893782901543i | V24: 0.000282743338823081i | W24: 0.00030159289474462i | X24: 0.000320442450666159i | Y24: 0.000339292006587698i | Z24: 0.000358141562509236i | AA24: 0.000414690230273853i | AB24: 0.00045238934211693i | AC24: 0.000490088453960008i | AD24: 0.000527787565803085i | AE24: 0.000565486677646163i
A25: Z | B25: =IMDIV(1,IMSUM(B23,B24)) -> 50.6853658903759+884.199087378652i | C25: 85.4148795058575+1094.60992009738i | D25: 366.213646594773+1772.72143377443i | E25: 528.157719983527+1978.19102916712i | F25: 1022.67912862446+2384.82551658182i | G25: 1573.81838774842+2634.91613238689i | H25: 2124.57190849589+2756.32119285691i | I25: 2661.93791443763+2782.31161775956i | J25: 3180.53707013745+2729.4305911687i | K25: 3684.59795304915+2604.29287879944i | L25: 4165.09426952679+2401.05413663208i | M25: 4616.44074634379+2124.85559184966i | N25: 5365.74983561437+1359.83597708401i | O25: 5819.90505231797+380.70732707873i | P25: 5911.71192717194-675.398039980481i | Q25: 5658.63543137859-1640.73460523612i | R25: 5166.16212800338-2399.13708310071i | S25: 4560.02193454674-2917.9925408097i | T25: 3939.5551878462-3217.70947945984i | U25: 3368.99338332894-3351.27168481712i | V25: 2869.78378100729-3374.91763174708i | W25: 2446.40701586476-3325.43060940718i | X25: 2093.6499228162-3234.94621443018i | Y25: 1801.41162074559-3122.04801203026i | Z25: 1559.47906796152-2999.04374614672i | AA25: 1050.40012002511-2631.1247181269i | AB25: 831.504607580558-2412.41739200202i | AC25: 672.389498445604-2219.51669182857i | AD25: 553.847203870202-2051.22764470814i | AE25: 463.411043413841-1904.68819637204i
A26: R | B26: =IMREAL(B25) -> 50.68536589 | C26: 85.41487951 | D26: 366.2136466 | E26: 528.15772 | F26: 1022.679129 | G26: 1573.818388 | H26: 2124.571908 | I26: 2661.937914 | J26: 3180.53707 | K26: 3684.597953 | L26: 4165.09427 | M26: 4616.440746 | N26: 5365.749836 | O26: 5819.905052 | P26: 5911.711927 | Q26: 5658.635431 | R26: 5166.162128 | S26: 4560.021935 | T26: 3939.555188 | U26: 3368.993383 | V26: 2869.783781 | W26: 2446.407016 | X26: 2093.649923 | Y26: 1801.411621 | Z26: 1559.479068 | AA26: 1050.40012 | AB26: 831.5046076 | AC26: 672.3894984 | AD26: 553.8472039 | AE26: 463.4110434
A27: X | B27: =IMAGINARY(B25) -> 884.1990874 | C27: 1094.60992 | D27: 1772.721434 | E27: 1978.191029 | F27: 2384.825517 | G27: 2634.916132 | H27: 2756.321193 | I27: 2782.311618 | J27: 2729.430591 | K27: 2604.292879 | L27: 2401.054137 | M27: 2124.855592 | N27: 1359.835977 | O27: 380.7073271 | P27: -675.39804 | Q27: -1640.734605 | R27: -2399.137083 | S27: -2917.992541 | T27: -3217.709479 | U27: -3351.271685 | V27: -3374.917632 | W27: -3325.430609 | X27: -3234.946214 | Y27: -3122.048012 | Z27: -2999.043746 | AA27: -2631.124718 | AB27: -2412.417392 | AC27: -2219.516692 | AD27: -2051.227645 | AE27: -1904.688196
A28: |Z| | B28: =IMABS(B25) -> 885.6506266 | C28: 1097.93742 | D28: 1810.152954 | E28: 2047.483901 | F28: 2594.853627 | G28: 3069.150916 | H28: 3480.102342 | I28: 3850.606627 | J28: 4191.134382 | K28: 4512.050917 | L28: 4807.605562 | M28: 5081.981548 | N28: 5535.379407 | O28: 5832.343687 | P28: 5950.1681 | Q28: 5891.703064 | R28: 5696.059153 | S28: 5413.730739 | T28: 5086.624556 | U28: 4751.961524 | V28: 4430.093449 | W28: 4128.364813 | X28: 3853.342317 | Y28: 3604.478827 | Z28: 3380.271935 | AA28: 2833.047422 | AB28: 2551.697001 | AC28: 2319.129574 | AD28: 2124.683877 | AE28: 1960.251749
A32: Module | B32: Version | C32: Date
A33: CubicSpline | B33: =CubicSpline_version("v") -> 1.04 | C33: =CubicSpline_version("d") -> 2014-03-07
A35: Copyright: Owen Duffy 2010. All rights reserved.

Sheet BN-43-202
A1: Calculate impedance of ferrite cored inductor
A3: Reference:
A4: A method for estimating the impedance of a ferrite cored toroidal inductor at RF
A6: Inputs:
A7: Al (nH for 1t) | B7: 2500 | D7: BN-43-202
A8: N | B8: 6 | D8: 2843000202
A9: Cs (pF) | B9: 2.65
A11: Constants:
A12: Mix | B12: =Mix!B1 -> #43
A13: µi | B13: =Mix!B2 -> 800
A15: Calculated values:
A16: 2*pi*N^2*Al | B16: =2*PI()*$B$8^2*$B$7*0.000000001 -> 0.0005654866776
A18: f (MHz) | B18: 1 | C18: =30^(1/29)*B18 -> 1.124437228 | D18: =$C$18/$B$18*C18 -> 1.264359079 | E18: =$C$18/$B$18*D18 -> 1.421692417 | F18: 1.59860388 | G18: 1.797529715 | H18: 2.021209329 | I18: 2.272723014 | J18: 2.555534365 | K18: 2.873537977 | L18: 3.231113076 | M18: 3.633183829 | N18: 4.085287152 | O18: 4.593648959 | P18: 5.165269899 | Q18: 5.808021765 | R18: 6.530755892 | S18: 7.343425049 | T18: 8.257220503 | U18: 9.284726129 | V18: 10.44009171 | W18: 11.73922778 | X18: 13.20002473 | Y18: 14.84259922 | Z18: 16.68957111 | AA18: 18.76637507 | AB18: 21.10161075 | AC18: 23.72743669 | AD18: 26.68001313 | AE18: 30
A19: µ'' | B19: =csinterpolate(CSTableU2,'BN-43-202'!B18*1000000) -> 48 | C19: =csinterpolate(CSTableU2,'BN-43-202'!C18*1000000) -> 60.38624053 | D19: =csinterpolate(CSTableU2,'BN-43-202'!D18*1000000) -> 73.64322033 | E19: =csinterpolate(CSTableU2,'BN-43-202'!E18*1000000) -> 97.71458629 | F19: =csinterpolate(CSTableU2,'BN-43-202'!F18*1000000) -> 131.123007 | G19: =csinterpolate(CSTableU2,'BN-43-202'!G18*1000000) -> 176.5703459 | H19: =csinterpolate(CSTableU2,'BN-43-202'!H18*1000000) -> 228.6000699 | I19: =csinterpolate(CSTableU2,'BN-43-202'!I18*1000000) -> 282.0243385 | J19: =csinterpolate(CSTableU2,'BN-43-202'!J18*1000000) -> 331.9962692 | K19: =csinterpolate(CSTableU2,'BN-43-202'!K18*1000000) -> 373.6177433 | L19: =csinterpolate(CSTableU2,'BN-43-202'!L18*1000000) -> 405.1800303 | M19: =csinterpolate(CSTableU2,'BN-43-202'!M18*1000000) -> 424.4779481 | N19: =csinterpolate(CSTableU2,'BN-43-202'!N18*1000000) -> 434.0590196 | O19: =csinterpolate(CSTableU2,'BN-43-202'!O18*1000000) -> 434.8881589 | P19: =csinterpolate(CSTableU2,'BN-43-202'!P18*1000000) -> 429.2617921 | Q19: =csinterpolate(CSTableU2,'BN-43-202'!Q18*1000000) -> 419.3751631 | R19: =csinterpolate(CSTableU2,'BN-43-202'!R18*1000000) -> 405.6627754 | S19: =csinterpolate(CSTableU2,'BN-43-202'!S18*1000000) -> 389.6696597 | T19: =csinterpolate(CSTableU2,'BN-43-202'!T18*1000000) -> 372.3460265 | U19: =csinterpolate(CSTableU2,'BN-43-202'!U18*1000000) -> 354.4033359 | V19: =csinterpolate(CSTableU2,'BN-43-202'!V18*1000000) -> 336.2753641 | W19: =csinterpolate(CSTableU2,'BN-43-202'!W18*1000000) -> 318.6438053 | X19: =csinterpolate(CSTableU2,'BN-43-202'!X18*1000000) -> 301.5012822 | Y19: =csinterpolate(CSTableU2,'BN-43-202'!Y18*1000000) -> 284.9656669 | Z19: =csinterpolate(CSTableU2,'BN-43-202'!Z18*1000000) -> 269.3797525 | AA19: =csinterpolate(CSTableU2,'BN-43-202'!AA18*1000000) -> 254.6270064 | AB19: =csinterpolate(CSTableU2,'BN-43-202'!AB18*1000000) -> 240.7264705 | AC19: =csinterpolate(CSTableU2,'BN-43-202'!AC18*1000000) -> 227.5697788 | AD19: =csinterpolate(CSTableU2,'BN-43-202'!AD18*1000000) -> 214.8933816 | AE19: =csinterpolate(CSTableU2,'BN-43-202'!AE18*1000000) -> 202.6519482
A20: µ' | B20: =csinterpolate(CSTableU1,'BN-43-202'!B18*1000000) -> 851.3550816 | C20: =csinterpolate(CSTableU1,'BN-43-202'!C18*1000000) -> 863.0017195 | D20: =csinterpolate(CSTableU1,'BN-43-202'!D18*1000000) -> 877.8590578 | E20: =csinterpolate(CSTableU1,'BN-43-202'!E18*1000000) -> 894.1571703 | F20: =csinterpolate(CSTableU1,'BN-43-202'!F18*1000000) -> 906.6598344 | G20: =csinterpolate(CSTableU1,'BN-43-202'!G18*1000000) -> 911.3845646 | H20: =csinterpolate(CSTableU1,'BN-43-202'!H18*1000000) -> 903.9521485 | I20: =csinterpolate(CSTableU1,'BN-43-202'!I18*1000000) -> 881.6715403 | J20: =csinterpolate(CSTableU1,'BN-43-202'!J18*1000000) -> 845.5571118 | K20: =csinterpolate(CSTableU1,'BN-43-202'!K18*1000000) -> 797.5717628 | L20: =csinterpolate(CSTableU1,'BN-43-202'!L18*1000000) -> 742.2051289 | M20: =csinterpolate(CSTableU1,'BN-43-202'!M18*1000000) -> 682.8879332 | N20: =csinterpolate(CSTableU1,'BN-43-202'!N18*1000000) -> 624.1875924 | O20: =csinterpolate(CSTableU1,'BN-43-202'!O18*1000000) -> 567.8603389 | P20: =csinterpolate(CSTableU1,'BN-43-202'!P18*1000000) -> 515.5515783 | Q20: =csinterpolate(CSTableU1,'BN-43-202'!Q18*1000000) -> 467.1949761 | R20: =csinterpolate(CSTableU1,'BN-43-202'!R18*1000000) -> 423.0968087 | S20: =csinterpolate(CSTableU1,'BN-43-202'!S18*1000000) -> 383.4340295 | T20: =csinterpolate(CSTableU1,'BN-43-202'!T18*1000000) -> 347.8201436 | U20: =csinterpolate(CSTableU1,'BN-43-202'!U18*1000000) -> 315.8047416 | V20: =csinterpolate(CSTableU1,'BN-43-202'!V18*1000000) -> 287.0368947 | W20: =csinterpolate(CSTableU1,'BN-43-202'!W18*1000000) -> 261.2193082 | X20: =csinterpolate(CSTableU1,'BN-43-202'!X18*1000000) -> 237.8541852 | Y20: =csinterpolate(CSTableU1,'BN-43-202'!Y18*1000000) -> 216.6306078 | Z20: =csinterpolate(CSTableU1,'BN-43-202'!Z18*1000000) -> 197.1420429 | AA20: =csinterpolate(CSTableU1,'BN-43-202'!AA18*1000000) -> 179.2429485 | AB20: =csinterpolate(CSTableU1,'BN-43-202'!AB18*1000000) -> 162.4377096 | AC20: =csinterpolate(CSTableU1,'BN-43-202'!AC18*1000000) -> 146.6311937 | AD20: =csinterpolate(CSTableU1,'BN-43-202'!AD18*1000000) -> 131.532115 | AE20: =csinterpolate(CSTableU1,'BN-43-202'!AE18*1000000) -> 117.3042198
A21: Rl | B21: =B19/$B$13*$B$16*B18*1000000 -> 33.92920066 | C21: 47.99606127 | D21: 65.81662275 | E21: 98.19682263 | F21: 148.1672273 | G21: 224.3500843 | H21: 326.6029054 | I21: 453.0701914 | J21: 599.7183254 | K21: 758.886496 | L21: 925.4065737 | M21: 1090.121479 | N21: 1253.440618 | O21: 1412.107558 | P21: 1567.2838 | Q21: 1721.723203 | R21: 1872.668905 | S21: 2022.682186 | T21: 2173.266555 | U21: 2325.94419 | V21: 2481.59986 | W21: 2644.097101 | X21: 2813.172085 | Y21: 2989.750107 | Z21: 3177.916755 | AA21: 3377.670236 | AB21: 3590.639852 | AC21: 3816.78592 | AD21: 4052.672132 | AE21: 4297.386634
A22: Xl | B22: =B20/$B$13*$B$16*B18*1000000 -> 601.7874457 | C22: 685.9291626 | D22: 784.5626274 | E22: 898.5699719 | F22: 1024.51337 | G22: 1158.00421 | H22: 1291.484286 | I22: 1416.399363 | J22: 1527.415041 | K22: 1620.015246 | L22: 1695.151424 | M22: 1753.75613 | N22: 1802.478572 | O22: 1843.876087 | P22: 1882.337659 | Q22: 1918.044991 | R22: 1953.14997 | S22: 1990.314518 | T22: 2030.116697 | U22: 2072.62215 | V22: 2118.236403 | W22: 2167.590281 | X22: 2219.309813 | Y22: 2272.804966 | Z22: 2325.716745 | AA22: 2377.687979 | AB22: 2422.896461 | AC22: 2459.289096 | AD22: 2480.562839 | AE22: 2487.524007
A23: Yl | B23: =IMDIV(1,COMPLEX(B21,B22)) -> 0.0000933918637983698-0.00165645078801744i | C23: 0.000101513988518334-0.00145077331978009i | D23: 0.000106178047342769-0.00126568827622463i | E23: 0.000120181562496714-0.00109974579979002i | F23: 0.000138269718810909-0.000956076307342703i | G23: 0.000161251349262381-0.0008323141125597i | H23: 0.000184042995397529-0.000727760324626249i | I23: 0.000204873812611753-0.000640481636725327i | J23: 0.000222723477086238-0.000567251615368233i | K23: 0.000237125493319981-0.000506198115871628i | L23: 0.000248103886000099-0.000454474462949905i | M23: 0.000255655484259425-0.000411291201386223i | N23: 0.000260047634007292-0.000373954921487335i | O23: 0.000261795833745673-0.000341842995334038i | P23: 0.000261232532780252-0.000313745241376692i | Q23: 0.000259169693553539-0.000288721863963474i | R23: 0.000255770257093887-0.000266762409769643i | S23: 0.000251183892754995-0.000247164360249016i | T23: 0.000245720623997619-0.000229535369368012i | U23: 0.000239645287780782-0.000213545163141326i | V23: 0.00023311775241597-0.000198983936674777i | W23: 0.00022619038603069-0.000185427411999541i | X23: 0.000219106801140423-0.00017285322729367i | Y23: 0.000211975149782343-0.000161143291552331i | Z23: 0.000204919624853034-0.000149967742900184i | AA23: 0.000197963842517516-0.000139355299857502i | AB23: 0.000191366867856754-0.000129130775036486i | AC23: 0.000185137454720689-0.000119290558407619i | AD23: 0.000179501726977237-0.000109869562332791i | AE23: 0.000174298642260964-0.000100892029024591i
A24: Yc | B24: =COMPLEX(0,2*PI()*B18*1000000*$B$9*0.000000000001) -> 0.0000166504410640259i | C24: 0.0000187223757878444i | D24: 0.0000210521363244i | E24: 0.0000236718058030256i | F24: 0.0000266174596887201i | G24: 0.0000299296625773301i | H24: 0.0000336540268105468i | I24: 0.0000378418406034043i | J24: 0.0000425507743342228i | K24: 0.0000478456747233132i | L24: 0.0000537994578370793i | M24: 0.0000604941132150732i | N24: 0.0000680218329478386i | O24: 0.0000764862812540703i | P24: 0.0000860040220404357i | Q24: 0.0000967061241029825i | R24: 0.00010873996607536i | S24: 0.00012227126597979i | T24: 0.00013748636332974i | U24: 0.00015459478521112i | V24: 0.00017383213167951i | W24: 0.000195463320208223i | X24: 0.000219786233866484i | Y24: 0.000247135823466793i | Z24: 0.000277888720172132i | AA24: 0.000312468422083217i | AB24: 0.000351351126230301i | AC24: 0.000395072286281857i | AD24: 0.000444233986276355i | AE24: 0.000499513231920778i
A25: Z | B25: =IMDIV(1,IMSUM(B23,B24)) -> 34.6194901921279+607.85864763299i | C25: 49.2529329173787+694.807780761964i | D25: 68.0457130034212+797.642786704579i | E25: 102.510858713082+917.855175709156i | F25: 156.588673057729+1052.60015618416i | G25: 240.737324093812+1197.90554477118i | H25: 356.91084330717+1346.06624698278i | I25: 505.676471592983+1487.45592157231i | J25: 685.478658053366+1614.87793337656i | K25: 890.393270518113+1721.08837143585i | L25: 1117.10201114492+1804.06224683986i | M25: 1356.85043385029+1861.79922037365i | N25: 1613.0003329337+1897.61454878611i | O25: 1884.08412687261+1909.71095988805i | P25: 2174.97125174993+1896.12909090271i | Q25: 2491.08274107148+1845.61354000185i | R25: 2829.64513174931+1748.23860908315i | S25: 3192.00254533513+1587.1203779416i | T25: 3568.8417543364+1336.91804476995i | U25: 3934.73843600621+967.90685937149i | V25: 4240.31637742355+457.501024859262i | W25: 4412.36805412597-195.77366461597i | X25: 4363.76479887778-934.724987640563i | Y25: 4050.87949013116-1643.33123101659i | Z25: 3511.55365448994-2192.08568016556i | AA25: 2862.49330341507-2503.15990436758i | AB25: 2225.1143106357-2583.86255203788i | AC25: 1678.01178993636-2499.57520222016i | AD25: 1246.36287381335-2321.64565402812i | AE25: 920.856263392196-2105.99937352521i
A26: R | B26: =IMREAL(B25) -> 34.61949019 | C26: 49.25293292 | D26: 68.045713 | E26: 102.5108587 | F26: 156.5886731 | G26: 240.7373241 | H26: 356.9108433 | I26: 505.6764716 | J26: 685.4786581 | K26: 890.3932705 | L26: 1117.102011 | M26: 1356.850434 | N26: 1613.000333 | O26: 1884.084127 | P26: 2174.971252 | Q26: 2491.082741 | R26: 2829.645132 | S26: 3192.002545 | T26: 3568.841754 | U26: 3934.738436 | V26: 4240.316377 | W26: 4412.368054 | X26: 4363.764799 | Y26: 4050.87949 | Z26: 3511.553654 | AA26: 2862.493303 | AB26: 2225.114311 | AC26: 1678.01179 | AD26: 1246.362874 | AE26: 920.8562634
A27: X | B27: =IMAGINARY(B25) -> 607.8586476 | C27: 694.8077808 | D27: 797.6427867 | E27: 917.8551757 | F27: 1052.600156 | G27: 1197.905545 | H27: 1346.066247 | I27: 1487.455922 | J27: 1614.877933 | K27: 1721.088371 | L27: 1804.062247 | M27: 1861.79922 | N27: 1897.614549 | O27: 1909.71096 | P27: 1896.129091 | Q27: 1845.61354 | R27: 1748.238609 | S27: 1587.120378 | T27: 1336.918045 | U27: 967.9068594 | V27: 457.5010249 | W27: -195.7736646 | X27: -934.7249876 | Y27: -1643.331231 | Z27: -2192.08568 | AA27: -2503.159904 | AB27: -2583.862552 | AC27: -2499.575202 | AD27: -2321.645654 | AE27: -2105.999374
A28: |Z| | B28: =IMABS(B25) -> 608.8436947 | C28: 696.5512929 | D28: 800.5399642 | E28: 923.561909 | F28: 1064.183772 | G28: 1221.856028 | H28: 1392.580228 | I28: 1571.061365 | J28: 1754.340825 | K28: 1937.768138 | L28: 2121.923065 | M28: 2303.766359 | N28: 2490.524252 | O28: 2682.679434 | P28: 2885.447188 | Q28: 3100.287497 | R28: 3326.143383 | S28: 3564.804531 | T28: 3811.034154 | U28: 4052.03779 | V28: 4264.925576 | W28: 4416.709089 | X28: 4462.751844 | Y28: 4371.517148 | Z28: 4139.595234 | AA28: 3802.588253 | AB28: 3409.908999 | AC28: 3010.581299 | AD28: 2635.044394 | AE28: 2298.523356
A32: Module | B32: Version | C32: Date
A33: CubicSpline | B33: =CubicSpline_version("v") -> 1.04 | C33: =CubicSpline_version("d") -> 2014-03-07
A35: Copyright: Owen Duffy 2010. All rights reserved.

Sheet FT140-43
A1: Calculate impedance of ferrite cored inductor
A3: Reference:
A4: A method for estimating the impedance of a ferrite cored toroidal inductor at RF
A6: Inputs:
A7: Al (nH for 1t) | B7: 885
A8: N | B8: 9
A9: Cs (pF) | B9: 3
A11: Constants:
A12: Mix | B12: =Mix!B1 -> #43
A13: µi | B13: =Mix!B2 -> 800
A15: Calculated values:
A16: 2*pi*N^2*Al | B16: =2*PI()*$B$8^2*$B$7*0.000000001 -> 0.0004504101387
A18: f (MHz) | B18: 1 | C18: 1.2 | D18: 1.8 | E18: 2 | F18: 2.5 | G18: 3 | H18: 3.5 | I18: 4 | J18: 4.5 | K18: 5 | L18: 5.5 | M18: 6 | N18: =M18+1 -> 7 | O18: 8 | P18: 9 | Q18: 10 | R18: 11 | S18: 12 | T18: 13 | U18: 14 | V18: 15 | W18: 16 | X18: 17 | Y18: 18 | Z18: 19 | AA18: 22 | AB18: 24 | AC18: 26 | AD18: 28 | AE18: 30
A19: µ'' | B19: =csinterpolate(CSTableU2,'FT140-43'!B18*1000000) -> 48 | C19: =csinterpolate(CSTableU2,'FT140-43'!C18*1000000) -> 66.34728052 | D19: =csinterpolate(CSTableU2,'FT140-43'!D18*1000000) -> 177.1684779 | E19: =csinterpolate(CSTableU2,'FT140-43'!E18*1000000) -> 223.7827102 | F19: =csinterpolate(CSTableU2,'FT140-43'!F18*1000000) -> 322.9930506 | G19: =csinterpolate(CSTableU2,'FT140-43'!G18*1000000) -> 386.6438261 | H19: =csinterpolate(CSTableU2,'FT140-43'!H18*1000000) -> 419.5012637 | I19: =csinterpolate(CSTableU2,'FT140-43'!I18*1000000) -> 433.1603156 | J19: =csinterpolate(CSTableU2,'FT140-43'!J18*1000000) -> 435.2766986 | K19: =csinterpolate(CSTableU2,'FT140-43'!K18*1000000) -> 431.4880033 | L19: =csinterpolate(CSTableU2,'FT140-43'!L18*1000000) -> 424.4905265 | M19: =csinterpolate(CSTableU2,'FT140-43'!M18*1000000) -> 415.8713691 | N19: =csinterpolate(CSTableU2,'FT140-43'!N18*1000000) -> 396.5138191 | O19: =csinterpolate(CSTableU2,'FT140-43'!O18*1000000) -> 377.106132 | P19: =csinterpolate(CSTableU2,'FT140-43'!P18*1000000) -> 359.2430163 | Q19: =csinterpolate(CSTableU2,'FT140-43'!Q18*1000000) -> 343.0117781 | R19: =csinterpolate(CSTableU2,'FT140-43'!R18*1000000) -> 328.3746682 | S19: =csinterpolate(CSTableU2,'FT140-43'!S18*1000000) -> 315.3658178 | T19: =csinterpolate(CSTableU2,'FT140-43'!T18*1000000) -> 303.7191219 | U19: =csinterpolate(CSTableU2,'FT140-43'!U18*1000000) -> 293.0529962 | V19: =csinterpolate(CSTableU2,'FT140-43'!V18*1000000) -> 283.5383128 | W19: =csinterpolate(CSTableU2,'FT140-43'!W18*1000000) -> 274.9277293 | X19: =csinterpolate(CSTableU2,'FT140-43'!X18*1000000) -> 267.0371058 | Y19: =csinterpolate(CSTableU2,'FT140-43'!Y18*1000000) -> 259.7864612 | Z19: =csinterpolate(CSTableU2,'FT140-43'!Z18*1000000) -> 253.1041337 | AA19: =csinterpolate(CSTableU2,'FT140-43'!AA18*1000000) -> 235.992491 | AB19: =csinterpolate(CSTableU2,'FT140-43'!AB18*1000000) -> 226.3232666 | AC19: =csinterpolate(CSTableU2,'FT140-43'!AC18*1000000) -> 217.6777977 | AD19: =csinterpolate(CSTableU2,'FT140-43'!AD18*1000000) -> 209.8349532 | AE19: =csinterpolate(CSTableU2,'FT140-43'!AE18*1000000) -> 202.6519482
A20: µ' | B20: =csinterpolate(CSTableU1,'FT140-43'!B18*1000000) -> 851.3550816 | C20: =csinterpolate(CSTableU1,'FT140-43'!C18*1000000) -> 871.4346251 | D20: =csinterpolate(CSTableU1,'FT140-43'!D18*1000000) -> 911.3994861 | E20: =csinterpolate(CSTableU1,'FT140-43'!E18*1000000) -> 905.1311106 | F20: =csinterpolate(CSTableU1,'FT140-43'!F18*1000000) -> 853.4123573 | G20: =csinterpolate(CSTableU1,'FT140-43'!G18*1000000) -> 778.1888488 | H20: =csinterpolate(CSTableU1,'FT140-43'!H18*1000000) -> 702.0080995 | I20: =csinterpolate(CSTableU1,'FT140-43'!I18*1000000) -> 634.6636583 | J20: =csinterpolate(CSTableU1,'FT140-43'!J18*1000000) -> 577.4514338 | K20: =csinterpolate(CSTableU1,'FT140-43'!K18*1000000) -> 529.675187 | L20: =csinterpolate(CSTableU1,'FT140-43'!L18*1000000) -> 488.9169538 | M20: =csinterpolate(CSTableU1,'FT140-43'!M18*1000000) -> 454.5472546 | N20: =csinterpolate(CSTableU1,'FT140-43'!N18*1000000) -> 399.2476453 | O20: =csinterpolate(CSTableU1,'FT140-43'!O18*1000000) -> 357.0407356 | P20: =csinterpolate(CSTableU1,'FT140-43'!P18*1000000) -> 323.9442133 | Q20: =csinterpolate(CSTableU1,'FT140-43'!Q18*1000000) -> 297.1679836 | R20: =csinterpolate(CSTableU1,'FT140-43'!R18*1000000) -> 275.111228 | S20: =csinterpolate(CSTableU1,'FT140-43'!S18*1000000) -> 256.6781559 | T20: =csinterpolate(CSTableU1,'FT140-43'!T18*1000000) -> 240.7287006 | U20: =csinterpolate(CSTableU1,'FT140-43'!U18*1000000) -> 226.836019 | V20: =csinterpolate(CSTableU1,'FT140-43'!V18*1000000) -> 214.806455 | W20: =csinterpolate(CSTableU1,'FT140-43'!W18*1000000) -> 203.9404692 | X20: =csinterpolate(CSTableU1,'FT140-43'!X18*1000000) -> 194.2608374 | Y20: =csinterpolate(CSTableU1,'FT140-43'!Y18*1000000) -> 185.4755118 | Z20: =csinterpolate(CSTableU1,'FT140-43'!Z18*1000000) -> 177.4214996 | AA20: =csinterpolate(CSTableU1,'FT140-43'!AA18*1000000) -> 156.6493138 | AB20: =csinterpolate(CSTableU1,'FT140-43'!AB18*1000000) -> 145.1185194 | AC20: =csinterpolate(CSTableU1,'FT140-43'!AC18*1000000) -> 134.7902491 | AD20: =csinterpolate(CSTableU1,'FT140-43'!AD18*1000000) -> 125.5394248 | AE20: =csinterpolate(CSTableU1,'FT140-43'!AE18*1000000) -> 117.3042198
A21: Rl | B21: =B19/$B$13*$B$16*B18*1000000 -> 27.02460832 | C21: 44.82523174 | D21: 179.5465771 | E21: 251.9850038 | F21: 454.6229522 | G21: 653.0561226 | H21: 826.6458479 | I21: 975.4989892 | J21: 1102.79834 | K21: 1214.666071 | L21: 1314.464504 | M21: 1404.845108 | N21: 1562.696137 | O21: 1698.524253 | P21: 1820.325339 | Q21: 1931.199782 | R21: 2033.670098 | S21: 2130.659426 | T21: 2222.970292 | U21: 2309.895711 | V21: 2394.534953 | W21: 2476.604734 | X21: 2555.869672 | Y21: 2632.73526 | Z21: 2707.515865 | AA21: 2923.068792 | AB21: 3058.148817 | AC21: 3186.43933 | AD21: 3307.912664 | AE21: 3422.868454
A22: Xl | B22: =B20/$B$13*$B$16*B18*1000000 -> 479.3237005 | C22: 588.7544856 | D22: 923.6330303 | E22: 1019.200573 | F22: 1201.204932 | G22: 1314.390553 | H22: 1383.338099 | I22: 1429.294732 | J22: 1463.00614 | K22: 1491.069215 | L22: 1513.965427 | M22: 1535.49519 | N22: 1573.470389 | O22: 1608.147673 | P22: 1641.462278 | Q22: 1673.093409 | R22: 1703.802188 | S22: 1734.156657 | T22: 1761.933021 | U22: 1787.961749 | V22: 1814.081348 | W22: 1837.1371 | X22: 1859.312328 | Y22: 1879.651147 | Z22: 1897.920504 | AA22: 1940.302077 | AB22: 1960.885574 | AC22: 1973.104081 | AD22: 1979.04804 | AE22: 1981.312872
A23: Yl | B23: =IMDIV(1,COMPLEX(B21,B22)) -> 0.000117252810795191-0.00207966200629936i | C23: 0.00012857126098896-0.00168871199749575i | D23: 0.000202800733815028-0.00104325829722004i | E23: 0.000228606295353649-0.000924641004917794i | F23: 0.000275599996822342-0.000728190413215138i | G23: 0.000303168218787474-0.000610179475927513i | H23: 0.000318311953768685-0.000532674366151282i | I23: 0.000325765552779262-0.000477309555020361i | J23: 0.000328551031322084-0.000435865886466922i | K23: 0.000328403417424559-0.000403133204659934i | L23: 0.000326988683242774-0.000376616911213825i | M23: 0.00032434457847654-0.0003545085058625i | N23: 0.000317761427934725-0.000319952283539736i | O23: 0.000310452547779327-0.000293933714172356i | P23: 0.000302984448311993-0.000273213547087407i | Q23: 0.000295798221321858-0.000256264555910031i | R23: 0.000288924649320513-0.000242060130636366i | S23: 0.000282318393154812-0.000229780656084747i | T23: 0.000276282493358376-0.000218982345285682i | U23: 0.00027071970739725-0.000209549062816689i | V23: 0.000265331582286339-0.000201013175373253i | W23: 0.000260458252876817-0.000193207060004978i | X23: 0.000255855305312868-0.000186126440115191i | Y23: 0.000251590099770948-0.000179623689030507i | Z23: 0.000247651986237893-0.00017359964111878i | AA23: 0.00023747211454188-0.000157631472198527i | AB23: 0.000231724523960988-0.000148581806625682i | AC23: 0.000226848775033533-0.00014046909334874i | AD23: 0.000222621378707724-0.000133189248926599i | AE23: 0.000218830687082201-0.0001266692140924i
A24: Yc | B24: =COMPLEX(0,2*PI()*B18*1000000*$B$9*0.000000000001) -> 0.0000188495559215388i | C24: 0.0000226194671058465i | D24: 0.0000339292006587698i | E24: 0.0000376991118430775i | F24: 0.0000471238898038469i | G24: 0.0000565486677646163i | H24: 0.0000659734457253857i | I24: 0.000075398223686155i | J24: 0.0000848230016469244i | K24: 0.0000942477796076938i | L24: 0.000103672557568463i | M24: 0.000113097335529233i | N24: 0.000131946891450771i | O24: 0.00015079644737231i | P24: 0.000169646003293849i | Q24: 0.000188495559215388i | R24: 0.000207345115136926i | S24: 0.000226194671058465i | T24: 0.000245044226980004i | U24: 0.000263893782901543i | V24: 0.000282743338823081i | W24: 0.00030159289474462i | X24: 0.000320442450666159i | Y24: 0.000339292006587698i | Z24: 0.000358141562509236i | AA24: 0.000414690230273853i | AB24: 0.00045238934211693i | AC24: 0.000490088453960008i | AD24: 0.000527787565803085i | AE24: 0.000565486677646163i
A25: Z | B25: =IMDIV(1,IMSUM(B23,B24)) -> 27.5196366783128+483.679747307748i | C25: 46.0433663937239+596.653624087701i | D25: 191.34430671892+952.311032606526i | E25: 272.498513890339+1057.2339987228i | F25: 510.552870534595+1261.68531408511i | G25: 760.929947620307+1389.57263904929i | H25: 997.429607091723+1462.40601453511i | I25: 1217.10575476638+1501.59705376872i | J25: 1421.21055158425+1518.50338121651i | K25: 1615.6893453391+1519.66411951876i | L25: 1802.38280366144+1504.48695804447i | M25: 1984.01664509162+1476.71276795179i | N25: 2331.02456139927+1379.16420341899i | O25: 2656.41345630446+1224.76611754707i | P25: 2955.2016440017+1010.160677847i | Q25: 3212.08287338209+735.905823423776i | R25: 3411.85437766638+409.942792631474i | S25: 3541.52868375686+44.9842062650742i | T25: 3587.56074050501-338.416605604306i | U25: 3550.77124899736-712.787670566421i | V25: 3442.25846200671-1060.31986208393i | W25: 3272.66458209855-1361.87077443605i | X25: 3064.03529085962-1608.52242619079i | Y25: 2833.49147477558-1798.23775658085i | Z25: 2596.28038184916-1934.66072052638i | AA25: 1938.98774246846-2098.91499035067i | AB25: 1587.20565539858-2080.94089586131i | AC25: 1306.02491384081-2012.8457614634i | AD25: 1084.53952624865-1922.35567908147i | AE25: 910.09706224418-1825.00219583785i
A26: R | B26: =IMREAL(B25) -> 27.51963668 | C26: 46.04336639 | D26: 191.3443067 | E26: 272.4985139 | F26: 510.5528705 | G26: 760.9299476 | H26: 997.4296071 | I26: 1217.105755 | J26: 1421.210552 | K26: 1615.689345 | L26: 1802.382804 | M26: 1984.016645 | N26: 2331.024561 | O26: 2656.413456 | P26: 2955.201644 | Q26: 3212.082873 | R26: 3411.854378 | S26: 3541.528684 | T26: 3587.560741 | U26: 3550.771249 | V26: 3442.258462 | W26: 3272.664582 | X26: 3064.035291 | Y26: 2833.491475 | Z26: 2596.280382 | AA26: 1938.987742 | AB26: 1587.205655 | AC26: 1306.024914 | AD26: 1084.539526 | AE26: 910.0970622
A27: X | B27: =IMAGINARY(B25) -> 483.6797473 | C27: 596.6536241 | D27: 952.3110326 | E27: 1057.233999 | F27: 1261.685314 | G27: 1389.572639 | H27: 1462.406015 | I27: 1501.597054 | J27: 1518.503381 | K27: 1519.66412 | L27: 1504.486958 | M27: 1476.712768 | N27: 1379.164203 | O27: 1224.766118 | P27: 1010.160678 | Q27: 735.9058234 | R27: 409.9427926 | S27: 44.98420627 | T27: -338.4166056 | U27: -712.7876706 | V27: -1060.319862 | W27: -1361.870774 | X27: -1608.522426 | Y27: -1798.237757 | Z27: -1934.660721 | AA27: -2098.91499 | AB27: -2080.940896 | AC27: -2012.845761 | AD27: -1922.355679 | AE27: -1825.002196
A28: |Z| | B28: =IMABS(B25) -> 484.4619989 | C28: 598.4275551 | D28: 971.3438869 | E28: 1091.787144 | F28: 1361.070926 | G28: 1584.274757 | H28: 1770.168685 | I28: 1932.909757 | J28: 2079.829789 | K28: 2218.069227 | L28: 2347.77869 | M28: 2473.257497 | N28: 2708.462554 | O28: 2925.164011 | P28: 3123.082028 | Q28: 3295.304806 | R28: 3436.393951 | S28: 3541.814365 | T28: 3603.486904 | U28: 3621.607754 | V28: 3601.863619 | W28: 3544.717968 | X28: 3460.586173 | Y28: 3355.939953 | Z28: 3237.836303 | AA28: 2857.466991 | AB28: 2617.161975 | AC28: 2399.426835 | AD28: 2207.187654 | AE28: 2039.340501
A32: Module | B32: Version | C32: Date
A33: CubicSpline | B33: =CubicSpline_version("v") -> 1.04 | C33: =CubicSpline_version("d") -> 2014-03-07
A35: Copyright: Owen Duffy 2010. All rights reserved.

Sheet 5943001001
A1: Calculate impedance of ferrite cored inductor
A3: Reference:
A4: A method for estimating the impedance of a ferrite cored toroidal inductor at RF
A6: Inputs:
A7: Al (nH for 1t) | B7: 510
A8: N | B8: 17
A9: Cs (pF) | B9: 1.3
A11: Constants:
A12: Mix | B12: =Mix!B1 -> #43
A13: µi | B13: =Mix!B2 -> 800
A15: Calculated values:
A16: 2*pi*N^2*Al | B16: =2*PI()*$B$8^2*$B$7*0.000000001 -> 0.0009260786824
A18: f (MHz) | B18: 1 | C18: 1.2 | D18: 1.8 | E18: 2 | F18: 2.5 | G18: 3 | H18: 3.5 | I18: 4 | J18: 4.5 | K18: 5 | L18: 5.5 | M18: 6 | N18: =M18+1 -> 7 | O18: 8 | P18: 9 | Q18: 10 | R18: 11 | S18: 12 | T18: 13 | U18: 14 | V18: 15 | W18: 16 | X18: 17 | Y18: 18 | Z18: 19 | AA18: 22 | AB18: 24 | AC18: 26 | AD18: 28 | AE18: 30
A19: µ'' | B19: =csinterpolate(CSTableU2,'5943001001'!B18*1000000) -> 48 | C19: =csinterpolate(CSTableU2,'5943001001'!C18*1000000) -> 66.34728052 | D19: =csinterpolate(CSTableU2,'5943001001'!D18*1000000) -> 177.1684779 | E19: =csinterpolate(CSTableU2,'5943001001'!E18*1000000) -> 223.7827102 | F19: =csinterpolate(CSTableU2,'5943001001'!F18*1000000) -> 322.9930506 | G19: =csinterpolate(CSTableU2,'5943001001'!G18*1000000) -> 386.6438261 | H19: =csinterpolate(CSTableU2,'5943001001'!H18*1000000) -> 419.5012637 | I19: =csinterpolate(CSTableU2,'5943001001'!I18*1000000) -> 433.1603156 | J19: =csinterpolate(CSTableU2,'5943001001'!J18*1000000) -> 435.2766986 | K19: =csinterpolate(CSTableU2,'5943001001'!K18*1000000) -> 431.4880033 | L19: =csinterpolate(CSTableU2,'5943001001'!L18*1000000) -> 424.4905265 | M19: =csinterpolate(CSTableU2,'5943001001'!M18*1000000) -> 415.8713691 | N19: =csinterpolate(CSTableU2,'5943001001'!N18*1000000) -> 396.5138191 | O19: =csinterpolate(CSTableU2,'5943001001'!O18*1000000) -> 377.106132 | P19: =csinterpolate(CSTableU2,'5943001001'!P18*1000000) -> 359.2430163 | Q19: =csinterpolate(CSTableU2,'5943001001'!Q18*1000000) -> 343.0117781 | R19: =csinterpolate(CSTableU2,'5943001001'!R18*1000000) -> 328.3746682 | S19: =csinterpolate(CSTableU2,'5943001001'!S18*1000000) -> 315.3658178 | T19: =csinterpolate(CSTableU2,'5943001001'!T18*1000000) -> 303.7191219 | U19: =csinterpolate(CSTableU2,'5943001001'!U18*1000000) -> 293.0529962 | V19: =csinterpolate(CSTableU2,'5943001001'!V18*1000000) -> 283.5383128 | W19: =csinterpolate(CSTableU2,'5943001001'!W18*1000000) -> 274.9277293 | X19: =csinterpolate(CSTableU2,'5943001001'!X18*1000000) -> 267.0371058 | Y19: =csinterpolate(CSTableU2,'5943001001'!Y18*1000000) -> 259.7864612 | Z19: =csinterpolate(CSTableU2,'5943001001'!Z18*1000000) -> 253.1041337 | AA19: =csinterpolate(CSTableU2,'5943001001'!AA18*1000000) -> 235.992491 | AB19: =csinterpolate(CSTableU2,'5943001001'!AB18*1000000) -> 226.3232666 | AC19: =csinterpolate(CSTableU2,'5943001001'!AC18*1000000) -> 217.6777977 | AD19: =csinterpolate(CSTableU2,'5943001001'!AD18*1000000) -> 209.8349532 | AE19: =csinterpolate(CSTableU2,'5943001001'!AE18*1000000) -> 202.6519482
A20: µ' | B20: =csinterpolate(CSTableU1,'5943001001'!B18*1000000) -> 851.3550816 | C20: =csinterpolate(CSTableU1,'5943001001'!C18*1000000) -> 871.4346251 | D20: =csinterpolate(CSTableU1,'5943001001'!D18*1000000) -> 911.3994861 | E20: =csinterpolate(CSTableU1,'5943001001'!E18*1000000) -> 905.1311106 | F20: =csinterpolate(CSTableU1,'5943001001'!F18*1000000) -> 853.4123573 | G20: =csinterpolate(CSTableU1,'5943001001'!G18*1000000) -> 778.1888488 | H20: =csinterpolate(CSTableU1,'5943001001'!H18*1000000) -> 702.0080995 | I20: =csinterpolate(CSTableU1,'5943001001'!I18*1000000) -> 634.6636583 | J20: =csinterpolate(CSTableU1,'5943001001'!J18*1000000) -> 577.4514338 | K20: =csinterpolate(CSTableU1,'5943001001'!K18*1000000) -> 529.675187 | L20: =csinterpolate(CSTableU1,'5943001001'!L18*1000000) -> 488.9169538 | M20: =csinterpolate(CSTableU1,'5943001001'!M18*1000000) -> 454.5472546 | N20: =csinterpolate(CSTableU1,'5943001001'!N18*1000000) -> 399.2476453 | O20: =csinterpolate(CSTableU1,'5943001001'!O18*1000000) -> 357.0407356 | P20: =csinterpolate(CSTableU1,'5943001001'!P18*1000000) -> 323.9442133 | Q20: =csinterpolate(CSTableU1,'5943001001'!Q18*1000000) -> 297.1679836 | R20: =csinterpolate(CSTableU1,'5943001001'!R18*1000000) -> 275.111228 | S20: =csinterpolate(CSTableU1,'5943001001'!S18*1000000) -> 256.6781559 | T20: =csinterpolate(CSTableU1,'5943001001'!T18*1000000) -> 240.7287006 | U20: =csinterpolate(CSTableU1,'5943001001'!U18*1000000) -> 226.836019 | V20: =csinterpolate(CSTableU1,'5943001001'!V18*1000000) -> 214.806455 | W20: =csinterpolate(CSTableU1,'5943001001'!W18*1000000) -> 203.9404692 | X20: =csinterpolate(CSTableU1,'5943001001'!X18*1000000) -> 194.2608374 | Y20: =csinterpolate(CSTableU1,'5943001001'!Y18*1000000) -> 185.4755118 | Z20: =csinterpolate(CSTableU1,'5943001001'!Z18*1000000) -> 177.4214996 | AA20: =csinterpolate(CSTableU1,'5943001001'!AA18*1000000) -> 156.6493138 | AB20: =csinterpolate(CSTableU1,'5943001001'!AB18*1000000) -> 145.1185194 | AC20: =csinterpolate(CSTableU1,'5943001001'!AC18*1000000) -> 134.7902491 | AD20: =csinterpolate(CSTableU1,'5943001001'!AD18*1000000) -> 125.5394248 | AE20: =csinterpolate(CSTableU1,'5943001001'!AE18*1000000) -> 117.3042198
A21: Rl | B21: =B19/$B$13*$B$16*B18*1000000 -> 55.56472095 | C21: 92.16420319 | D21: 369.1618888 | E21: 518.1009934 | F21: 934.7405584 | G21: 1342.734769 | H21: 1699.648902 | I21: 2005.702672 | J21: 2267.440153 | K21: 2497.44901 | L21: 2702.642439 | M21: 2888.472072 | N21: 3213.026207 | O21: 3492.299499 | P21: 3742.732116 | Q21: 3970.698694 | R21: 4181.385726 | S21: 4380.803416 | T21: 4570.601818 | U21: 4749.32732 | V21: 4923.352259 | W21: 5092.094186 | X21: 5255.069135 | Y21: 5413.110832 | Z21: 5566.865639 | AA21: 6010.059417 | AB21: 6287.794576 | AC21: 6551.569964 | AD21: 6801.328696 | AE21: 7037.686845
A22: Xl | B22: =B20/$B$13*$B$16*B18*1000000 -> 985.5272403 | C22: 1210.525544 | D22: 1899.062179 | E22: 2095.556566 | F22: 2469.771848 | G22: 2702.490389 | H22: 2844.251969 | I22: 2938.742422 | J22: 3008.055729 | K22: 3065.75562 | L22: 3112.832032 | M22: 3157.09892 | N22: 3235.178916 | O22: 3306.47814 | P22: 3374.97559 | Q22: 3440.011684 | R22: 3503.151349 | S22: 3565.562526 | T22: 3622.672915 | U22: 3676.190029 | V22: 3729.893979 | W22: 3777.298419 | X22: 3822.892433 | Y22: 3864.710645 | Z22: 3902.273879 | AA22: 3989.413729 | AB22: 4031.735018 | AC22: 4056.857229 | AD22: 4069.078477 | AE22: 4073.735149
A23: Yl | B23: =IMDIV(1,COMPLEX(B21,B22)) -> 0.0000570273949511723-0.00101147005171022i | C23: 0.0000625322670737063-0.000821326545494826i | D23: 0.0000986347147264418-0.000507401933891161i | E23: 0.000111185577599745-0.000449710906014873i | F23: 0.000134041561654179-0.000354164663622546i | G23: 0.0001474497168314-0.000296768544215101i | H23: 0.000154815064834169-0.000259072948894461i | I23: 0.000158440217456959-0.000232145569249166i | J23: 0.000159794970352965-0.000211988914250501i | K23: 0.000159723176457558-0.000196068958382845i | L23: 0.000159035102505314-0.000183172422012098i | M23: 0.000157749108542579-0.000172419718045684i | N23: 0.000154547309596993-0.000155612860068838i | O23: 0.000150992542828964-0.000142958398130439i | P23: 0.000147360337724712-0.000132880881491015i | Q23: 0.000143865224882674-0.000124637524190315i | R23: 0.000140522175768647-0.00011772902140354i | S23: 0.000137309139109184-0.000111756742868818i | T23: 0.000134373502519813-0.00010650484715248i | U23: 0.000131667970858076-0.000101916850315587i | V23: 0.000129047387720987-0.0000977653129563177i | W23: 0.000126677182016925-0.0000939687095220632i | X23: 0.000124438479960329-0.0000905249600356699i | Y23: 0.000122364043029245-0.000087362264388031i | Z23: 0.000120448691454396-0.0000844323921134385i | AA23: 0.000115497581456915-0.000076666070184893i | AB23: 0.000112702167719272-0.0000722646503016624i | AC23: 0.000110330785251909-0.0000683189290773082i | AD23: 0.000108274737313679-0.0000647782842072275i | AE23: 0.000106431086257464-0.0000616071823883143i
A24: Yc | B24: =COMPLEX(0,2*PI()*B18*1000000*$B$9*0.000000000001) -> 8.16814089933346E-06i | C24: 9.80176907920015E-06i | D24: 0.0000147026536188002i | E24: 0.0000163362817986669i | F24: 0.0000204203522483337i | G24: 0.0000245044226980004i | H24: 0.0000285884931476671i | I24: 0.0000326725635973338i | J24: 0.0000367566340470006i | K24: 0.0000408407044966673i | L24: 0.000044924774946334i | M24: 0.0000490088453960008i | N24: 0.0000571769862953342i | O24: 0.0000653451271946677i | P24: 0.0000735132680940012i | Q24: 0.0000816814089933346i | R24: 0.0000898495498926681i | S24: 0.0000980176907920015i | T24: 0.000106185831691335i | U24: 0.000114353972590668i | V24: 0.000122522113490002i | W24: 0.000130690254389335i | X24: 0.000138858395288669i | Y24: 0.000147026536188002i | Z24: 0.000155194677087336i | AA24: 0.000179699099785336i | AB24: 0.000196035381584003i | AC24: 0.00021237166338267i | AD24: 0.000228707945181337i | AE24: 0.000245044226980004i
A25: Z | B25: =IMDIV(1,IMSUM(B23,B24)) -> 56.470211952647+993.499205153892i | C25: 94.3907857851474+1224.97495956285i | D25: 390.661329982444+1951.42812189828i | E25: 555.439663253527+2164.97013851755i | F25: 1036.25101524917+2580.11677294107i | G25: 1538.03058386777+2839.95489975751i | H25: 2008.21742213737+2989.77945110418i | I25: 2441.56917570158+3073.88584666871i | J25: 2841.26495672671+3115.75098971994i | K25: 3219.75120382088+3129.14110777055i | L25: 3581.5025777413+3113.36488946621i | M25: 3932.41957565957+3076.42519149864i | N25: 4603.11682184519+2931.86486145509i | O25: 5238.69156268515+2692.79515389172i | P25: 5838.46174242094+2352.16303728093i | Q25: 6381.9747920228+1905.56713461456i | R25: 6846.80906653482+1358.40067424737i | S25: 7210.64448293409+721.491815484079i | T25: 7441.90145342999+17.6677810687532i | U25: 7527.69669390211-711.052837084419i | V25: 7474.02033794954-1433.83631361353i | W25: 7282.14752388987-2110.96981138155i | X25: 6982.66579474601-2712.15322777393i | Y25: 6602.57199779035-3219.39060284964i | Z25: 6172.0486589697-3626.01088318287i | AA25: 4821.33949524592-4301.01833009176i | AB25: 4022.06481575324-4417.07478733461i | AC25: 3351.06738296765-4375.30122037857i | AD25: 2805.31009630855-4247.28375634683i | AE25: 2366.35916002049-4078.48821261271i
A26: R | B26: =IMREAL(B25) -> 56.47021195 | C26: 94.39078579 | D26: 390.66133 | E26: 555.4396633 | F26: 1036.251015 | G26: 1538.030584 | H26: 2008.217422 | I26: 2441.569176 | J26: 2841.264957 | K26: 3219.751204 | L26: 3581.502578 | M26: 3932.419576 | N26: 4603.116822 | O26: 5238.691563 | P26: 5838.461742 | Q26: 6381.974792 | R26: 6846.809067 | S26: 7210.644483 | T26: 7441.901453 | U26: 7527.696694 | V26: 7474.020338 | W26: 7282.147524 | X26: 6982.665795 | Y26: 6602.571998 | Z26: 6172.048659 | AA26: 4821.339495 | AB26: 4022.064816 | AC26: 3351.067383 | AD26: 2805.310096 | AE26: 2366.35916
A27: X | B27: =IMAGINARY(B25) -> 993.4992052 | C27: 1224.97496 | D27: 1951.428122 | E27: 2164.970139 | F27: 2580.116773 | G27: 2839.9549 | H27: 2989.779451 | I27: 3073.885847 | J27: 3115.75099 | K27: 3129.141108 | L27: 3113.364889 | M27: 3076.425191 | N27: 2931.864861 | O27: 2692.795154 | P27: 2352.163037 | Q27: 1905.567135 | R27: 1358.400674 | S27: 721.4918155 | T27: 17.66778107 | U27: -711.0528371 | V27: -1433.836314 | W27: -2110.969811 | X27: -2712.153228 | Y27: -3219.390603 | Z27: -3626.010883 | AA27: -4301.01833 | AB27: -4417.074787 | AC27: -4375.30122 | AD27: -4247.283756 | AE27: -4078.488213
A28: |Z| | B28: =IMABS(B25) -> 995.1027864 | C28: 1228.606231 | D28: 1990.147731 | E28: 2235.085887 | F28: 2780.434989 | G28: 3229.687587 | H28: 3601.627185 | I28: 3925.561646 | J28: 4216.715639 | K28: 4489.801987 | L28: 4745.545453 | M28: 4992.826422 | N28: 5457.51922 | O28: 5890.249148 | P28: 6294.466337 | Q28: 6660.389504 | R28: 6980.261226 | S28: 7246.650557 | T28: 7441.922426 | U28: 7561.204511 | V28: 7610.313173 | W28: 7581.943425 | X28: 7490.88758 | Y28: 7345.640397 | Z28: 7158.361515 | AA28: 6460.965346 | AB28: 5973.906181 | AC28: 5511.162615 | AD28: 5090.106486 | AE28: 4715.264762
A32: Module | B32: Version | C32: Date
A33: CubicSpline | B33: =CubicSpline_version("v") -> 1.04 | C33: =CubicSpline_version("d") -> 2014-03-07
A35: Copyright: Owen Duffy 2010. All rights reserved.

Sheet 2643102002
A1: Calculate impedance of ferrite cored inductor
A3: Reference:
A4: A method for estimating the impedance of a ferrite cored toroidal inductor at RF
A6: Inputs:
A7: Al (nH for 1t) | B7: =10*3225*0.99 -> 31927.5
A8: N | B8: 1
A9: Cs (pF) | B9: 0.5
A11: Constants:
A12: Mix | B12: =Mix!B1 -> #43
A13: µi | B13: =Mix!B2 -> 800
A15: Calculated values:
A16: 2*pi*N^2*Al | B16: =2*PI()*$B$8^2*$B$7*0.000000001 -> 0.0002006063989
A18: f (MHz) | B18: 1 | C18: 1.2 | D18: 1.8 | E18: 2 | F18: 2.5 | G18: 3 | H18: 3.5 | I18: 4 | J18: 4.5 | K18: 5 | L18: 5.5 | M18: 6 | N18: =M18+1 -> 7 | O18: =N18+1 -> 8 | P18: =O18+2 -> 10 | Q18: 12 | R18: 14 | S18: 16 | T18: 18 | U18: 20 | V18: =U18+5 -> 25 | W18: =V18+5 -> 30 | X18: 35 | Y18: 40 | Z18: 45 | AA18: 50 | AB18: 55 | AC18: 60 | AD18: 65 | AE18: 70
A19: µ'' | B19: =csinterpolate(CSTableU2,'2643102002'!B18*1000000) -> 48 | C19: =csinterpolate(CSTableU2,'2643102002'!C18*1000000) -> 66.34728052 | D19: =csinterpolate(CSTableU2,'2643102002'!D18*1000000) -> 177.1684779 | E19: =csinterpolate(CSTableU2,'2643102002'!E18*1000000) -> 223.7827102 | F19: =csinterpolate(CSTableU2,'2643102002'!F18*1000000) -> 322.9930506 | G19: =csinterpolate(CSTableU2,'2643102002'!G18*1000000) -> 386.6438261 | H19: =csinterpolate(CSTableU2,'2643102002'!H18*1000000) -> 419.5012637 | I19: =csinterpolate(CSTableU2,'2643102002'!I18*1000000) -> 433.1603156 | J19: =csinterpolate(CSTableU2,'2643102002'!J18*1000000) -> 435.2766986 | K19: =csinterpolate(CSTableU2,'2643102002'!K18*1000000) -> 431.4880033 | L19: =csinterpolate(CSTableU2,'2643102002'!L18*1000000) -> 424.4905265 | M19: =csinterpolate(CSTableU2,'2643102002'!M18*1000000) -> 415.8713691 | N19: =csinterpolate(CSTableU2,'2643102002'!N18*1000000) -> 396.5138191 | O19: =csinterpolate(CSTableU2,'2643102002'!O18*1000000) -> 377.106132 | P19: =csinterpolate(CSTableU2,'2643102002'!P18*1000000) -> 343.0117781 | Q19: =csinterpolate(CSTableU2,'2643102002'!Q18*1000000) -> 315.3658178 | R19: =csinterpolate(CSTableU2,'2643102002'!R18*1000000) -> 293.0529962 | S19: =csinterpolate(CSTableU2,'2643102002'!S18*1000000) -> 274.9277293 | T19: =csinterpolate(CSTableU2,'2643102002'!T18*1000000) -> 259.7864612 | U19: =csinterpolate(CSTableU2,'2643102002'!U18*1000000) -> 247.0084964 | V19: =csinterpolate(CSTableU2,'2643102002'!V18*1000000) -> 221.9238152 | W19: =csinterpolate(CSTableU2,'2643102002'!W18*1000000) -> 202.6519482 | X19: =csinterpolate(CSTableU2,'2643102002'!X18*1000000) -> 186.8144439 | Y19: =csinterpolate(CSTableU2,'2643102002'!Y18*1000000) -> 173.456444 | Z19: =csinterpolate(CSTableU2,'2643102002'!Z18*1000000) -> 162.0659103 | AA19: =csinterpolate(CSTableU2,'2643102002'!AA18*1000000) -> 152.0798583 | AB19: =csinterpolate(CSTableU2,'2643102002'!AB18*1000000) -> 143.2935542 | AC19: =csinterpolate(CSTableU2,'2643102002'!AC18*1000000) -> 135.4128478 | AD19: =csinterpolate(CSTableU2,'2643102002'!AD18*1000000) -> 128.3006282 | AE19: =csinterpolate(CSTableU2,'2643102002'!AE18*1000000) -> 121.8688803
A20: µ' | B20: =csinterpolate(CSTableU1,'2643102002'!B18*1000000) -> 851.3550816 | C20: =csinterpolate(CSTableU1,'2643102002'!C18*1000000) -> 871.4346251 | D20: =csinterpolate(CSTableU1,'2643102002'!D18*1000000) -> 911.3994861 | E20: =csinterpolate(CSTableU1,'2643102002'!E18*1000000) -> 905.1311106 | F20: =csinterpolate(CSTableU1,'2643102002'!F18*1000000) -> 853.4123573 | G20: =csinterpolate(CSTableU1,'2643102002'!G18*1000000) -> 778.1888488 | H20: =csinterpolate(CSTableU1,'2643102002'!H18*1000000) -> 702.0080995 | I20: =csinterpolate(CSTableU1,'2643102002'!I18*1000000) -> 634.6636583 | J20: =csinterpolate(CSTableU1,'2643102002'!J18*1000000) -> 577.4514338 | K20: =csinterpolate(CSTableU1,'2643102002'!K18*1000000) -> 529.675187 | L20: =csinterpolate(CSTableU1,'2643102002'!L18*1000000) -> 488.9169538 | M20: =csinterpolate(CSTableU1,'2643102002'!M18*1000000) -> 454.5472546 | N20: =csinterpolate(CSTableU1,'2643102002'!N18*1000000) -> 399.2476453 | O20: =csinterpolate(CSTableU1,'2643102002'!O18*1000000) -> 357.0407356 | P20: =csinterpolate(CSTableU1,'2643102002'!P18*1000000) -> 297.1679836 | Q20: =csinterpolate(CSTableU1,'2643102002'!Q18*1000000) -> 256.6781559 | R20: =csinterpolate(CSTableU1,'2643102002'!R18*1000000) -> 226.836019 | S20: =csinterpolate(CSTableU1,'2643102002'!S18*1000000) -> 203.9404692 | T20: =csinterpolate(CSTableU1,'2643102002'!T18*1000000) -> 185.4755118 | U20: =csinterpolate(CSTableU1,'2643102002'!U18*1000000) -> 170.0096243 | V20: =csinterpolate(CSTableU1,'2643102002'!V18*1000000) -> 139.7902326 | W20: =csinterpolate(CSTableU1,'2643102002'!W18*1000000) -> 117.3042198 | X20: =csinterpolate(CSTableU1,'2643102002'!X18*1000000) -> 99.84892346 | Y20: =csinterpolate(CSTableU1,'2643102002'!Y18*1000000) -> 86.03225166 | Z20: =csinterpolate(CSTableU1,'2643102002'!Z18*1000000) -> 74.91223436 | AA20: =csinterpolate(CSTableU1,'2643102002'!AA18*1000000) -> 65.64706785 | AB20: =csinterpolate(CSTableU1,'2643102002'!AB18*1000000) -> 57.83468258 | AC20: =csinterpolate(CSTableU1,'2643102002'!AC18*1000000) -> 51.16007803 | AD20: =csinterpolate(CSTableU1,'2643102002'!AD18*1000000) -> 45.45271829 | AE20: =csinterpolate(CSTableU1,'2643102002'!AE18*1000000) -> 40.53486318
A21: Rl | B21: =B19/$B$13*$B$16*B18*1000000 -> 12.03638393 | C21: 19.96453353 | D21: 79.96754329 | E21: 112.230609 | F21: 202.4827273 | G21: 290.862096 | H21: 368.1765405 | I21: 434.4736553 | J21: 491.1710121 | K21: 540.9953406 | L21: 585.4441717 | M21: 625.6984332 | N21: 696.0030818 | O21: 756.4990315 | P21: 860.1294698 | Q21: 948.9660157 | R21: 1028.795359 | S21: 1103.045235 | T21: 1172.583595 | U21: 1238.787124 | V21: 1391.229294 | W21: 1524.497909 | X21: 1639.582562 | Y21: 1739.82363 | Z21: 1828.769549 | AA21: 1906.762045 | AB21: 1976.260268 | AC21: 2037.351281 | AD21: 2091.206569 | AE21: 2139.171756
A22: Xl | B22: =B20/$B$13*$B$16*B18*1000000 -> 213.4840964 | C22: 262.223043 | D22: 411.37328 | E22: 453.9377316 | F22: 534.9999368 | G22: 585.4112348 | H22: 616.1195112 | I22: 636.587955 | J22: 651.6025463 | K22: 664.101449 | L22: 674.2991025 | M22: 683.8881591 | N22: 700.8017834 | O22: 716.2465623 | P22: 745.1724882 | Q22: 772.3692079 | R22: 796.3332461 | S22: 818.2352622 | T22: 837.1704263 | U22: 852.6254625 | V22: 876.3379737 | W22: 882.4491416 | X22: 876.3270674 | Y22: 862.9310097 | Z22: 845.3178882 | AA22: 823.0763675 | AB22: 797.638009 | AC22: 769.7279266 | AD22: 740.8461235 | AE22: 711.5108816
A23: Yl | B23: =IMDIV(1,COMPLEX(B21,B22)) -> 0.000263261067789627-0.00466934683021125i | C23: 0.000288673740317706-0.00379156900917649i | D23: 0.000455336954147061-0.00234236852356803i | E23: 0.000513276713880707-0.0020760438630501i | F23: 0.000618788999207877-0.00163496452184879i | G23: 0.000680686360152847-0.00137000127576114i | H23: 0.000714687727066264-0.00119598346057645i | I23: 0.000731422869030814-0.00107167599879836i | J23: 0.000737676945589962-0.000978624886739685i | K23: 0.000737345516500807-0.000905132057819981i | L23: 0.000734169094299843-0.000845596532154508i | M23: 0.000728232436241196-0.000795957786947092i | N23: 0.000713451662720251-0.000718370666213954i | O23: 0.00069704144977092-0.000659952652116368i | P23: 0.000664138923982692-0.000575376233354023i | Q23: 0.000633873432411015-0.00051591343924313i | R23: 0.000607831562908837-0.000470488593470031i | S23: 0.000584792102653656-0.000433796823943525i | T23: 0.000564880942826103-0.000403298853594922i | U23: 0.000547756896841134-0.000377007048688799i | V23: 0.000514605468781108-0.000324150961865869i | W23: 0.000491328096577796-0.000284403182592238i | X23: 0.000474391528067428-0.00025355364606007i | Y23: 0.000461291477209372-0.000228794869410115i | Z23: 0.000450551217791324-0.000208259703464387i | AA23: 0.00044207635252765-0.000190827481280219i | AB23: 0.000435124127430753-0.00017562036154117i | AC23: 0.000429523602313766-0.00016227751928499i | AD23: 0.000424869456307896-0.000150517358884724i | AE23: 0.000420905941766317-0.00013999771495459i
A24: Yc | B24: =COMPLEX(0,2*PI()*B18*1000000*$B$9*0.000000000001) -> 3.14159265358979E-06i | C24: 3.76991118430775E-06i | D24: 5.65486677646163E-06i | E24: 6.28318530717959E-06i | F24: 7.85398163397448E-06i | G24: 9.42477796076938E-06i | H24: 0.0000109955742875643i | I24: 0.0000125663706143592i | J24: 0.0000141371669411541i | K24: 0.000015707963267949i | L24: 0.0000172787595947439i | M24: 0.0000188495559215388i | N24: 0.0000219911485751286i | O24: 0.0000251327412287183i | P24: 0.0000314159265358979i | Q24: 0.0000376991118430775i | R24: 0.0000439822971502571i | S24: 0.0000502654824574367i | T24: 0.0000565486677646163i | U24: 0.0000628318530717959i | V24: 0.0000785398163397448i | W24: 0.0000942477796076938i | X24: 0.000109955742875643i | Y24: 0.000125663706143592i | Z24: 0.000141371669411541i | AA24: 0.00015707963267949i | AB24: 0.000172787595947439i | AC24: 0.000188495559215388i | AD24: 0.000204203522483337i | AE24: 0.000219911485751286i
A25: Z | B25: =IMDIV(1,IMSUM(B23,B24)) -> 12.05254529891+213.626915942681i | C25: 20.0040642099189+262.481015027957i | D25: 80.3408798244973+412.296057622243i | E25: 112.873504654333+455.156322456638i | F25: 204.194608029532+536.931327811581i | G25: 294.096208992472+587.848403422529i | H25: 373.209983198001+618.800760644246i | I25: 441.495821945875+639.291572118161i | J25: 500.322182246996+654.154374221502i | K25: 552.420686152191+666.358250775621i | L25: 599.265651944274+676.114527081043i | M25: 642.055896723115+685.147896868425i | N25: 717.788752224554+700.612825170056i | O25: 784.194380704239+714.193118703153i | P25: 901.170911869194+738.100400404646i | Q25: 1005.37516991831+758.487082884156i | R25: 1102.408651014+773.543625350329i | S25: 1195.70291687711+784.192436333748i | T25: 1285.78942068392+789.277326882744i | U25: 1373.70680937307+787.912681782932i | V25: 1582.70201810686+755.392780054352i | W25: 1770.15380853782+685.090702428082i | X25: 1931.02946486321+584.520940479971i | Y25: 2064.62881870289+461.590084157945i | Z25: 2171.64086225927+322.397947690437i | AA25: 2248.94648615159+171.683251302247i | AB25: 2298.09738288519+14.9611818487736i | AC25: 2319.51857005677-141.582977423029i | AD25: 2316.67460652296-292.733144461231i | AE25: 2293.1652210496-435.383447201736i
A26: R | B26: =IMREAL(B25) -> 12.0525453 | C26: 20.00406421 | D26: 80.34087982 | E26: 112.8735047 | F26: 204.194608 | G26: 294.096209 | H26: 373.2099832 | I26: 441.4958219 | J26: 500.3221822 | K26: 552.4206862 | L26: 599.2656519 | M26: 642.0558967 | N26: 717.7887522 | O26: 784.1943807 | P26: 901.1709119 | Q26: 1005.37517 | R26: 1102.408651 | S26: 1195.702917 | T26: 1285.789421 | U26: 1373.706809 | V26: 1582.702018 | W26: 1770.153809 | X26: 1931.029465 | Y26: 2064.628819 | Z26: 2171.640862 | AA26: 2248.946486 | AB26: 2298.097383 | AC26: 2319.51857 | AD26: 2316.674607 | AE26: 2293.165221
A27: X | B27: =IMAGINARY(B25) -> 213.6269159 | C27: 262.481015 | D27: 412.2960576 | E27: 455.1563225 | F27: 536.9313278 | G27: 587.8484034 | H27: 618.8007606 | I27: 639.2915721 | J27: 654.1543742 | K27: 666.3582508 | L27: 676.1145271 | M27: 685.1478969 | N27: 700.6128252 | O27: 714.1931187 | P27: 738.1004004 | Q27: 758.4870829 | R27: 773.5436254 | S27: 784.1924363 | T27: 789.2773269 | U27: 787.9126818 | V27: 755.3927801 | W27: 685.0907024 | X27: 584.5209405 | Y27: 461.5900842 | Z27: 322.3979477 | AA27: 171.6832513 | AB27: 14.96118185 | AC27: -141.5829774 | AD27: -292.7331445 | AE27: -435.3834472
A28: |Z| | B28: =IMABS(B25) -> 213.9666401 | C28: 263.242181 | D28: 420.0508256 | E28: 468.9431798 | F28: 574.4481602 | G28: 657.3114373 | H28: 722.6341211 | I28: 776.9248837 | J28: 823.5534174 | K28: 865.5645169 | L28: 903.465647 | M28: 938.9693366 | N28: 1003.034906 | O28: 1060.675557 | P28: 1164.861028 | Q28: 1259.39743 | R28: 1346.727357 | S28: 1429.917215 | T28: 1508.712409 | U28: 1583.627732 | V28: 1753.728579 | W28: 1898.102678 | X28: 2017.557812 | Y28: 2115.59863 | Z28: 2195.441749 | AA28: 2255.490066 | AB28: 2298.146083 | AC28: 2323.835652 | AD28: 2335.096128 | AE28: 2334.130561
A32: Module | B32: Version | C32: Date
A33: CubicSpline | B33: =CubicSpline_version("v") -> 1.04 | C33: =CubicSpline_version("d") -> 2014-03-07
A35: Copyright: Owen Duffy 2010. All rights reserved.

Sheet FT240-43 x 2
A1: Calculate impedance of ferrite cored inductor
A3: Reference:
A4: A method for estimating the impedance of a ferrite cored toroidal inductor at RF
A6: Inputs:
A7: Al (nH for 1t) | B7: =2*1075 -> 2150
A8: N | B8: 7
A9: Cs (pF) | B9: 3
A11: Constants:
A12: Mix | B12: =Mix!B1 -> #43
A13: µi | B13: =Mix!B2 -> 800
A15: Calculated values:
A16: 2*pi*N^2*Al | B16: =2*PI()*$B$8^2*$B$7*0.000000001 -> 0.0006619335721
A18: f (MHz) | B18: 1 | C18: 1.2 | D18: 1.8 | E18: 2 | F18: 2.5 | G18: 3 | H18: 3.5 | I18: 4 | J18: 4.5 | K18: 5 | L18: 5.5 | M18: 6 | N18: =M18+1 -> 7 | O18: 8 | P18: 9 | Q18: 10 | R18: 11 | S18: 12 | T18: 13 | U18: 14 | V18: 15 | W18: 16 | X18: 17 | Y18: 18 | Z18: 19 | AA18: 22 | AB18: 24 | AC18: 26 | AD18: 28 | AE18: 30
A19: µ'' | B19: =csinterpolate(CSTableU2,'FT240-43 x 2'!B18*1000000) -> 48 | C19: =csinterpolate(CSTableU2,'FT240-43 x 2'!C18*1000000) -> 66.34728052 | D19: =csinterpolate(CSTableU2,'FT240-43 x 2'!D18*1000000) -> 177.1684779 | E19: =csinterpolate(CSTableU2,'FT240-43 x 2'!E18*1000000) -> 223.7827102 | F19: =csinterpolate(CSTableU2,'FT240-43 x 2'!F18*1000000) -> 322.9930506 | G19: =csinterpolate(CSTableU2,'FT240-43 x 2'!G18*1000000) -> 386.6438261 | H19: =csinterpolate(CSTableU2,'FT240-43 x 2'!H18*1000000) -> 419.5012637 | I19: =csinterpolate(CSTableU2,'FT240-43 x 2'!I18*1000000) -> 433.1603156 | J19: =csinterpolate(CSTableU2,'FT240-43 x 2'!J18*1000000) -> 435.2766986 | K19: =csinterpolate(CSTableU2,'FT240-43 x 2'!K18*1000000) -> 431.4880033 | L19: =csinterpolate(CSTableU2,'FT240-43 x 2'!L18*1000000) -> 424.4905265 | M19: =csinterpolate(CSTableU2,'FT240-43 x 2'!M18*1000000) -> 415.8713691 | N19: =csinterpolate(CSTableU2,'FT240-43 x 2'!N18*1000000) -> 396.5138191 | O19: =csinterpolate(CSTableU2,'FT240-43 x 2'!O18*1000000) -> 377.106132 | P19: =csinterpolate(CSTableU2,'FT240-43 x 2'!P18*1000000) -> 359.2430163 | Q19: =csinterpolate(CSTableU2,'FT240-43 x 2'!Q18*1000000) -> 343.0117781 | R19: =csinterpolate(CSTableU2,'FT240-43 x 2'!R18*1000000) -> 328.3746682 | S19: =csinterpolate(CSTableU2,'FT240-43 x 2'!S18*1000000) -> 315.3658178 | T19: =csinterpolate(CSTableU2,'FT240-43 x 2'!T18*1000000) -> 303.7191219 | U19: =csinterpolate(CSTableU2,'FT240-43 x 2'!U18*1000000) -> 293.0529962 | V19: =csinterpolate(CSTableU2,'FT240-43 x 2'!V18*1000000) -> 283.5383128 | W19: =csinterpolate(CSTableU2,'FT240-43 x 2'!W18*1000000) -> 274.9277293 | X19: =csinterpolate(CSTableU2,'FT240-43 x 2'!X18*1000000) -> 267.0371058 | Y19: =csinterpolate(CSTableU2,'FT240-43 x 2'!Y18*1000000) -> 259.7864612 | Z19: =csinterpolate(CSTableU2,'FT240-43 x 2'!Z18*1000000) -> 253.1041337 | AA19: =csinterpolate(CSTableU2,'FT240-43 x 2'!AA18*1000000) -> 235.992491 | AB19: =csinterpolate(CSTableU2,'FT240-43 x 2'!AB18*1000000) -> 226.3232666 | AC19: =csinterpolate(CSTableU2,'FT240-43 x 2'!AC18*1000000) -> 217.6777977 | AD19: =csinterpolate(CSTableU2,'FT240-43 x 2'!AD18*1000000) -> 209.8349532 | AE19: =csinterpolate(CSTableU2,'FT240-43 x 2'!AE18*1000000) -> 202.6519482
A20: µ' | B20: =csinterpolate(CSTableU1,'FT240-43 x 2'!B18*1000000) -> 851.3550816 | C20: =csinterpolate(CSTableU1,'FT240-43 x 2'!C18*1000000) -> 871.4346251 | D20: =csinterpolate(CSTableU1,'FT240-43 x 2'!D18*1000000) -> 911.3994861 | E20: =csinterpolate(CSTableU1,'FT240-43 x 2'!E18*1000000) -> 905.1311106 | F20: =csinterpolate(CSTableU1,'FT240-43 x 2'!F18*1000000) -> 853.4123573 | G20: =csinterpolate(CSTableU1,'FT240-43 x 2'!G18*1000000) -> 778.1888488 | H20: =csinterpolate(CSTableU1,'FT240-43 x 2'!H18*1000000) -> 702.0080995 | I20: =csinterpolate(CSTableU1,'FT240-43 x 2'!I18*1000000) -> 634.6636583 | J20: =csinterpolate(CSTableU1,'FT240-43 x 2'!J18*1000000) -> 577.4514338 | K20: =csinterpolate(CSTableU1,'FT240-43 x 2'!K18*1000000) -> 529.675187 | L20: =csinterpolate(CSTableU1,'FT240-43 x 2'!L18*1000000) -> 488.9169538 | M20: =csinterpolate(CSTableU1,'FT240-43 x 2'!M18*1000000) -> 454.5472546 | N20: =csinterpolate(CSTableU1,'FT240-43 x 2'!N18*1000000) -> 399.2476453 | O20: =csinterpolate(CSTableU1,'FT240-43 x 2'!O18*1000000) -> 357.0407356 | P20: =csinterpolate(CSTableU1,'FT240-43 x 2'!P18*1000000) -> 323.9442133 | Q20: =csinterpolate(CSTableU1,'FT240-43 x 2'!Q18*1000000) -> 297.1679836 | R20: =csinterpolate(CSTableU1,'FT240-43 x 2'!R18*1000000) -> 275.111228 | S20: =csinterpolate(CSTableU1,'FT240-43 x 2'!S18*1000000) -> 256.6781559 | T20: =csinterpolate(CSTableU1,'FT240-43 x 2'!T18*1000000) -> 240.7287006 | U20: =csinterpolate(CSTableU1,'FT240-43 x 2'!U18*1000000) -> 226.836019 | V20: =csinterpolate(CSTableU1,'FT240-43 x 2'!V18*1000000) -> 214.806455 | W20: =csinterpolate(CSTableU1,'FT240-43 x 2'!W18*1000000) -> 203.9404692 | X20: =csinterpolate(CSTableU1,'FT240-43 x 2'!X18*1000000) -> 194.2608374 | Y20: =csinterpolate(CSTableU1,'FT240-43 x 2'!Y18*1000000) -> 185.4755118 | Z20: =csinterpolate(CSTableU1,'FT240-43 x 2'!Z18*1000000) -> 177.4214996 | AA20: =csinterpolate(CSTableU1,'FT240-43 x 2'!AA18*1000000) -> 156.6493138 | AB20: =csinterpolate(CSTableU1,'FT240-43 x 2'!AB18*1000000) -> 145.1185194 | AC20: =csinterpolate(CSTableU1,'FT240-43 x 2'!AC18*1000000) -> 134.7902491 | AD20: =csinterpolate(CSTableU1,'FT240-43 x 2'!AD18*1000000) -> 125.5394248 | AE20: =csinterpolate(CSTableU1,'FT240-43 x 2'!AE18*1000000) -> 117.3042198
A21: Rl | B21: =B19/$B$13*$B$16*B18*1000000 -> 39.71601433 | C21: 65.8762386 | D21: 263.8659678 | E21: 370.3232218 | F21: 668.1248241 | G21: 959.7469835 | H21: 1214.858619 | I21: 1433.616775 | J21: 1620.698962 | K21: 1785.102471 | L21: 1931.768647 | M21: 2064.594157 | N21: 2296.575826 | O21: 2496.19209 | P21: 2675.193896 | Q21: 2838.137644 | R21: 2988.730485 | S21: 3131.268335 | T21: 3266.930603 | U21: 3394.67829 | V21: 3519.066154 | W21: 3639.677878 | X21: 3756.167538 | Y21: 3869.131055 | Z21: 3979.03043 | AA21: 4295.812196 | AB21: 4494.329049 | AC21: 4682.867872 | AD21: 4861.388005 | AE21: 5030.329799
A22: Xl | B22: =B20/$B$13*$B$16*B18*1000000 -> 704.4256379 | C22: 865.2477514 | D22: 1357.393314 | E22: 1497.841673 | F22: 1765.319657 | G22: 1931.659967 | H22: 2032.986939 | I22: 2100.525912 | J22: 2150.069008 | K22: 2191.311179 | L22: 2224.960001 | M22: 2256.60066 | N22: 2312.409925 | O22: 2363.372495 | P22: 2412.33244 | Q22: 2458.818311 | R22: 2503.948671 | S22: 2548.558329 | T22: 2589.379141 | U22: 2627.631586 | V22: 2666.017577 | W22: 2699.900865 | X22: 2732.490114 | Y22: 2762.380531 | Z22: 2789.229617 | AA22: 2851.514596 | AB22: 2881.764598 | AC22: 2899.721209 | AD22: 2908.456595 | AE22: 2911.785046
A23: Yl | B23: =IMDIV(1,COMPLEX(B21,B22)) -> 0.0000797842215648151-0.00141509796793137i | C23: 0.0000874858172187336-0.00114907754665859i | D23: 0.000137994974879263-0.000709881072958884i | E23: 0.000155554269410785-0.000629168395230487i | F23: 0.000187530951800754-0.000495494349988866i | G23: 0.000206289641801424-0.000415194264184753i | H23: 0.000216594137692531-0.000362456212031842i | I23: 0.000221665910308318-0.000324783440452155i | J23: 0.000223561278408386-0.000296583256491518i | K23: 0.000223460835102795-0.000274310429767892i | L23: 0.000222498184701074-0.000256267520459071i | M23: 0.000220699013840444-0.000241223941554374i | N23: 0.00021621953451828-0.000217710293740351i | O23: 0.000211246235287718-0.000200006058855675i | P23: 0.000206164595892219-0.000185907101309547i | Q23: 0.00020127475553353-0.000174374225822597i | R23: 0.000196597660052595-0.000164708879588684i | S23: 0.000192102458598032-0.000156353358627765i | T23: 0.000187995353928763-0.000149005689813043i | U23: 0.000184210177738699-0.000142586849245509i | V23: 0.000180543848848564-0.000136778637651938i | W23: 0.000177227810702179-0.000131466996644109i | X23: 0.000174095752836763-0.000126649016228357i | Y23: 0.000171193510223829-0.000122224244405808i | Z23: 0.000168513836103117-0.000118125204305645i | AA23: 0.000161586981783908-0.000107259725529676i | AB23: 0.000157676056005159-0.000101101915595273i | AC23: 0.000154358371507156-0.0000955816512264305i | AD23: 0.000151481856029076-0.0000906281092482513i | AE23: 0.000148902494575107-0.0000861915767651983i
A24: Yc | B24: =COMPLEX(0,2*PI()*B18*1000000*$B$9*0.000000000001) -> 0.0000188495559215388i | C24: 0.0000226194671058465i | D24: 0.0000339292006587698i | E24: 0.0000376991118430775i | F24: 0.0000471238898038469i | G24: 0.0000565486677646163i | H24: 0.0000659734457253857i | I24: 0.000075398223686155i | J24: 0.0000848230016469244i | K24: 0.0000942477796076938i | L24: 0.000103672557568463i | M24: 0.000113097335529233i | N24: 0.000131946891450771i | O24: 0.00015079644737231i | P24: 0.000169646003293849i | Q24: 0.000188495559215388i | R24: 0.000207345115136926i | S24: 0.000226194671058465i | T24: 0.000245044226980004i | U24: 0.000263893782901543i | V24: 0.000282743338823081i | W24: 0.00030159289474462i | X24: 0.000320442450666159i | Y24: 0.000339292006587698i | Z24: 0.000358141562509236i | AA24: 0.000414690230273853i | AB24: 0.00045238934211693i | AC24: 0.000490088453960008i | AD24: 0.000527787565803085i | AE24: 0.000565486677646163i
A25: Z | B25: =IMDIV(1,IMSUM(B23,B24)) -> 40.7920830543544+713.873997516485i | C25: 68.5323912728711+882.41578251914i | D25: 289.933704285303+1420.2055576736i | E25: 415.883761978305+1581.32895742117i | F25: 793.936636979043+1898.23456801017i | G25: 1205.08900011813+2095.11180208821i | H25: 1606.60205047888+2199.18149841979i | I25: 1991.09292207016+2240.07895161263i | J25: 2357.69292769399+2233.23850520193i | K25: 2713.3092935907+2186.35924225151i | L25: 3056.68570306998+2096.35346937715i | M25: 3388.879380898+1967.41075434507i | N25: 3996.20268256261+1585.09238796988i | O25: 4490.15284498617+1045.97687481507i | P25: 4820.50420225915+380.214124441619i | Q25: 4943.99685031565-346.868277798432i | R25: 4858.04306617513-1053.56629584266i | S25: 4597.82453160748-1671.59807301302i | T25: 4218.39103068108-2154.98997883934i | U25: 3786.53374036606-2493.52561768048i | V25: 3349.49726039398-2707.97576214881i | W25: 2936.54376501013-2818.86992427686i | X25: 2565.31602567699-2855.56307338761i | Y25: 2240.00125695882-2840.24820506888i | Z25: 1959.35464485901-2790.73325469i | AA25: 1339.59376827998-2548.6705908352i | AB25: 1063.47746983415-2369.32780415041i | AC25: 860.116707889583-2198.27333687256i | AD25: 707.676787354301-2042.27494886844i | AE25: 591.127466714306-1902.75186188659i
A26: R | B26: =IMREAL(B25) -> 40.79208305 | C26: 68.53239127 | D26: 289.9337043 | E26: 415.883762 | F26: 793.936637 | G26: 1205.089 | H26: 1606.60205 | I26: 1991.092922 | J26: 2357.692928 | K26: 2713.309294 | L26: 3056.685703 | M26: 3388.879381 | N26: 3996.202683 | O26: 4490.152845 | P26: 4820.504202 | Q26: 4943.99685 | R26: 4858.043066 | S26: 4597.824532 | T26: 4218.391031 | U26: 3786.53374 | V26: 3349.49726 | W26: 2936.543765 | X26: 2565.316026 | Y26: 2240.001257 | Z26: 1959.354645 | AA26: 1339.593768 | AB26: 1063.47747 | AC26: 860.1167079 | AD26: 707.6767874 | AE26: 591.1274667
A27: X | B27: =IMAGINARY(B25) -> 713.8739975 | C27: 882.4157825 | D27: 1420.205558 | E27: 1581.328957 | F27: 1898.234568 | G27: 2095.111802 | H27: 2199.181498 | I27: 2240.078952 | J27: 2233.238505 | K27: 2186.359242 | L27: 2096.353469 | M27: 1967.410754 | N27: 1585.092388 | O27: 1045.976875 | P27: 380.2141244 | Q27: -346.8682778 | R27: -1053.566296 | S27: -1671.598073 | T27: -2154.989979 | U27: -2493.525618 | V27: -2707.975762 | W27: -2818.869924 | X27: -2855.563073 | Y27: -2840.248205 | Z27: -2790.733255 | AA27: -2548.670591 | AB27: -2369.327804 | AC27: -2198.273337 | AD27: -2042.274949 | AE27: -1902.751862
A28: |Z| | B28: =IMABS(B25) -> 715.0385153 | C28: 885.0730489 | D28: 1449.49832 | E28: 1635.102619 | F28: 2057.57864 | G28: 2416.96772 | H28: 2723.521509 | I28: 2997.066021 | J28: 3247.471349 | K28: 3484.567987 | L28: 3706.484231 | M28: 3918.572257 | N28: 4299.08755 | O28: 4610.373108 | P28: 4835.475524 | Q28: 4956.149963 | R28: 4970.974187 | S28: 4892.262313 | T28: 4736.961547 | U28: 4533.818233 | V28: 4307.233988 | W28: 4070.542585 | X28: 3838.630847 | Y28: 3617.266302 | Z28: 3409.87723 | AA28: 2879.276514 | AB28: 2597.055751 | AC28: 2360.552142 | AD28: 2161.41005 | AE28: 1992.459869
A32: Module | B32: Version | C32: Date
A33: CubicSpline | B33: =CubicSpline_version("v") -> 1.04 | C33: =CubicSpline_version("d") -> 2014-03-07
A35: Copyright: Owen Duffy 2010. All rights reserved.

Sheet FB2401-43 x 25
A1: Calculate impedance of ferrite cored inductor
A3: Reference:
A4: A method for estimating the impedance of a ferrite cored toroidal inductor at RF
A6: Inputs:
A7: Al (nH for 1t) | B7: =25*579 -> 14475
A8: N | B8: 1
A9: Cs (pF) | B9: 0.2
A11: Constants:
A12: Mix | B12: =Mix!B1 -> #43
A13: µi | B13: =Mix!B2 -> 800
A15: Calculated values:
A16: 2*pi*N^2*Al | B16: =2*PI()*$B$8^2*$B$7*0.000000001 -> 9.094910732e-05
A18: f (MHz) | B18: 1 | C18: 1.2 | D18: 1.8 | E18: 2 | F18: 2.5 | G18: 3 | H18: 3.5 | I18: 4 | J18: 4.5 | K18: 5 | L18: 5.5 | M18: 6 | N18: =M18+1 -> 7 | O18: 8 | P18: 9 | Q18: 10 | R18: 11 | S18: 12 | T18: 13 | U18: 14 | V18: 15 | W18: 16 | X18: 17 | Y18: 18 | Z18: 19 | AA18: 22 | AB18: 24 | AC18: 26 | AD18: 28 | AE18: 30
A19: µ'' | B19: =csinterpolate(CSTableU2,'FB2401-43 x 25'!B18*1000000) -> 48 | C19: =csinterpolate(CSTableU2,'FB2401-43 x 25'!C18*1000000) -> 66.34728052 | D19: =csinterpolate(CSTableU2,'FB2401-43 x 25'!D18*1000000) -> 177.1684779 | E19: =csinterpolate(CSTableU2,'FB2401-43 x 25'!E18*1000000) -> 223.7827102 | F19: =csinterpolate(CSTableU2,'FB2401-43 x 25'!F18*1000000) -> 322.9930506 | G19: =csinterpolate(CSTableU2,'FB2401-43 x 25'!G18*1000000) -> 386.6438261 | H19: =csinterpolate(CSTableU2,'FB2401-43 x 25'!H18*1000000) -> 419.5012637 | I19: =csinterpolate(CSTableU2,'FB2401-43 x 25'!I18*1000000) -> 433.1603156 | J19: =csinterpolate(CSTableU2,'FB2401-43 x 25'!J18*1000000) -> 435.2766986 | K19: =csinterpolate(CSTableU2,'FB2401-43 x 25'!K18*1000000) -> 431.4880033 | L19: =csinterpolate(CSTableU2,'FB2401-43 x 25'!L18*1000000) -> 424.4905265 | M19: =csinterpolate(CSTableU2,'FB2401-43 x 25'!M18*1000000) -> 415.8713691 | N19: =csinterpolate(CSTableU2,'FB2401-43 x 25'!N18*1000000) -> 396.5138191 | O19: =csinterpolate(CSTableU2,'FB2401-43 x 25'!O18*1000000) -> 377.106132 | P19: =csinterpolate(CSTableU2,'FB2401-43 x 25'!P18*1000000) -> 359.2430163 | Q19: =csinterpolate(CSTableU2,'FB2401-43 x 25'!Q18*1000000) -> 343.0117781 | R19: =csinterpolate(CSTableU2,'FB2401-43 x 25'!R18*1000000) -> 328.3746682 | S19: =csinterpolate(CSTableU2,'FB2401-43 x 25'!S18*1000000) -> 315.3658178 | T19: =csinterpolate(CSTableU2,'FB2401-43 x 25'!T18*1000000) -> 303.7191219 | U19: =csinterpolate(CSTableU2,'FB2401-43 x 25'!U18*1000000) -> 293.0529962 | V19: =csinterpolate(CSTableU2,'FB2401-43 x 25'!V18*1000000) -> 283.5383128 | W19: =csinterpolate(CSTableU2,'FB2401-43 x 25'!W18*1000000) -> 274.9277293 | X19: =csinterpolate(CSTableU2,'FB2401-43 x 25'!X18*1000000) -> 267.0371058 | Y19: =csinterpolate(CSTableU2,'FB2401-43 x 25'!Y18*1000000) -> 259.7864612 | Z19: =csinterpolate(CSTableU2,'FB2401-43 x 25'!Z18*1000000) -> 253.1041337 | AA19: =csinterpolate(CSTableU2,'FB2401-43 x 25'!AA18*1000000) -> 235.992491 | AB19: =csinterpolate(CSTableU2,'FB2401-43 x 25'!AB18*1000000) -> 226.3232666 | AC19: =csinterpolate(CSTableU2,'FB2401-43 x 25'!AC18*1000000) -> 217.6777977 | AD19: =csinterpolate(CSTableU2,'FB2401-43 x 25'!AD18*1000000) -> 209.8349532 | AE19: =csinterpolate(CSTableU2,'FB2401-43 x 25'!AE18*1000000) -> 202.6519482
A20: µ' | B20: =csinterpolate(CSTableU1,'FB2401-43 x 25'!B18*1000000) -> 851.3550816 | C20: =csinterpolate(CSTableU1,'FB2401-43 x 25'!C18*1000000) -> 871.4346251 | D20: =csinterpolate(CSTableU1,'FB2401-43 x 25'!D18*1000000) -> 911.3994861 | E20: =csinterpolate(CSTableU1,'FB2401-43 x 25'!E18*1000000) -> 905.1311106 | F20: =csinterpolate(CSTableU1,'FB2401-43 x 25'!F18*1000000) -> 853.4123573 | G20: =csinterpolate(CSTableU1,'FB2401-43 x 25'!G18*1000000) -> 778.1888488 | H20: =csinterpolate(CSTableU1,'FB2401-43 x 25'!H18*1000000) -> 702.0080995 | I20: =csinterpolate(CSTableU1,'FB2401-43 x 25'!I18*1000000) -> 634.6636583 | J20: =csinterpolate(CSTableU1,'FB2401-43 x 25'!J18*1000000) -> 577.4514338 | K20: =csinterpolate(CSTableU1,'FB2401-43 x 25'!K18*1000000) -> 529.675187 | L20: =csinterpolate(CSTableU1,'FB2401-43 x 25'!L18*1000000) -> 488.9169538 | M20: =csinterpolate(CSTableU1,'FB2401-43 x 25'!M18*1000000) -> 454.5472546 | N20: =csinterpolate(CSTableU1,'FB2401-43 x 25'!N18*1000000) -> 399.2476453 | O20: =csinterpolate(CSTableU1,'FB2401-43 x 25'!O18*1000000) -> 357.0407356 | P20: =csinterpolate(CSTableU1,'FB2401-43 x 25'!P18*1000000) -> 323.9442133 | Q20: =csinterpolate(CSTableU1,'FB2401-43 x 25'!Q18*1000000) -> 297.1679836 | R20: =csinterpolate(CSTableU1,'FB2401-43 x 25'!R18*1000000) -> 275.111228 | S20: =csinterpolate(CSTableU1,'FB2401-43 x 25'!S18*1000000) -> 256.6781559 | T20: =csinterpolate(CSTableU1,'FB2401-43 x 25'!T18*1000000) -> 240.7287006 | U20: =csinterpolate(CSTableU1,'FB2401-43 x 25'!U18*1000000) -> 226.836019 | V20: =csinterpolate(CSTableU1,'FB2401-43 x 25'!V18*1000000) -> 214.806455 | W20: =csinterpolate(CSTableU1,'FB2401-43 x 25'!W18*1000000) -> 203.9404692 | X20: =csinterpolate(CSTableU1,'FB2401-43 x 25'!X18*1000000) -> 194.2608374 | Y20: =csinterpolate(CSTableU1,'FB2401-43 x 25'!Y18*1000000) -> 185.4755118 | Z20: =csinterpolate(CSTableU1,'FB2401-43 x 25'!Z18*1000000) -> 177.4214996 | AA20: =csinterpolate(CSTableU1,'FB2401-43 x 25'!AA18*1000000) -> 156.6493138 | AB20: =csinterpolate(CSTableU1,'FB2401-43 x 25'!AB18*1000000) -> 145.1185194 | AC20: =csinterpolate(CSTableU1,'FB2401-43 x 25'!AC18*1000000) -> 134.7902491 | AD20: =csinterpolate(CSTableU1,'FB2401-43 x 25'!AD18*1000000) -> 125.5394248 | AE20: =csinterpolate(CSTableU1,'FB2401-43 x 25'!AE18*1000000) -> 117.3042198
A21: Rl | B21: =B19/$B$13*$B$16*B18*1000000 -> 5.456946439 | C21: 9.051338905 | D21: 36.25495855 | E21: 50.88209431 | F21: 91.79978006 | G21: 131.8684156 | H21: 166.9205363 | I21: 196.9777201 | J21: 222.6826529 | K21: 245.2715545 | L21: 265.4233618 | M21: 283.6734734 | N21: 315.5475565 | O21: 342.9746607 | P21: 367.569356 | Q21: 389.9576877 | R21: 410.6490154 | S21: 430.2335941 | T21: 448.8734739 | U21: 466.425897 | V21: 483.5166833 | W21: 500.0886311 | X21: 516.0942108 | Y21: 531.6153016 | Z21: 546.7153818 | AA21: 590.2409259 | AB21: 617.5169718 | AC21: 643.4220451 | AD21: 667.9505589 | AE21: 691.163017
A22: Xl | B22: =B20/$B$13*$B$16*B18*1000000 -> 96.78748086 | C22: 118.8843019 | D22: 186.5046818 | E22: 205.8021663 | F22: 242.5534127 | G22: 265.4084292 | H22: 279.3306687 | I22: 288.6104659 | J22: 295.4176449 | K22: 301.0842839 | L22: 305.7076034 | M22: 310.0550028 | N22: 317.7231482 | O22: 324.7253618 | P22: 331.4524165 | Q22: 337.8395354 | R22: 344.0404083 | S22: 350.1697372 | T22: 355.7784819 | U22: 361.0343352 | V22: 366.3085375 | W22: 370.9640723 | X22: 375.4418073 | Y22: 379.5487251 | Z22: 383.2377665 | AA22: 391.7956695 | AB22: 395.9519939 | AC22: 398.4192169 | AD22: 399.6194515 | AE22: 400.0767778
A23: Yl | B23: =IMDIV(1,COMPLEX(B21,B22)) -> 0.000580674800818879-0.0102991758840463i | C23: 0.000636727519446878-0.00836306179899705i | D23: 0.00100433648383629-0.00516656103877155i | E23: 0.0011321341818602-0.00457912887305921i | F23: 0.00136486257493675-0.00360624039870999i | G23: 0.0015013895519019-0.00302181110410112i | H23: 0.00157638634928554-0.00263798009931293i | I23: 0.00161329904324568-0.002363795195277i | J23: 0.00162709365667174-0.00215855240562219i | K23: 0.00162636262370152-0.0019964493109532i | L23: 0.00161935639089867-0.00186513183284028i | M23: 0.0016062619072947-0.00175564367825584i | N23: 0.00157365996279798-0.00158450980625534i | O23: 0.00153746396459834-0.00145565722282869i | P23: 0.00150047945956789-0.00135304408448779i | Q23: 0.00146489088051519-0.00126910705978657i | R23: 0.00143085067264532-0.00119876203555564i | S23: 0.00139813430143714-0.00113795000562591i | T23: 0.0013682425241033-0.00108447318976194i | U23: 0.00134069376336939-0.00103775644684037i | V23: 0.00131400998108437-0.000995483901667125i | W23: 0.00128987563782208-0.000956825429807039i | X23: 0.00126708031511937-0.000921759852135226i | Y23: 0.00124595760290711-0.000889556072411183i | Z23: 0.00122645475878849-0.000859722989540567i | AA23: 0.00117604065844109-0.000780643321903378i | AB23: 0.00114757668394773-0.000735826377061279i | AC23: 0.00112343035843032-0.000695649530687699i | AD23: 0.001102494889994-0.000659597327067584i | AE23: 0.0010837221280475-0.000627307952484536i
A24: Yc | B24: =COMPLEX(0,2*PI()*B18*1000000*$B$9*0.000000000001) -> 1.25663706143592E-06i | C24: 0.0000015079644737231i | D24: 2.26194671058465E-06i | E24: 2.51327412287183E-06i | F24: 3.14159265358979E-06i | G24: 3.76991118430775E-06i | H24: 4.39822971502571E-06i | I24: 5.02654824574367E-06i | J24: 5.65486677646163E-06i | K24: 6.28318530717959E-06i | L24: 6.91150383789754E-06i | M24: 0.0000075398223686155i | N24: 8.79645943005142E-06i | O24: 0.0000100530964914873i | P24: 0.0000113097335529233i | Q24: 0.0000125663706143592i | R24: 0.0000138230076757951i | S24: 0.000015079644737231i | T24: 0.0000163362817986669i | U24: 0.0000175929188601028i | V24: 0.0000188495559215388i | W24: 0.0000201061929829747i | X24: 0.0000213628300444106i | Y24: 0.0000226194671058465i | Z24: 0.0000238761041672824i | AA24: 0.0000276460153515902i | AB24: 0.000030159289474462i | AC24: 0.0000326725635973338i | AD24: 0.0000351858377202057i | AE24: 0.0000376991118430775i
A25: Z | B25: =IMDIV(1,IMSUM(B23,B24)) -> 5.4582741024055+96.7992167995132i | C25: 9.0545851032901+118.905494859406i | D25: 36.285566973023+186.580417608573i | E25: 50.934770568095+205.90215298258i | F25: 91.9398360785839+242.711844904325i | G25: 132.132665649727+265.608500708973i | H25: 167.331346938923+279.551267183627i | I25: 197.550288835382+288.833883257878i | J25: 223.428169776058+295.630159239644i | K25: 246.201601450526+301.274808056929i | L25: 266.54765155415+305.864890242532i | M25: 285.003149719407+310.170528667771i | N25: 317.316329081441+317.730378048272i | O25: 345.220821183887+324.594693008834i | P25: 370.334250439258+331.154273371503i | Q25: 393.280434116016+337.344490497673i | R25: 414.569394346699+343.319861755888i | S25: 434.794983233042+349.192777284439i | T25: 454.112406537777+354.508950892978i | U25: 472.375761158583+359.441161137953i | V25: 490.222318983499+364.356405706475i | W25: 507.580837998655+368.609749075827i | X25: 524.408772126984+372.6489087923i | Y25: 540.782691501215+376.276295183776i | Z25: 556.76290949727+379.442079261333i | AA25: 603.074091619065+386.137301785362i | AB25: 632.309090838327+388.819083576705i | AC25: 660.206723157688+389.611912912269i | AD25: 686.748102510055+388.948202287925i | AE25: 711.995043776345+387.367353160694i
A26: R | B26: =IMREAL(B25) -> 5.458274102 | C26: 9.054585103 | D26: 36.28556697 | E26: 50.93477057 | F26: 91.93983608 | G26: 132.1326656 | H26: 167.3313469 | I26: 197.5502888 | J26: 223.4281698 | K26: 246.2016015 | L26: 266.5476516 | M26: 285.0031497 | N26: 317.3163291 | O26: 345.2208212 | P26: 370.3342504 | Q26: 393.2804341 | R26: 414.5693943 | S26: 434.7949832 | T26: 454.1124065 | U26: 472.3757612 | V26: 490.222319 | W26: 507.580838 | X26: 524.4087721 | Y26: 540.7826915 | Z26: 556.7629095 | AA26: 603.0740916 | AB26: 632.3090908 | AC26: 660.2067232 | AD26: 686.7481025 | AE26: 711.9950438
A27: X | B27: =IMAGINARY(B25) -> 96.7992168 | C27: 118.9054949 | D27: 186.5804176 | E27: 205.902153 | F27: 242.7118449 | G27: 265.6085007 | H27: 279.5512672 | I27: 288.8338833 | J27: 295.6301592 | K27: 301.2748081 | L27: 305.8648902 | M27: 310.1705287 | N27: 317.730378 | O27: 324.594693 | P27: 331.1542734 | Q27: 337.3444905 | R27: 343.3198618 | S27: 349.1927773 | T27: 354.5089509 | U27: 359.4411611 | V27: 364.3564057 | W27: 368.6097491 | X27: 372.6489088 | Y27: 376.2762952 | Z27: 379.4420793 | AA27: 386.1373018 | AB27: 388.8190836 | AC27: 389.6119129 | AD27: 388.9482023 | AE27: 387.3673532
A28: |Z| | B28: =IMABS(B25) -> 96.95298412 | C28: 119.2497472 | D28: 190.0760232 | E28: 212.1085747 | F28: 259.5418523 | G28: 296.6595978 | H28: 325.8046818 | I28: 349.9301769 | J28: 370.5635412 | K28: 389.0780623 | L28: 405.7104653 | M28: 421.2274352 | N28: 449.0459284 | O28: 473.8556005 | P28: 496.8003722 | Q28: 518.1416844 | R28: 538.2715952 | S28: 557.657846 | T28: 576.1030064 | U28: 593.579656 | V28: 610.7974398 | W28: 627.3049133 | X28: 643.3286637 | Y28: 658.8093577 | Z28: 673.7664498 | AA28: 716.100814 | AB28: 742.290419 | AC28: 766.5966084 | AD28: 789.2424598 | AE28: 810.5494486
A32: Module | B32: Version | C32: Date
A33: CubicSpline | B33: =CubicSpline_version("v") -> 1.04 | C33: =CubicSpline_version("d") -> 2014-03-07
A35: Copyright: Owen Duffy 2010. All rights reserved.

Sheet 2643167851x2
A1: Calculate impedance of ferrite cored inductor
A3: Reference:
A4: A method for estimating the impedance of a ferrite cored toroidal inductor at RF
A6: Inputs:
A7: Al (nH for 1t) | B7: =2*2300 -> 4600
A8: N | B8: 3
A9: Cs (pF) | B9: 3
A11: Constants:
A12: Mix | B12: =Mix!B1 -> #43
A13: µi | B13: =Mix!B2 -> 800
A15: Calculated values:
A16: 2*pi*N^2*Al | B16: =2*PI()*$B$8^2*$B$7*0.000000001 -> 0.0002601238717
A18: f (MHz) | B18: 1 | C18: 1.2 | D18: 1.8 | E18: 2 | F18: 2.5 | G18: 3 | H18: 3.5 | I18: 4 | J18: 4.5 | K18: 5 | L18: 5.5 | M18: 6 | N18: =M18+1 -> 7 | O18: 8 | P18: 9 | Q18: 10 | R18: 11 | S18: 12 | T18: 13 | U18: 14 | V18: 15 | W18: 16 | X18: 17 | Y18: 18 | Z18: 19 | AA18: 22 | AB18: 24 | AC18: 26 | AD18: 28 | AE18: 30
A19: µ'' | B19: =csinterpolate(CSTableU2,'2643167851x2'!B18*1000000) -> 48 | C19: =csinterpolate(CSTableU2,'2643167851x2'!C18*1000000) -> 66.34728052 | D19: =csinterpolate(CSTableU2,'2643167851x2'!D18*1000000) -> 177.1684779 | E19: =csinterpolate(CSTableU2,'2643167851x2'!E18*1000000) -> 223.7827102 | F19: =csinterpolate(CSTableU2,'2643167851x2'!F18*1000000) -> 322.9930506 | G19: =csinterpolate(CSTableU2,'2643167851x2'!G18*1000000) -> 386.6438261 | H19: =csinterpolate(CSTableU2,'2643167851x2'!H18*1000000) -> 419.5012637 | I19: =csinterpolate(CSTableU2,'2643167851x2'!I18*1000000) -> 433.1603156 | J19: =csinterpolate(CSTableU2,'2643167851x2'!J18*1000000) -> 435.2766986 | K19: =csinterpolate(CSTableU2,'2643167851x2'!K18*1000000) -> 431.4880033 | L19: =csinterpolate(CSTableU2,'2643167851x2'!L18*1000000) -> 424.4905265 | M19: =csinterpolate(CSTableU2,'2643167851x2'!M18*1000000) -> 415.8713691 | N19: =csinterpolate(CSTableU2,'2643167851x2'!N18*1000000) -> 396.5138191 | O19: =csinterpolate(CSTableU2,'2643167851x2'!O18*1000000) -> 377.106132 | P19: =csinterpolate(CSTableU2,'2643167851x2'!P18*1000000) -> 359.2430163 | Q19: =csinterpolate(CSTableU2,'2643167851x2'!Q18*1000000) -> 343.0117781 | R19: =csinterpolate(CSTableU2,'2643167851x2'!R18*1000000) -> 328.3746682 | S19: =csinterpolate(CSTableU2,'2643167851x2'!S18*1000000) -> 315.3658178 | T19: =csinterpolate(CSTableU2,'2643167851x2'!T18*1000000) -> 303.7191219 | U19: =csinterpolate(CSTableU2,'2643167851x2'!U18*1000000) -> 293.0529962 | V19: =csinterpolate(CSTableU2,'2643167851x2'!V18*1000000) -> 283.5383128 | W19: =csinterpolate(CSTableU2,'2643167851x2'!W18*1000000) -> 274.9277293 | X19: =csinterpolate(CSTableU2,'2643167851x2'!X18*1000000) -> 267.0371058 | Y19: =csinterpolate(CSTableU2,'2643167851x2'!Y18*1000000) -> 259.7864612 | Z19: =csinterpolate(CSTableU2,'2643167851x2'!Z18*1000000) -> 253.1041337 | AA19: =csinterpolate(CSTableU2,'2643167851x2'!AA18*1000000) -> 235.992491 | AB19: =csinterpolate(CSTableU2,'2643167851x2'!AB18*1000000) -> 226.3232666 | AC19: =csinterpolate(CSTableU2,'2643167851x2'!AC18*1000000) -> 217.6777977 | AD19: =csinterpolate(CSTableU2,'2643167851x2'!AD18*1000000) -> 209.8349532 | AE19: =csinterpolate(CSTableU2,'2643167851x2'!AE18*1000000) -> 202.6519482
A20: µ' | B20: =csinterpolate(CSTableU1,'2643167851x2'!B18*1000000) -> 851.3550816 | C20: =csinterpolate(CSTableU1,'2643167851x2'!C18*1000000) -> 871.4346251 | D20: =csinterpolate(CSTableU1,'2643167851x2'!D18*1000000) -> 911.3994861 | E20: =csinterpolate(CSTableU1,'2643167851x2'!E18*1000000) -> 905.1311106 | F20: =csinterpolate(CSTableU1,'2643167851x2'!F18*1000000) -> 853.4123573 | G20: =csinterpolate(CSTableU1,'2643167851x2'!G18*1000000) -> 778.1888488 | H20: =csinterpolate(CSTableU1,'2643167851x2'!H18*1000000) -> 702.0080995 | I20: =csinterpolate(CSTableU1,'2643167851x2'!I18*1000000) -> 634.6636583 | J20: =csinterpolate(CSTableU1,'2643167851x2'!J18*1000000) -> 577.4514338 | K20: =csinterpolate(CSTableU1,'2643167851x2'!K18*1000000) -> 529.675187 | L20: =csinterpolate(CSTableU1,'2643167851x2'!L18*1000000) -> 488.9169538 | M20: =csinterpolate(CSTableU1,'2643167851x2'!M18*1000000) -> 454.5472546 | N20: =csinterpolate(CSTableU1,'2643167851x2'!N18*1000000) -> 399.2476453 | O20: =csinterpolate(CSTableU1,'2643167851x2'!O18*1000000) -> 357.0407356 | P20: =csinterpolate(CSTableU1,'2643167851x2'!P18*1000000) -> 323.9442133 | Q20: =csinterpolate(CSTableU1,'2643167851x2'!Q18*1000000) -> 297.1679836 | R20: =csinterpolate(CSTableU1,'2643167851x2'!R18*1000000) -> 275.111228 | S20: =csinterpolate(CSTableU1,'2643167851x2'!S18*1000000) -> 256.6781559 | T20: =csinterpolate(CSTableU1,'2643167851x2'!T18*1000000) -> 240.7287006 | U20: =csinterpolate(CSTableU1,'2643167851x2'!U18*1000000) -> 226.836019 | V20: =csinterpolate(CSTableU1,'2643167851x2'!V18*1000000) -> 214.806455 | W20: =csinterpolate(CSTableU1,'2643167851x2'!W18*1000000) -> 203.9404692 | X20: =csinterpolate(CSTableU1,'2643167851x2'!X18*1000000) -> 194.2608374 | Y20: =csinterpolate(CSTableU1,'2643167851x2'!Y18*1000000) -> 185.4755118 | Z20: =csinterpolate(CSTableU1,'2643167851x2'!Z18*1000000) -> 177.4214996 | AA20: =csinterpolate(CSTableU1,'2643167851x2'!AA18*1000000) -> 156.6493138 | AB20: =csinterpolate(CSTableU1,'2643167851x2'!AB18*1000000) -> 145.1185194 | AC20: =csinterpolate(CSTableU1,'2643167851x2'!AC18*1000000) -> 134.7902491 | AD20: =csinterpolate(CSTableU1,'2643167851x2'!AD18*1000000) -> 125.5394248 | AE20: =csinterpolate(CSTableU1,'2643167851x2'!AE18*1000000) -> 117.3042198
A21: Rl | B21: =B19/$B$13*$B$16*B18*1000000 -> 15.6074323 | C21: 25.88776723 | D21: 103.6929384 | E21: 145.5280625 | F21: 262.5568839 | G21: 377.1573338 | H21: 477.4100314 | I21: 563.3766918 | J21: 636.8954632 | K21: 701.5020625 | L21: 759.1383199 | M21: 811.33553 | N21: 902.4987108 | O21: 980.9430711 | P21: 1051.286448 | Q21: 1115.319397 | R21: 1174.498738 | S21: 1230.512663 | T21: 1283.824651 | U21: 1334.0264 | V21: 1382.90782 | W21: 1430.305308 | X21: 1476.082924 | Y21: 1520.474852 | Z21: 1563.662646 | AA21: 1688.150213 | AB21: 1766.162531 | AC21: 1840.253725 | AD21: 1910.407816 | AE21: 1976.797852
A22: Xl | B22: =B20/$B$13*$B$16*B18*1000000 -> 276.822225 | C22: 340.021423 | D22: 533.4227168 | E22: 588.6155222 | F22: 693.7278955 | G22: 759.095611 | H22: 798.9146586 | I22: 825.4558402 | J22: 844.9250776 | K22: 861.1322524 | L22: 874.3554254 | M22: 886.7894381 | N22: 908.7211285 | O22: 928.748185 | P22: 947.9882585 | Q22: 966.2560806 | R22: 983.9912195 | S22: 1001.521735 | T22: 1017.563326 | U22: 1032.595612 | V22: 1047.680377 | W22: 1060.995689 | X22: 1073.802475 | Y22: 1085.548685 | Z22: 1096.099726 | AA22: 1120.576215 | AB22: 1132.463734 | AC22: 1139.520247 | AD22: 1142.953043 | AE22: 1144.261043
A23: Yl | B23: =IMDIV(1,COMPLEX(B21,B22)) -> 0.000203025790866021-0.00360097997395095i | C23: 0.000222623933429797-0.00292404153479426i | D23: 0.000351153879312324-0.00180642442116469i | E23: 0.000395836770106916-0.00160103600090657i | F23: 0.000477207385802162-0.00126087753070838i | G23: 0.000524942361443962-0.0010565390273397i | H23: 0.000551164067775559-0.000922337244868469i | I23: 0.000564070136497133-0.000826471870812428i | J23: 0.000568893253147911-0.000754711257762834i | K23: 0.000568637656475351-0.000698033907633997i | L23: 0.000566188013484498-0.000652120369090894i | M23: 0.000561609688601226-0.000613839184607568i | N23: 0.000550210820326107-0.000554004334433478i | O23: 0.000537555335448334-0.000508952615952786i | P23: 0.000524624158870659-0.000473075196206782i | Q23: 0.000512181050614913-0.000443727649526825i | R23: 0.000500279311269105-0.000419132378373619i | S23: 0.00048884043510393-0.000397870201242391i | T23: 0.000478389143391188-0.000379172691347925i | U23: 0.000468757058569369-0.000362838757681506i | V23: 0.000459427402806672-0.000348058683010425i | W23: 0.00045098912699214-0.000334542224552099i | X23: 0.000443019023221085-0.000322281977286412i | Y23: 0.000435633727103392-0.000311022322419128i | Z23: 0.000428814797909742-0.000300591552502409i | AA23: 0.000411188128766539-0.000272942320882882i | AB23: 0.000401236050728103-0.000257272628211643i | AC23: 0.000392793585465672-0.000243225288809285i | AD23: 0.000385473756827612-0.000230620079934861i | AE23: 0.00037891009187168-0.000219330497879557i
A24: Yc | B24: =COMPLEX(0,2*PI()*B18*1000000*$B$9*0.000000000001) -> 0.0000188495559215388i | C24: 0.0000226194671058465i | D24: 0.0000339292006587698i | E24: 0.0000376991118430775i | F24: 0.0000471238898038469i | G24: 0.0000565486677646163i | H24: 0.0000659734457253857i | I24: 0.000075398223686155i | J24: 0.0000848230016469244i | K24: 0.0000942477796076938i | L24: 0.000103672557568463i | M24: 0.000113097335529233i | N24: 0.000131946891450771i | O24: 0.00015079644737231i | P24: 0.000169646003293849i | Q24: 0.000188495559215388i | R24: 0.000207345115136926i | S24: 0.000226194671058465i | T24: 0.000245044226980004i | U24: 0.000263893782901543i | V24: 0.000282743338823081i | W24: 0.00030159289474462i | X24: 0.000320442450666159i | Y24: 0.000339292006587698i | Z24: 0.000358141562509236i | AA24: 0.000414690230273853i | AB24: 0.00045238934211693i | AC24: 0.000490088453960008i | AD24: 0.000527787565803085i | AE24: 0.000565486677646163i
A25: Z | B25: =IMDIV(1,IMSUM(B23,B24)) -> 15.7715931095356+278.269589186i | C25: 26.2906106559213+342.641317826453i | D25: 107.549365667849+542.869516315822i | E25: 152.203408211253+601.119503459902i | F25: 280.557605276454+713.584544202603i | G25: 411.543519263251+783.970930973887i | H25: 531.426470897561+825.696771960753i | I25: 639.327453827069+851.280667747762i | J25: 736.536456594592+867.292975868112i | K25: 826.620593050813+877.7154336183i | L25: 911.202022063008+882.651597973035i | M25: 991.984155350819+884.471885525971i | N25: 1144.21193112452+877.705679423922i | O25: 1288.3551436939+858.390404871549i | P25: 1428.32689506362+826.10773761915i | Q25: 1564.04127214883+779.39924318684i | R25: 1695.0964966875+717.598829031814i | S25: 1821.05894442029+639.536415830797i | T25: 1938.00161532583+543.3676415889i | U25: 2042.30717792804+431.089043927694i | V25: 2133.50137725588+303.313158789267i | W25: 2205.57547119293+161.13965784565i | X25: 2257.20049633544+9.37246525006493i | Y25: 2285.88023532407-148.338175580356i | Z25: 2290.74911413164-307.43489983094i | AA25: 2173.66472721472-749.32229129241i | AB25: 2015.64470884494-980.186030833291i | AC25: 1825.00965637397-1146.98324227722i | AD25: 1627.16819644691-1254.40830525619i | AE25: 1438.55150800173-1314.19960853407i
A26: R | B26: =IMREAL(B25) -> 15.77159311 | C26: 26.29061066 | D26: 107.5493657 | E26: 152.2034082 | F26: 280.5576053 | G26: 411.5435193 | H26: 531.4264709 | I26: 639.3274538 | J26: 736.5364566 | K26: 826.6205931 | L26: 911.2020221 | M26: 991.9841554 | N26: 1144.211931 | O26: 1288.355144 | P26: 1428.326895 | Q26: 1564.041272 | R26: 1695.096497 | S26: 1821.058944 | T26: 1938.001615 | U26: 2042.307178 | V26: 2133.501377 | W26: 2205.575471 | X26: 2257.200496 | Y26: 2285.880235 | Z26: 2290.749114 | AA26: 2173.664727 | AB26: 2015.644709 | AC26: 1825.009656 | AD26: 1627.168196 | AE26: 1438.551508
A27: X | B27: =IMAGINARY(B25) -> 278.2695892 | C27: 342.6413178 | D27: 542.8695163 | E27: 601.1195035 | F27: 713.5845442 | G27: 783.970931 | H27: 825.696772 | I27: 851.2806677 | J27: 867.2929759 | K27: 877.7154336 | L27: 882.651598 | M27: 884.4718855 | N27: 877.7056794 | O27: 858.3904049 | P27: 826.1077376 | Q27: 779.3992432 | R27: 717.598829 | S27: 639.5364158 | T27: 543.3676416 | U27: 431.0890439 | V27: 303.3131588 | W27: 161.1396578 | X27: 9.37246525 | Y27: -148.3381756 | Z27: -307.4348998 | AA27: -749.3222913 | AB27: -980.1860308 | AC27: -1146.983242 | AD27: -1254.408305 | AE27: -1314.199609
A28: |Z| | B28: =IMABS(B25) -> 278.7161772 | C28: 343.648467 | D28: 553.4204349 | E28: 620.0891347 | F28: 766.7564617 | G28: 885.4255976 | H28: 981.9313893 | I28: 1064.621232 | J28: 1137.841403 | K28: 1205.689009 | L28: 1268.606704 | M28: 1329.03088 | N28: 1442.077738 | O28: 1548.125661 | P28: 1650.021731 | Q28: 1747.480552 | R28: 1840.733607 | S28: 1930.093911 | T28: 2012.734124 | U28: 2087.308404 | V28: 2154.95406 | W28: 2211.45408 | X28: 2257.219955 | Y28: 2290.688251 | Z28: 2311.287027 | AA28: 2299.195999 | AB28: 2241.336264 | AC28: 2155.511727 | AD28: 2054.559937 | AE28: 1948.474032
A32: Module | B32: Version | C32: Date
A33: CubicSpline | B33: =CubicSpline_version("v") -> 1.04 | C33: =CubicSpline_version("d") -> 2014-03-07
A35: Copyright: Owen Duffy 2010. All rights reserved.

Sheet 2643625002
A1: Calculate impedance of ferrite cored inductor
A3: Reference:
A4: A method for estimating the impedance of a ferrite cored toroidal inductor at RF
A6: Inputs:
A7: Al (nH for 1t) | B7: 1660
A8: N | B8: 4
A9: Cs (pF) | B9: 0
A11: Constants:
A12: Mix | B12: =Mix!B1 -> #43
A13: µi | B13: =Mix!B2 -> 800
A15: Calculated values:
A16: 2*pi*N^2*Al | B16: =2*PI()*$B$8^2*$B$7*0.000000001 -> 0.0001668814018
A18: f (MHz) | B18: 1 | C18: 1.2 | D18: 1.8 | E18: 2 | F18: 2.5 | G18: 3 | H18: 3.5 | I18: 4 | J18: 4.5 | K18: 5 | L18: 5.5 | M18: 6 | N18: =M18+1 -> 7 | O18: 8 | P18: 9 | Q18: 10 | R18: 11 | S18: 12 | T18: 13 | U18: 14 | V18: 15 | W18: 16 | X18: 17 | Y18: 18 | Z18: 19 | AA18: 22 | AB18: 24 | AC18: 26 | AD18: 28 | AE18: 30
A19: µ'' | B19: =csinterpolate(CSTableU2,'2643625002'!B18*1000000) -> 48 | C19: =csinterpolate(CSTableU2,'2643625002'!C18*1000000) -> 66.34728052 | D19: =csinterpolate(CSTableU2,'2643625002'!D18*1000000) -> 177.1684779 | E19: =csinterpolate(CSTableU2,'2643625002'!E18*1000000) -> 223.7827102 | F19: =csinterpolate(CSTableU2,'2643625002'!F18*1000000) -> 322.9930506 | G19: =csinterpolate(CSTableU2,'2643625002'!G18*1000000) -> 386.6438261 | H19: =csinterpolate(CSTableU2,'2643625002'!H18*1000000) -> 419.5012637 | I19: =csinterpolate(CSTableU2,'2643625002'!I18*1000000) -> 433.1603156 | J19: =csinterpolate(CSTableU2,'2643625002'!J18*1000000) -> 435.2766986 | K19: =csinterpolate(CSTableU2,'2643625002'!K18*1000000) -> 431.4880033 | L19: =csinterpolate(CSTableU2,'2643625002'!L18*1000000) -> 424.4905265 | M19: =csinterpolate(CSTableU2,'2643625002'!M18*1000000) -> 415.8713691 | N19: =csinterpolate(CSTableU2,'2643625002'!N18*1000000) -> 396.5138191 | O19: =csinterpolate(CSTableU2,'2643625002'!O18*1000000) -> 377.106132 | P19: =csinterpolate(CSTableU2,'2643625002'!P18*1000000) -> 359.2430163 | Q19: =csinterpolate(CSTableU2,'2643625002'!Q18*1000000) -> 343.0117781 | R19: =csinterpolate(CSTableU2,'2643625002'!R18*1000000) -> 328.3746682 | S19: =csinterpolate(CSTableU2,'2643625002'!S18*1000000) -> 315.3658178 | T19: =csinterpolate(CSTableU2,'2643625002'!T18*1000000) -> 303.7191219 | U19: =csinterpolate(CSTableU2,'2643625002'!U18*1000000) -> 293.0529962 | V19: =csinterpolate(CSTableU2,'2643625002'!V18*1000000) -> 283.5383128 | W19: =csinterpolate(CSTableU2,'2643625002'!W18*1000000) -> 274.9277293 | X19: =csinterpolate(CSTableU2,'2643625002'!X18*1000000) -> 267.0371058 | Y19: =csinterpolate(CSTableU2,'2643625002'!Y18*1000000) -> 259.7864612 | Z19: =csinterpolate(CSTableU2,'2643625002'!Z18*1000000) -> 253.1041337 | AA19: =csinterpolate(CSTableU2,'2643625002'!AA18*1000000) -> 235.992491 | AB19: =csinterpolate(CSTableU2,'2643625002'!AB18*1000000) -> 226.3232666 | AC19: =csinterpolate(CSTableU2,'2643625002'!AC18*1000000) -> 217.6777977 | AD19: =csinterpolate(CSTableU2,'2643625002'!AD18*1000000) -> 209.8349532 | AE19: =csinterpolate(CSTableU2,'2643625002'!AE18*1000000) -> 202.6519482
A20: µ' | B20: =csinterpolate(CSTableU1,'2643625002'!B18*1000000) -> 851.3550816 | C20: =csinterpolate(CSTableU1,'2643625002'!C18*1000000) -> 871.4346251 | D20: =csinterpolate(CSTableU1,'2643625002'!D18*1000000) -> 911.3994861 | E20: =csinterpolate(CSTableU1,'2643625002'!E18*1000000) -> 905.1311106 | F20: =csinterpolate(CSTableU1,'2643625002'!F18*1000000) -> 853.4123573 | G20: =csinterpolate(CSTableU1,'2643625002'!G18*1000000) -> 778.1888488 | H20: =csinterpolate(CSTableU1,'2643625002'!H18*1000000) -> 702.0080995 | I20: =csinterpolate(CSTableU1,'2643625002'!I18*1000000) -> 634.6636583 | J20: =csinterpolate(CSTableU1,'2643625002'!J18*1000000) -> 577.4514338 | K20: =csinterpolate(CSTableU1,'2643625002'!K18*1000000) -> 529.675187 | L20: =csinterpolate(CSTableU1,'2643625002'!L18*1000000) -> 488.9169538 | M20: =csinterpolate(CSTableU1,'2643625002'!M18*1000000) -> 454.5472546 | N20: =csinterpolate(CSTableU1,'2643625002'!N18*1000000) -> 399.2476453 | O20: =csinterpolate(CSTableU1,'2643625002'!O18*1000000) -> 357.0407356 | P20: =csinterpolate(CSTableU1,'2643625002'!P18*1000000) -> 323.9442133 | Q20: =csinterpolate(CSTableU1,'2643625002'!Q18*1000000) -> 297.1679836 | R20: =csinterpolate(CSTableU1,'2643625002'!R18*1000000) -> 275.111228 | S20: =csinterpolate(CSTableU1,'2643625002'!S18*1000000) -> 256.6781559 | T20: =csinterpolate(CSTableU1,'2643625002'!T18*1000000) -> 240.7287006 | U20: =csinterpolate(CSTableU1,'2643625002'!U18*1000000) -> 226.836019 | V20: =csinterpolate(CSTableU1,'2643625002'!V18*1000000) -> 214.806455 | W20: =csinterpolate(CSTableU1,'2643625002'!W18*1000000) -> 203.9404692 | X20: =csinterpolate(CSTableU1,'2643625002'!X18*1000000) -> 194.2608374 | Y20: =csinterpolate(CSTableU1,'2643625002'!Y18*1000000) -> 185.4755118 | Z20: =csinterpolate(CSTableU1,'2643625002'!Z18*1000000) -> 177.4214996 | AA20: =csinterpolate(CSTableU1,'2643625002'!AA18*1000000) -> 156.6493138 | AB20: =csinterpolate(CSTableU1,'2643625002'!AB18*1000000) -> 145.1185194 | AC20: =csinterpolate(CSTableU1,'2643625002'!AC18*1000000) -> 134.7902491 | AD20: =csinterpolate(CSTableU1,'2643625002'!AD18*1000000) -> 125.5394248 | AE20: =csinterpolate(CSTableU1,'2643625002'!AE18*1000000) -> 117.3042198
A21: Rl | B21: =B19/$B$13*$B$16*B18*1000000 -> 10.01288411 | C21: 16.60819076 | D21: 66.52377887 | E21: 93.3629309 | F21: 168.4422907 | G21: 241.9637388 | H21: 306.2804453 | I21: 361.4320033 | J21: 408.5976691 | K21: 450.0457677 | L21: 487.0220719 | M21: 520.5089777 | N21: 578.994342 | O21: 629.3199993 | P21: 674.4485039 | Q21: 715.5285793 | R21: 753.4948427 | S21: 789.4303461 | T21: 823.6324329 | U21: 855.8391588 | V21: 887.1988331 | W21: 917.6064969 | X21: 946.9749388 | Y21: 975.4543979 | Z21: 1003.16135 | AA21: 1083.025837 | AB21: 1133.074319 | AC21: 1180.607221 | AD21: 1225.61429 | AE21: 1268.206545
A22: Xl | B22: =B20/$B$13*$B$16*B18*1000000 -> 177.5941618 | C22: 218.1393477 | D22: 342.2151536 | E22: 377.6238713 | F22: 445.0582827 | G22: 486.9946722 | H22: 512.5404187 | I22: 529.5678047 | J22: 542.058214 | K22: 552.4558605 | L22: 560.9391328 | M22: 568.9161226 | N22: 582.9863086 | O22: 595.8345844 | P22: 608.1779745 | Q22: 619.8976208 | R22: 631.2755263 | S22: 642.5221568 | T22: 652.8135736 | U22: 662.4574744 | V22: 672.1350436 | W22: 680.6774274 | X22: 688.8935683 | Y22: 696.4293014 | Z22: 703.1982783 | AA22: 718.9010695 | AB22: 726.5274582 | AC22: 731.0545355 | AD22: 733.2568313 | AE22: 734.0959737
A23: Yl | B23: =IMDIV(1,COMPLEX(B21,B22)) -> 0.000316463393895077-0.00561297330276992i | C23: 0.000347011703463613-0.00455780570559046i | D23: 0.00054735582091605-0.0028157368613034i | E23: 0.000617004604007014-0.00249559075442515i | F23: 0.000743839825760899-0.00196537386187226i | G23: 0.00081824600014232-0.00164686429713342i | H23: 0.00085911868998148-0.00143767928981757i | I23: 0.000879235830232729-0.00128825058176335i | J23: 0.000886753790674831-0.00117639480690442i | K23: 0.000886355383210825-0.00108804984096564i | L23: 0.000882537039091047-0.00101648280423054i | M23: 0.000875400644129923-0.000956812584441013i | N23: 0.000857632829875783-0.000863545912859413i | O23: 0.000837906283417207-0.00079332222516737i | P23: 0.000817750006673391-0.000737398837460871i | Q23: 0.000798354499075956-0.000691653791054614i | R23: 0.00077980284211374-0.000653316282555265i | S23: 0.000761972666163505-0.000620174184165476i | T23: 0.00074568187260524-0.000591029722206479i | U23: 0.000730668005450749-0.000565569449096927i | V23: 0.000716125545037509-0.000542531230294867i | W23: 0.000702972509694074-0.00052146265423407i | X23: 0.000690549230472626-0.000502352178450956i | Y23: 0.000679037511373509-0.000484801360999694i | Z23: 0.000668408608187627-0.000468542555481918i | AA23: 0.000640933303122542-0.000425444732099073i | AB23: 0.000625420651360824-0.000401019834637126i | AC23: 0.00061226108577857-0.000379123755900016i | AD23: 0.00060085141312738-0.000359475576404493i | AE23: 0.000590620399227694-0.00034187811039961i
A24: Yc | B24: =COMPLEX(0,2*PI()*B18*1000000*$B$9*0.000000000001) -> 0 | C24: 0 | D24: 0 | E24: 0 | F24: 0 | G24: 0 | H24: 0 | I24: 0 | J24: 0 | K24: 0 | L24: 0 | M24: 0 | N24: 0 | O24: 0 | P24: 0 | Q24: 0 | R24: 0 | S24: 0 | T24: 0 | U24: 0 | V24: 0 | W24: 0 | X24: 0 | Y24: 0 | Z24: 0 | AA24: 0 | AB24: 0 | AC24: 0 | AD24: 0 | AE24: 0
A25: Z | B25: =IMDIV(1,IMSUM(B23,B24)) -> 10.0128841055214+177.59416176474i | C25: 16.6081907649336+218.139347671559i | D25: 66.5237788683759+342.215153571211i | E25: 93.3629308986163+377.623871270128i | F25: 168.442290737316+445.05828268924i | G25: 241.963738795683+486.994672206423i | H25: 306.280445267667+512.540418654984i | I25: 361.432003259249+529.567804741732i | J25: 408.597669124455+542.058214045481i | K25: 450.045767659565+552.455860487257i | L25: 487.022071893871+560.939132787806i | M25: 520.508977727685+568.916122627916i | N25: 578.994341979572+582.986308555377i | O25: 629.319999262084+595.834584412989i | P25: 674.44850394851+608.177974540196i | Q25: 715.528579336411+619.89762076717i | R25: 753.494842730878+631.275526315278i | S25: 789.430346148186+642.522156789368i | T25: 823.632432936953+652.813573619857i | U25: 855.839158777459+662.457474440451i | V25: 887.198833064708+672.135043574734i | W25: 917.606496904548+680.677427381206i | X25: 946.97493879506+688.893568263873i | Y25: 975.454397914769+696.429301447081i | Z25: 1003.16134992559+703.198278264674i | AA25: 1083.02583701597+718.901069488564i | AB25: 1133.07431932804+726.527458247227i | AC25: 1180.6072205306+731.05453553538i | AD25: 1225.61428972444+733.256831260667i | AE25: 1268.20654457604+734.09597369651i
A26: R | B26: =IMREAL(B25) -> 10.01288411 | C26: 16.60819076 | D26: 66.52377887 | E26: 93.3629309 | F26: 168.4422907 | G26: 241.9637388 | H26: 306.2804453 | I26: 361.4320033 | J26: 408.5976691 | K26: 450.0457677 | L26: 487.0220719 | M26: 520.5089777 | N26: 578.994342 | O26: 629.3199993 | P26: 674.4485039 | Q26: 715.5285793 | R26: 753.4948427 | S26: 789.4303461 | T26: 823.6324329 | U26: 855.8391588 | V26: 887.1988331 | W26: 917.6064969 | X26: 946.9749388 | Y26: 975.4543979 | Z26: 1003.16135 | AA26: 1083.025837 | AB26: 1133.074319 | AC26: 1180.607221 | AD26: 1225.61429 | AE26: 1268.206545
A27: X | B27: =IMAGINARY(B25) -> 177.5941618 | C27: 218.1393477 | D27: 342.2151536 | E27: 377.6238713 | F27: 445.0582827 | G27: 486.9946722 | H27: 512.5404187 | I27: 529.5678047 | J27: 542.058214 | K27: 552.4558605 | L27: 560.9391328 | M27: 568.9161226 | N27: 582.9863086 | O27: 595.8345844 | P27: 608.1779745 | Q27: 619.8976208 | R27: 631.2755263 | S27: 642.5221568 | T27: 652.8135736 | U27: 662.4574744 | V27: 672.1350436 | W27: 680.6774274 | X27: 688.8935683 | Y27: 696.4293014 | Z27: 703.1982783 | AA27: 718.9010695 | AB27: 726.5274582 | AC27: 731.0545355 | AD27: 733.2568313 | AE27: 734.0959737
A28: |Z| | B28: =IMABS(B25) -> 177.8762045 | C28: 218.7706722 | D28: 348.6210328 | E28: 388.9941195 | F28: 475.8672927 | G28: 543.7924803 | H28: 597.0807248 | I28: 641.1514274 | J28: 678.8071616 | K28: 712.5648537 | L28: 742.8615007 | M28: 771.0999614 | N28: 821.6492463 | O28: 866.6386291 | P28: 908.1636599 | Q28: 946.7070339 | R28: 982.9869115 | S28: 1017.858042 | T28: 1050.969051 | U28: 1082.271025 | V28: 1113.053137 | W28: 1142.507524 | X28: 1171.040513 | Y28: 1198.551231 | Z28: 1225.079798 | AA28: 1299.909117 | AB28: 1345.993893 | AC28: 1388.623111 | AD28: 1428.214258 | AE28: 1465.347992
A32: Module | B32: Version | C32: Date
A33: CubicSpline | B33: =CubicSpline_version("v") -> 1.04 | C33: =CubicSpline_version("d") -> 2014-03-07
A35: Copyright: Owen Duffy 2010. All rights reserved.
B60: =1/IMREAL(IMDIV(1,B25)) -> 3159.923136 | C60: =1/IMREAL(IMDIV(1,C25)) -> 2881.747186 | D60: 1826.965133 | E60: 1620.733449 | F60: 1344.375449 | G60: 1222.126353 | H60: 1163.983524 | I60: 1137.351283 | J60: 1127.70874 | K60: 1128.215633 | L60: 1133.096919 | M60: 1142.334092 | N60: 1166.00014 | O60: 1193.45089 | P60: 1222.867615 | Q60: 1252.576395 | R60: 1282.375424 | S60: 1312.383035 | T60: 1341.054459 | U60: 1368.610631 | V60: 1396.403196 | W60: 1422.530734 | X60: 1448.122677 | Y60: 1472.672692 | Z60: 1496.090846 | AA60: 1560.224746 | AB60: 1598.923857 | AC60: 1633.290149 | AD60: 1664.304981 | AE60: 1693.134882
B61: =-1/IMAGINARY(IMDIV(1,B25)) -> 178.1586952 | C61: =-1/IMAGINARY(IMDIV(1,C25)) -> 219.4038238 | D61: 355.1468228 | E61: 400.7067257 | F61: 508.8090462 | G61: 607.2145724 | H61: 695.5654207 | I61: 776.246496 | J61: 850.0547555 | K61: 919.0755445 | L61: 983.7844731 | M61: 1045.136755 | N61: 1158.016019 | O61: 1260.521851 | P61: 1356.118222 | Q61: 1445.810047 | R61: 1530.652192 | S61: 1612.45022 | T61: 1691.962286 | U61: 1768.129452 | V61: 1843.211864 | W61: 1917.682871 | X61: 1990.635341 | Y61: 2062.70048 | Z61: 2134.277854 | AA61: 2350.481566 | AB61: 2493.642243 | AC61: 2637.661145 | AD61: 2781.830159 | AE61: 2925.019092

Sheet 2843009902
A1: Calculate impedance of ferrite cored inductor
A3: Reference:
A4: A method for estimating the impedance of a ferrite cored toroidal inductor at RF
A6: Inputs:
A7: Al (nH for 1t) | B7: 9050 | D7: 2843009902
A8: N | B8: 4
A9: Cs (pF) | B9: 2
A11: Constants:
A12: Mix | B12: =Mix!B1 -> #43
A13: µi | B13: =Mix!B2 -> 800
A15: Calculated values:
A16: 2*pi*N^2*Al | B16: =2*PI()*$B$8^2*$B$7*0.000000001 -> 0.0009098052325
A18: f (MHz) | B18: 1 | C18: =B18*1.13 -> 1.13 | D18: =C18*1.13 -> 1.2769 | E18: 1.442897 | F18: 1.63047361 | G18: 1.842435179 | H18: 2.081951753 | I18: 2.35260548 | J18: 2.658444193 | K18: 3.004041938 | L18: 3.39456739 | M18: 3.835861151 | N18: 4.3345231 | O18: 4.898011103 | P18: 5.534752547 | Q18: 6.254270378 | R18: 7.067325527 | S18: 7.986077845 | T18: 9.024267965 | U18: 10.1974228 | V18: 11.52308776 | W18: 13.02108917 | X18: 14.71383077 | Y18: 16.62662877 | Z18: 18.78809051 | AA18: 21.23054227 | AB18: 23.99051277 | AC18: 27.10927943 | AD18: 30.63348575 | AE18: 34.6158389
A19: µ'' | B19: =csinterpolate(CSTableU2,'2843009902'!B18*1000000) -> 48 | C19: =csinterpolate(CSTableU2,'2843009902'!C18*1000000) -> 60.85560254 | D19: =csinterpolate(CSTableU2,'2843009902'!D18*1000000) -> 75.27531437 | E19: =csinterpolate(CSTableU2,'2843009902'!E18*1000000) -> 101.4397812 | F19: =csinterpolate(CSTableU2,'2843009902'!F18*1000000) -> 137.9903686 | G19: =csinterpolate(CSTableU2,'2843009902'!G18*1000000) -> 187.1739392 | H19: =csinterpolate(CSTableU2,'2843009902'!H18*1000000) -> 242.0447043 | I19: =csinterpolate(CSTableU2,'2843009902'!I18*1000000) -> 297.1128046 | J19: =csinterpolate(CSTableU2,'2843009902'!J18*1000000) -> 347.2281722 | K19: =csinterpolate(CSTableU2,'2843009902'!K18*1000000) -> 387.0333936 | L19: =csinterpolate(CSTableU2,'2843009902'!L18*1000000) -> 414.4778108 | M19: =csinterpolate(CSTableU2,'2843009902'!M18*1000000) -> 430.2039219 | N19: =csinterpolate(CSTableU2,'2843009902'!N18*1000000) -> 435.1754923 | O19: =csinterpolate(CSTableU2,'2843009902'!O18*1000000) -> 432.4788503 | P19: =csinterpolate(CSTableU2,'2843009902'!P18*1000000) -> 423.9807093 | Q19: =csinterpolate(CSTableU2,'2843009902'!Q18*1000000) -> 410.9791861 | R19: =csinterpolate(CSTableU2,'2843009902'!R18*1000000) -> 395.2121053 | S19: =csinterpolate(CSTableU2,'2843009902'!S18*1000000) -> 377.367808 | T19: =csinterpolate(CSTableU2,'2843009902'!T18*1000000) -> 358.8359742 | U19: =csinterpolate(CSTableU2,'2843009902'!U18*1000000) -> 339.9884597 | V19: =csinterpolate(CSTableU2,'2843009902'!V18*1000000) -> 321.424336 | W19: =csinterpolate(CSTableU2,'2843009902'!W18*1000000) -> 303.484816 | X19: =csinterpolate(CSTableU2,'2843009902'!X18*1000000) -> 286.1521873 | Y19: =csinterpolate(CSTableU2,'2843009902'!Y18*1000000) -> 269.8644069 | Z19: =csinterpolate(CSTableU2,'2843009902'!Z18*1000000) -> 254.4843039 | AA19: =csinterpolate(CSTableU2,'2843009902'!AA18*1000000) -> 240.0239336 | AB19: =csinterpolate(CSTableU2,'2843009902'!AB18*1000000) -> 226.3662001 | AC19: =csinterpolate(CSTableU2,'2843009902'!AC18*1000000) -> 213.2081415 | AD19: =csinterpolate(CSTableU2,'2843009902'!AD18*1000000) -> 200.4639035 | AE19: =csinterpolate(CSTableU2,'2843009902'!AE18*1000000) -> 187.9217137
A20: µ' | B20: =csinterpolate(CSTableU1,'2843009902'!B18*1000000) -> 851.3550816 | C20: =csinterpolate(CSTableU1,'2843009902'!C18*1000000) -> 863.5876964 | D20: =csinterpolate(CSTableU1,'2843009902'!D18*1000000) -> 879.2400539 | E20: =csinterpolate(CSTableU1,'2843009902'!E18*1000000) -> 896.179158 | F20: =csinterpolate(CSTableU1,'2843009902'!F18*1000000) -> 908.1514905 | G20: =csinterpolate(CSTableU1,'2843009902'!G18*1000000) -> 911.3079278 | H20: =csinterpolate(CSTableU1,'2843009902'!H18*1000000) -> 899.7600118 | I20: =csinterpolate(CSTableU1,'2843009902'!I18*1000000) -> 872.3114101 | J20: =csinterpolate(CSTableU1,'2843009902'!J18*1000000) -> 830.2998634 | K20: =csinterpolate(CSTableU1,'2843009902'!K18*1000000) -> 777.5536911 | L20: =csinterpolate(CSTableU1,'2843009902'!L18*1000000) -> 717.5466075 | M20: =csinterpolate(CSTableU1,'2843009902'!M18*1000000) -> 655.6290446 | N20: =csinterpolate(CSTableU1,'2843009902'!N18*1000000) -> 595.3206883 | O20: =csinterpolate(CSTableU1,'2843009902'!O18*1000000) -> 538.744166 | P20: =csinterpolate(CSTableU1,'2843009902'!P18*1000000) -> 486.3518236 | Q20: =csinterpolate(CSTableU1,'2843009902'!Q18*1000000) -> 438.8898618 | R20: =csinterpolate(CSTableU1,'2843009902'!R18*1000000) -> 396.0283557 | S20: =csinterpolate(CSTableU1,'2843009902'!S18*1000000) -> 357.5575879 | T20: =csinterpolate(CSTableU1,'2843009902'!T18*1000000) -> 323.2284732 | U20: =csinterpolate(CSTableU1,'2843009902'!U18*1000000) -> 292.5309406 | V20: =csinterpolate(CSTableU1,'2843009902'!V18*1000000) -> 265.1103226 | W20: =csinterpolate(CSTableU1,'2843009902'!W18*1000000) -> 240.4207379 | X20: =csinterpolate(CSTableU1,'2843009902'!X18*1000000) -> 218.1373836 | Y20: =csinterpolate(CSTableU1,'2843009902'!Y18*1000000) -> 197.7382639 | Z20: =csinterpolate(CSTableU1,'2843009902'!Z18*1000000) -> 179.0721619 | AA20: =csinterpolate(CSTableU1,'2843009902'!AA18*1000000) -> 161.5765893 | AB20: =csinterpolate(CSTableU1,'2843009902'!AB18*1000000) -> 145.1707518 | AC20: =csinterpolate(CSTableU1,'2843009902'!AC18*1000000) -> 129.52241 | AD20: =csinterpolate(CSTableU1,'2843009902'!AD18*1000000) -> 114.8290958 | AE20: =csinterpolate(CSTableU1,'2843009902'!AE18*1000000) -> 101.0361758
A21: Rl | B21: =B19/$B$13*$B$16*B18*1000000 -> 54.58831395 | C21: 78.20552818 | D21: 109.3120171 | E21: 166.4570055 | F21: 255.870956 | G21: 392.1895713 | H21: 573.0924529 | I21: 794.9300536 | J21: 1049.786407 | K21: 1322.247859 | L21: 1600.089088 | M21: 1876.703599 | N21: 2145.182248 | O21: 2409.034848 | P21: 2668.718394 | Q21: 2923.175723 | R21: 3176.462828 | S21: 3427.337175 | T21: 3682.700507 | U21: 3942.87533 | V21: 4212.171723 | W21: 4494.099915 | X21: 4788.29909 | Y21: 5102.796529 | Z21: 5437.535281 | AA21: 5795.275402 | AB21: 6176.032241 | AC21: 6573.250783 | AD21: 6983.78794 | AE21: 7397.930866
A22: Xl | B22: =B20/$B$13*$B$16*B18*1000000 -> 968.2091349 | C22: 1109.796454 | D22: 1276.799766 | E22: 1470.579858 | F22: 1683.955138 | G22: 1909.483056 | H22: 2130.3737 | I22: 2333.883109 | J22: 2510.273015 | K22: 2656.408259 | L22: 2770.084349 | M22: 2860.088728 | N22: 2934.612345 | O22: 3000.964022 | P22: 3061.309228 | Q22: 3121.696262 | R22: 3183.023328 | S22: 3247.416413 | T22: 3317.264008 | U22: 3392.506411 | V22: 3474.193082 | W22: 3560.22694 | X22: 3650.180156 | Y22: 3738.981877 | Z22: 3826.213182 | AA22: 3901.197766 | AB22: 3960.746979 | AC22: 3993.202497 | AD22: 4000.431201 | AE22: 3977.500143
A23: Yl | B23: =IMDIV(1,COMPLEX(B21,B22)) -> 0.0000580474291564452-0.00102956195387824i | C23: 0.0000631828933618282-0.000896613738947003i | D23: 0.0000665657226592006-0.000777509201591875i | E23: 0.0000759969016151909-0.000671401677535088i | F23: 0.0000881956342191291-0.000580439037188573i | G23: 0.000103209460377072-0.000502503713163496i | H23: 0.000117752422775266-0.000437724599803231i | I23: 0.000130768213804359-0.000383930289167306i | J23: 0.000141795538859053-0.00033906470151246i | K23: 0.000150172771135967-0.000301698495317779i | L23: 0.000156355622304461-0.000270683842252595i | M23: 0.000160372904146916-0.000244407660114695i | N23: 0.000162344617794171-0.000222087666508193i | O23: 0.000162671131695506-0.00020264140805481i | P23: 0.000161802561923432-0.000185605074323737i | Q23: 0.000159824204239096-0.000170678285592346i | R23: 0.000157083025871302-0.000157407456930165i | S23: 0.000153744968185205-0.00014567400507451i | T23: 0.000149907271300169-0.00013503188619166i | U23: 0.000145733581489328-0.000125391260976729i | V23: 0.000141289214067264-0.000116535137278035i | W23: 0.000136714511425205-0.000108305265993005i | X23: 0.000132085094355433-0.000100690115877139i | Y23: 0.000127510882407548-0.0000934312931608252i | Z23: 0.000123002522699754-0.0000865527944941531i | AA23: 0.000118744545269534-0.0000799351062016155i | AB23: 0.000114730262511187-0.0000735775855659271i | AC23: 0.000111122315540257-0.000067506006164463i | AD23: 0.000107813198562076-0.0000617572135907282i | AE23: 0.000104860985956813-0.0000563785461424495i
A24: Yc | B24: =COMPLEX(0,2*PI()*B18*1000000*$B$9*0.000000000001) -> 0.0000125663706143592i | C24: 0.0000141999987942259i | D24: 0.0000160459986374752i | E24: 0.000018131978460347i | F24: 0.0000204891356601921i | G24: 0.0000231527232960171i | H24: 0.0000261625773244993i | I24: 0.0000295637123766842i | J24: 0.0000334069949856532i | K24: 0.0000377499043337881i | L24: 0.0000426573918971805i | M24: 0.0000482028528438139i | N24: 0.0000544692237135098i | O24: 0.000061550222796266i | P24: 0.0000695517517597806i | Q24: 0.0000785934794885521i | R24: 0.0000888106318220638i | S24: 0.000100356013958932i | T24: 0.000113402295773593i | U24: 0.00012814459422416i | V24: 0.000144803391473301i | W24: 0.00016362783236483i | X24: 0.000184899450572258i | Y24: 0.000208936379146652i | Z24: 0.000236098108435717i | AA24: 0.00026679086253236i | AB24: 0.000301473674661566i | AC24: 0.00034066525236757i | AD24: 0.000384951735175354i | AE24: 0.00043499546074815i
A25: Z | B25: =IMDIV(1,IMSUM(B23,B24)) -> 55.9412672725124+980.095459266561i | C25: 80.7298399947637+1127.47479992349i | D25: 113.932223860393+1303.30134842247i | E25: 175.700417993973+1510.32156246861i | F25: 274.477112760135+1742.64217977012i | G25: 429.271087028072+1993.72731662985i | H25: 642.581770410462+2245.91772130946i | I25: 916.539691492266+2483.71544978632i | J25: 1248.94108272427+2692.24596206846i | K25: 1628.40597365352+2862.13978102997i | L25: 2045.38454080589+2982.95494321025i | M25: 2497.40589047521+3055.39794284055i | N25: 2981.44164902337+3078.29488456532i | O25: 3508.2159646281+3042.81616186727i | P25: 4080.93107346893+2927.05878448748i | Q25: 4697.48060634389+2706.51490411548i | R25: 5346.48775777978+2334.76585791964i | S25: 5984.33531232988+1763.94751462769i | T25: 6534.74632430493+942.875453970891i | U25: 6859.38803280258-129.59388587543i | V25: 6805.26968740083-1361.55540718912i | W25: 6285.30738118024-2543.39741361618i | X25: 5382.94866276673-3431.8370880652i | Y25: 4307.73458907967-3902.13952504429i | Z25: 3280.64278313797-3988.57473949577i | AA25: 2422.59960985908-3812.18927875187i | AB25: 1762.37881307736-3500.72622701601i | AC25: 1277.79464001955-3141.05604237218i | AD25: 928.796510777682-2784.27825121454i | AE25: 679.386457236137-2453.03057106084i
A26: R | B26: =IMREAL(B25) -> 55.94126727 | C26: 80.72983999 | D26: 113.9322239 | E26: 175.700418 | F26: 274.4771128 | G26: 429.271087 | H26: 642.5817704 | I26: 916.5396915 | J26: 1248.941083 | K26: 1628.405974 | L26: 2045.384541 | M26: 2497.40589 | N26: 2981.441649 | O26: 3508.215965 | P26: 4080.931073 | Q26: 4697.480606 | R26: 5346.487758 | S26: 5984.335312 | T26: 6534.746324 | U26: 6859.388033 | V26: 6805.269687 | W26: 6285.307381 | X26: 5382.948663 | Y26: 4307.734589 | Z26: 3280.642783 | AA26: 2422.59961 | AB26: 1762.378813 | AC26: 1277.79464 | AD26: 928.7965108 | AE26: 679.3864572
A27: X | B27: =IMAGINARY(B25) -> 980.0954593 | C27: 1127.4748 | D27: 1303.301348 | E27: 1510.321562 | F27: 1742.64218 | G27: 1993.727317 | H27: 2245.917721 | I27: 2483.71545 | J27: 2692.245962 | K27: 2862.139781 | L27: 2982.954943 | M27: 3055.397943 | N27: 3078.294885 | O27: 3042.816162 | P27: 2927.058784 | Q27: 2706.514904 | R27: 2334.765858 | S27: 1763.947515 | T27: 942.875454 | U27: -129.5938859 | V27: -1361.555407 | W27: -2543.397414 | X27: -3431.837088 | Y27: -3902.139525 | Z27: -3988.574739 | AA27: -3812.189279 | AB27: -3500.726227 | AC27: -3141.056042 | AD27: -2784.278251 | AE27: -2453.030571
A28: |Z| | B28: =IMABS(B25) -> 981.6906512 | C28: 1130.361328 | D28: 1308.271744 | E28: 1520.507106 | F28: 1764.125691 | G28: 2039.417142 | H28: 2336.034619 | I28: 2647.430347 | J28: 2967.834589 | K28: 3292.954622 | L28: 3616.851962 | M28: 3946.199789 | N28: 4285.428065 | O28: 4643.954075 | P28: 5022.118234 | Q28: 5421.397142 | R28: 5834.043448 | S28: 6238.892527 | T28: 6602.418015 | U28: 6860.612127 | V28: 6940.13895 | W28: 6780.409964 | X28: 6383.857933 | Y28: 5812.337754 | Z28: 5164.430803 | AA28: 4516.832515 | AB28: 3919.319226 | AC28: 3391.016397 | AD28: 2935.109596 | AE28: 2545.373242
A30: Y | B30: =IMDIV(1,B25) -> 0.0000580474291564453-0.00101699558326388i | C30: =IMDIV(1,C25) -> 0.0000631828933618285-0.000882413740152779i | D30: 0.0000665657226592008-0.0007614632029544i | E30: 0.0000759969016151915-0.000653269699074743i | F30: 0.0000881956342191297-0.000559949901528382i | G30: 0.000103209460377072-0.00047935098986748i | H30: 0.000117752422775266-0.000411562022478733i | I30: 0.000130768213804359-0.000354366576790622i | J30: 0.000141795538859053-0.000305657706526807i | K30: 0.000150172771135967-0.000263948590983991i | L30: 0.000156355622304461-0.000228026450355415i | M30: 0.000160372904146916-0.000196204807270881i | N30: 0.000162344617794171-0.000167618442794683i | O30: 0.000162671131695506-0.000141091185258544i | P30: 0.000161802561923432-0.000116053322563956i | Q30: 0.000159824204239096-0.0000920848061037939i | R30: 0.000157083025871302-0.0000685968251081012i | S30: 0.000153744968185205-0.0000453179911155781i | T30: 0.000149907271300169-0.000021629590418067i | U30: 0.000145733581489328+0.000002753333247431i | V30: 0.000141289214067264+0.0000282682541952659i | W30: 0.000136714511425205+0.0000553225663718251i | X30: 0.000132085094355433+0.0000842093346951189i | Y30: 0.000127510882407548+0.000115505085985827i | Z30: 0.000123002522699754+0.000149545313941564i | AA30: 0.000118744545269534+0.000186855756330744i | AB30: 0.000114730262511187+0.000227896089095639i | AC30: 0.000111122315540256+0.000273159246203107i | AD30: 0.000107813198562076+0.000323194521584626i | AE30: 0.000104860985956813+0.0003786169146057i
A31: G | B31: =IMREAL(B30) -> 5.804742916e-05 | C31: 6.318289336e-05 | D31: 6.656572266e-05 | E31: 7.599690162e-05 | F31: 8.819563422e-05 | G31: 0.0001032094604 | H31: 0.0001177524228 | I31: 0.0001307682138 | J31: 0.0001417955389 | K31: 0.0001501727711 | L31: 0.0001563556223 | M31: 0.0001603729041 | N31: 0.0001623446178 | O31: 0.0001626711317 | P31: 0.0001618025619 | Q31: 0.0001598242042 | R31: 0.0001570830259 | S31: 0.0001537449682 | T31: 0.0001499072713 | U31: 0.0001457335815 | V31: 0.0001412892141 | W31: 0.0001367145114 | X31: 0.0001320850944 | Y31: 0.0001275108824 | Z31: 0.0001230025227 | AA31: 0.0001187445453 | AB31: 0.0001147302625 | AC31: 0.0001111223155 | AD31: 0.0001078131986 | AE31: 0.000104860986
A32: B | B32: =IMAGINARY(B30) -> -0.001016995583 | C32: -0.0008824137402 | D32: -0.000761463203 | E32: -0.0006532696991 | F32: -0.0005599499015 | G32: -0.0004793509899 | H32: -0.0004115620225 | I32: -0.0003543665768 | J32: -0.0003056577065 | K32: -0.000263948591 | L32: -0.0002280264504 | M32: -0.0001962048073 | N32: -0.0001676184428 | O32: -0.0001410911853 | P32: -0.0001160533226 | Q32: -9.20848061e-05 | R32: -6.859682511e-05 | S32: -4.531799112e-05 | T32: -2.162959042e-05 | U32: 2.753333247e-06 | V32: 2.82682542e-05 | W32: 5.532256637e-05 | X32: 8.42093347e-05 | Y32: 0.000115505086 | Z32: 0.0001495453139 | AA32: 0.0001868557563 | AB32: 0.0002278960891 | AC32: 0.0002731592462 | AD32: 0.0003231945216 | AE32: 0.0003786169146
A37: Module | B37: Version | C37: Date
A38: CubicSpline | B38: =CubicSpline_version("v") -> 1.04 | C38: =CubicSpline_version("d") -> 2014-03-07
A40: Copyright: Owen Duffy 2010. All rights reserved.
B65: =1/IMREAL(IMDIV(1,B25)) -> 17227.29179 | C65: =1/IMREAL(IMDIV(1,C25)) -> 15827.0688 | D65: 15022.74684 | E65: 13158.43118 | F65: 11338.42972 | G65: 9689.034284 | H65: 8492.394266 | I65: 7647.118294 | J65: 7052.408052 | K65: 6658.996784 | L65: 6395.676633 | M65: 6235.467302 | N65: 6159.736082 | O65: 6147.372245 | P65: 6180.371856 | Q65: 6256.874575 | R65: 6366.060206 | S65: 6504.277908 | T65: 6670.790492 | U65: 6861.83644 | V65: 7077.6811 | W65: 7314.51248 | X65: 7570.876978 | Y65: 7842.467883 | Z65: 8129.914558 | AA65: 8421.439467 | AB65: 8716.096156 | AC65: 8999.092533 | AD65: 9275.30222 | AE65: 9536.435223
B66: =-1/IMAGINARY(IMDIV(1,B25)) -> 983.2884395 | C66: =-1/IMAGINARY(IMDIV(1,C25)) -> 1133.255246 | D66: 1313.261095 | E66: 1530.76134 | F66: 1785.874053 | G66: 2086.154031 | H66: 2429.767436 | I66: 2821.936564 | J66: 3271.633525 | K66: 3788.616549 | L66: 4385.456154 | M66: 5096.71508 | N66: 5965.930618 | O66: 7087.614993 | P66: 8616.728741 | Q66: 10859.55482 | R66: 14577.93416 | S66: 22066.29145 | T66: 46232.96053 | U66: -363196.1372 | V66: -35375.37172 | W66: -18075.80641 | X66: -11875.16804 | Y66: -8657.627424 | Z66: -6686.936378 | AA66: -5351.721668 | AB66: -4387.964725 | AC66: -3660.868207 | AD66: -3094.111853 | AE66: -2641.19209

Sheet 2643167851x2 (2)
A1: Calculate impedance of ferrite cored inductor
A3: Reference:
A4: A method for estimating the impedance of a ferrite cored toroidal inductor at RF
A6: Inputs:
A7: Al (nH for 1t) | B7: =2*2300 -> 4600
A8: N | B8: 5
A9: Cs (pF) | B9: 6
A11: Constants:
A12: Mix | B12: =Mix!B1 -> #43
A13: µi | B13: =Mix!B2 -> 800
A15: Calculated values:
A16: 2*pi*N^2*Al | B16: =2*PI()*$B$8^2*$B$7*0.000000001 -> 0.0007225663103
A18: f (MHz) | B18: 1 | C18: 1.2 | D18: 1.8 | E18: 2 | F18: 2.5 | G18: 3 | H18: 3.5 | I18: 4 | J18: 4.5 | K18: 5 | L18: 5.5 | M18: 6 | N18: =M18+1 -> 7 | O18: 8 | P18: 9 | Q18: 10 | R18: 11 | S18: 12 | T18: 13 | U18: 14 | V18: 15 | W18: 16 | X18: 17 | Y18: 18 | Z18: 19 | AA18: 22 | AB18: 24 | AC18: 26 | AD18: 28 | AE18: 30
A19: µ'' | B19: =csinterpolate(CSTableU2,'2643167851x2 (2)'!B18*1000000) -> 48 | C19: =csinterpolate(CSTableU2,'2643167851x2 (2)'!C18*1000000) -> 66.34728052 | D19: =csinterpolate(CSTableU2,'2643167851x2 (2)'!D18*1000000) -> 177.1684779 | E19: =csinterpolate(CSTableU2,'2643167851x2 (2)'!E18*1000000) -> 223.7827102 | F19: =csinterpolate(CSTableU2,'2643167851x2 (2)'!F18*1000000) -> 322.9930506 | G19: =csinterpolate(CSTableU2,'2643167851x2 (2)'!G18*1000000) -> 386.6438261 | H19: =csinterpolate(CSTableU2,'2643167851x2 (2)'!H18*1000000) -> 419.5012637 | I19: =csinterpolate(CSTableU2,'2643167851x2 (2)'!I18*1000000) -> 433.1603156 | J19: =csinterpolate(CSTableU2,'2643167851x2 (2)'!J18*1000000) -> 435.2766986 | K19: =csinterpolate(CSTableU2,'2643167851x2 (2)'!K18*1000000) -> 431.4880033 | L19: =csinterpolate(CSTableU2,'2643167851x2 (2)'!L18*1000000) -> 424.4905265 | M19: =csinterpolate(CSTableU2,'2643167851x2 (2)'!M18*1000000) -> 415.8713691 | N19: =csinterpolate(CSTableU2,'2643167851x2 (2)'!N18*1000000) -> 396.5138191 | O19: =csinterpolate(CSTableU2,'2643167851x2 (2)'!O18*1000000) -> 377.106132 | P19: =csinterpolate(CSTableU2,'2643167851x2 (2)'!P18*1000000) -> 359.2430163 | Q19: =csinterpolate(CSTableU2,'2643167851x2 (2)'!Q18*1000000) -> 343.0117781 | R19: =csinterpolate(CSTableU2,'2643167851x2 (2)'!R18*1000000) -> 328.3746682 | S19: =csinterpolate(CSTableU2,'2643167851x2 (2)'!S18*1000000) -> 315.3658178 | T19: =csinterpolate(CSTableU2,'2643167851x2 (2)'!T18*1000000) -> 303.7191219 | U19: =csinterpolate(CSTableU2,'2643167851x2 (2)'!U18*1000000) -> 293.0529962 | V19: =csinterpolate(CSTableU2,'2643167851x2 (2)'!V18*1000000) -> 283.5383128 | W19: =csinterpolate(CSTableU2,'2643167851x2 (2)'!W18*1000000) -> 274.9277293 | X19: =csinterpolate(CSTableU2,'2643167851x2 (2)'!X18*1000000) -> 267.0371058 | Y19: =csinterpolate(CSTableU2,'2643167851x2 (2)'!Y18*1000000) -> 259.7864612 | Z19: =csinterpolate(CSTableU2,'2643167851x2 (2)'!Z18*1000000) -> 253.1041337 | AA19: =csinterpolate(CSTableU2,'2643167851x2 (2)'!AA18*1000000) -> 235.992491 | AB19: =csinterpolate(CSTableU2,'2643167851x2 (2)'!AB18*1000000) -> 226.3232666 | AC19: =csinterpolate(CSTableU2,'2643167851x2 (2)'!AC18*1000000) -> 217.6777977 | AD19: =csinterpolate(CSTableU2,'2643167851x2 (2)'!AD18*1000000) -> 209.8349532 | AE19: =csinterpolate(CSTableU2,'2643167851x2 (2)'!AE18*1000000) -> 202.6519482
A20: µ' | B20: =csinterpolate(CSTableU1,'2643167851x2 (2)'!B18*1000000) -> 851.3550816 | C20: =csinterpolate(CSTableU1,'2643167851x2 (2)'!C18*1000000) -> 871.4346251 | D20: =csinterpolate(CSTableU1,'2643167851x2 (2)'!D18*1000000) -> 911.3994861 | E20: =csinterpolate(CSTableU1,'2643167851x2 (2)'!E18*1000000) -> 905.1311106 | F20: =csinterpolate(CSTableU1,'2643167851x2 (2)'!F18*1000000) -> 853.4123573 | G20: =csinterpolate(CSTableU1,'2643167851x2 (2)'!G18*1000000) -> 778.1888488 | H20: =csinterpolate(CSTableU1,'2643167851x2 (2)'!H18*1000000) -> 702.0080995 | I20: =csinterpolate(CSTableU1,'2643167851x2 (2)'!I18*1000000) -> 634.6636583 | J20: =csinterpolate(CSTableU1,'2643167851x2 (2)'!J18*1000000) -> 577.4514338 | K20: =csinterpolate(CSTableU1,'2643167851x2 (2)'!K18*1000000) -> 529.675187 | L20: =csinterpolate(CSTableU1,'2643167851x2 (2)'!L18*1000000) -> 488.9169538 | M20: =csinterpolate(CSTableU1,'2643167851x2 (2)'!M18*1000000) -> 454.5472546 | N20: =csinterpolate(CSTableU1,'2643167851x2 (2)'!N18*1000000) -> 399.2476453 | O20: =csinterpolate(CSTableU1,'2643167851x2 (2)'!O18*1000000) -> 357.0407356 | P20: =csinterpolate(CSTableU1,'2643167851x2 (2)'!P18*1000000) -> 323.9442133 | Q20: =csinterpolate(CSTableU1,'2643167851x2 (2)'!Q18*1000000) -> 297.1679836 | R20: =csinterpolate(CSTableU1,'2643167851x2 (2)'!R18*1000000) -> 275.111228 | S20: =csinterpolate(CSTableU1,'2643167851x2 (2)'!S18*1000000) -> 256.6781559 | T20: =csinterpolate(CSTableU1,'2643167851x2 (2)'!T18*1000000) -> 240.7287006 | U20: =csinterpolate(CSTableU1,'2643167851x2 (2)'!U18*1000000) -> 226.836019 | V20: =csinterpolate(CSTableU1,'2643167851x2 (2)'!V18*1000000) -> 214.806455 | W20: =csinterpolate(CSTableU1,'2643167851x2 (2)'!W18*1000000) -> 203.9404692 | X20: =csinterpolate(CSTableU1,'2643167851x2 (2)'!X18*1000000) -> 194.2608374 | Y20: =csinterpolate(CSTableU1,'2643167851x2 (2)'!Y18*1000000) -> 185.4755118 | Z20: =csinterpolate(CSTableU1,'2643167851x2 (2)'!Z18*1000000) -> 177.4214996 | AA20: =csinterpolate(CSTableU1,'2643167851x2 (2)'!AA18*1000000) -> 156.6493138 | AB20: =csinterpolate(CSTableU1,'2643167851x2 (2)'!AB18*1000000) -> 145.1185194 | AC20: =csinterpolate(CSTableU1,'2643167851x2 (2)'!AC18*1000000) -> 134.7902491 | AD20: =csinterpolate(CSTableU1,'2643167851x2 (2)'!AD18*1000000) -> 125.5394248 | AE20: =csinterpolate(CSTableU1,'2643167851x2 (2)'!AE18*1000000) -> 117.3042198
A21: Rl | B21: =B19/$B$13*$B$16*B18*1000000 -> 43.35397862 | C21: 71.91046453 | D21: 288.0359401 | E21: 404.244618 | F21: 729.3246775 | G21: 1047.659261 | H21: 1326.138976 | I21: 1564.935255 | J21: 1769.154064 | K21: 1948.61684 | L21: 2108.717555 | M21: 2253.709806 | N21: 2506.940863 | O21: 2724.841864 | P21: 2920.240134 | Q21: 3098.109436 | R21: 3262.496495 | S21: 3418.090731 | T21: 3566.179585 | U21: 3705.628888 | V21: 3841.41061 | W21: 3973.070299 | X21: 4100.230345 | Y21: 4223.541256 | Z21: 4343.507351 | AA21: 4689.306147 | AB21: 4906.00703 | AC21: 5111.815902 | AD21: 5306.688378 | AE21: 5491.105144
A22: Xl | B22: =B20/$B$13*$B$16*B18*1000000 -> 768.9506251 | C22: 944.5039526 | D22: 1481.729769 | E22: 1635.043117 | F22: 1927.021932 | G22: 2108.59892 | H22: 2219.207385 | I22: 2292.93289 | J22: 2347.014104 | K22: 2392.034034 | L22: 2428.76507 | M22: 2463.303995 | N22: 2524.225357 | O22: 2579.85607 | P22: 2633.300718 | Q22: 2684.044668 | R22: 2733.308943 | S22: 2782.00482 | T22: 2826.564795 | U22: 2868.321143 | V22: 2910.223268 | W22: 2947.210247 | X22: 2982.784652 | Y22: 3015.413015 | Z22: 3044.721461 | AA22: 3112.711709 | AB22: 3145.732594 | AC22: 3165.334021 | AD22: 3174.869563 | AE22: 3178.502898
A23: Yl | B23: =IMDIV(1,COMPLEX(B21,B22)) -> 0.0000730892847117677-0.00129635279062234i | C23: 0.0000801446160347266-0.00105265495252593i | D23: 0.000126415396552438-0.00065031279161929i | E23: 0.00014250123723849-0.000576372960326367i | F23: 0.000171794658888778-0.000453915911055018i | G23: 0.000188979250119826-0.000380354049842294i | H23: 0.0001984190643992-0.000332041408152649i | I23: 0.000203065249138967-0.000297529873492474i | J23: 0.000204801571133248-0.00027169605279462i | K23: 0.000204709556331127-0.000251292206748239i | L23: 0.000203827684854419-0.000234763332872722i | M23: 0.000202179487896441-0.000220982106458724i | N23: 0.000198075895317398-0.000199441560396053i | O23: 0.0001935199207614-0.000183222941743003i | P23: 0.000188864697193437-0.000170307070634441i | Q23: 0.000184385178221368-0.000159741953829657i | R23: 0.000180100552056878-0.000150887656214503i | S23: 0.000175982556637415-0.000143233272447261i | T23: 0.000172220091620828-0.000136502168885253i | U23: 0.000168752541084973-0.000130621952765342i | V23: 0.000165393865010402-0.000125301125883754i | W23: 0.000162356085717171-0.000120435200838756i | X23: 0.000159486848359591-0.000116021511823108i | Y23: 0.000156828141757221-0.000111968036070886i | Z23: 0.000154373327247507-0.000108212958900867i | AA23: 0.000148027726355954-0.0000982592355178382i | AB23: 0.000144444978262117-0.0000926181461561913i | AC23: 0.000141405690767642-0.0000875611039713431i | AD23: 0.000138770552457941-0.0000830232287765503i | AE23: 0.000136407633073805-0.0000789589792366404i
A24: Yc | B24: =COMPLEX(0,2*PI()*B18*1000000*$B$9*0.000000000001) -> 0.0000376991118430775i | C24: 0.000045238934211693i | D24: 0.0000678584013175395i | E24: 0.000075398223686155i | F24: 0.0000942477796076938i | G24: 0.000113097335529233i | H24: 0.000131946891450771i | I24: 0.00015079644737231i | J24: 0.000169646003293849i | K24: 0.000188495559215388i | L24: 0.000207345115136926i | M24: 0.000226194671058465i | N24: 0.000263893782901543i | O24: 0.00030159289474462i | P24: 0.000339292006587698i | Q24: 0.000376991118430775i | R24: 0.000414690230273853i | S24: 0.00045238934211693i | T24: 0.000490088453960008i | U24: 0.000527787565803085i | V24: 0.000565486677646163i | W24: 0.00060318578948924i | X24: 0.000640884901332318i | Y24: 0.000678584013175395i | Z24: 0.000716283125018473i | AA24: 0.000829380460547705i | AB24: 0.000904778684233861i | AC24: 0.000980176907920015i | AD24: 0.00105557513160617i | AE24: 0.00113097335529233i
A25: Z | B25: =IMDIV(1,IMSUM(B23,B24)) -> 45.9810845254591+791.829628932067i | C25: 78.4723549709585+986.395734410039i | D25: 355.865169125528+1639.63596021834i | E25: 525.287653578129+1846.69164290301i | F25: 1081.32257616598+2263.84960380645i | G25: 1763.86475777087+2494.4786232115i | H25: 2498.7307638518+2519.83006811848i | I25: 3235.26467052568+2337.77798773872i | J25: 3911.56991065411+1949.08613639622i | K25: 4464.82311235895+1369.62791727129i | L25: 4818.90804496602+648.223376132769i | M25: 4942.81466081177-127.434988544561i | N25: 4565.20728703571-1485.47987313762i | O25: 3760.48650171842-2300.16945397805i | P25: 2940.63676707567-2631.10747074728i | Q25: 2270.89064556498-2675.64399920032i | R25: 1765.20700024788-2585.589800224i | S25: 1390.64608296651-2443.00733849006i | T25: 1113.37424471137-2285.87651638314i | U25: 906.209880671018-2132.79990027726i | V25: 747.987626491341-1990.72284850371i | W25: 625.872439007732-1860.97297810834i | X25: 530.001672094778-1744.20948763131i | Y25: 453.721155147084-1639.28267450006i | Z25: 392.228137400771-1544.97044870255i | AA25: 266.021395859613-1313.90175079327i | AB25: 212.272651465076-1193.53038719148i | AC25: 173.130348016785-1092.87599349063i | AD25: 143.786625091672-1007.70627022428i | AE25: 121.214456726657-934.840288543289i
A26: R | B26: =IMREAL(B25) -> 45.98108453 | C26: 78.47235497 | D26: 355.8651691 | E26: 525.2876536 | F26: 1081.322576 | G26: 1763.864758 | H26: 2498.730764 | I26: 3235.264671 | J26: 3911.569911 | K26: 4464.823112 | L26: 4818.908045 | M26: 4942.814661 | N26: 4565.207287 | O26: 3760.486502 | P26: 2940.636767 | Q26: 2270.890646 | R26: 1765.207 | S26: 1390.646083 | T26: 1113.374245 | U26: 906.2098807 | V26: 747.9876265 | W26: 625.872439 | X26: 530.0016721 | Y26: 453.7211551 | Z26: 392.2281374 | AA26: 266.0213959 | AB26: 212.2726515 | AC26: 173.130348 | AD26: 143.7866251 | AE26: 121.2144567
A27: X | B27: =IMAGINARY(B25) -> 791.8296289 | C27: 986.3957344 | D27: 1639.63596 | E27: 1846.691643 | F27: 2263.849604 | G27: 2494.478623 | H27: 2519.830068 | I27: 2337.777988 | J27: 1949.086136 | K27: 1369.627917 | L27: 648.2233761 | M27: -127.4349885 | N27: -1485.479873 | O27: -2300.169454 | P27: -2631.107471 | Q27: -2675.643999 | R27: -2585.5898 | S27: -2443.007338 | T27: -2285.876516 | U27: -2132.7999 | V27: -1990.722849 | W27: -1860.972978 | X27: -1744.209488 | Y27: -1639.282675 | Z27: -1544.970449 | AA27: -1313.901751 | AB27: -1193.530387 | AC27: -1092.875993 | AD27: -1007.70627 | AE27: -934.8402885
A28: |Z| | B28: =IMABS(B25) -> 793.1635527 | C28: 989.512231 | D28: 1677.809912 | E28: 1919.947172 | F28: 2508.839083 | G28: 3055.10106 | H28: 3548.689759 | I28: 3991.508914 | J28: 4370.276414 | K28: 4670.174093 | L28: 4862.311003 | M28: 4944.457144 | N28: 4800.809101 | O28: 4408.178563 | P28: 3945.892943 | Q28: 3509.418062 | R28: 3130.691676 | S28: 2811.081889 | T28: 2542.603716 | U28: 2317.337214 | V28: 2126.608321 | W28: 1963.399281 | X28: 1822.955981 | Y28: 1700.914629 | Z28: 1593.981367 | AA28: 1340.561522 | AB28: 1212.260064 | AC28: 1106.50443 | AD28: 1017.912826 | AE28: 942.6660647
A32: Module | B32: Version | C32: Date
A33: CubicSpline | B33: =CubicSpline_version("v") -> 1.04 | C33: =CubicSpline_version("d") -> 2014-03-07
A35: Copyright: Owen Duffy 2010. All rights reserved.

Sheet 2643167851x3 4t
A1: Calculate impedance of ferrite cored inductor
A3: Reference:
A4: A method for estimating the impedance of a ferrite cored toroidal inductor at RF
A6: Inputs:
A7: Al (nH for 1t) | B7: =3*2300 -> 6900
A8: N | B8: 4
A9: Cs (pF) | B9: 6
A11: Constants:
A12: Mix | B12: =Mix!B1 -> #43
A13: µi | B13: =Mix!B2 -> 800
A15: Calculated values:
A16: 2*pi*N^2*Al | B16: =2*PI()*$B$8^2*$B$7*0.000000001 -> 0.0006936636579
A18: f (MHz) | B18: 1 | C18: =B18*1.12 -> 1.12 | D18: =C18*1.12 -> 1.2544 | E18: 1.404928 | F18: 1.57351936 | G18: 1.762341683 | H18: 1.973822685 | I18: 2.210681407 | J18: 2.475963176 | K18: 2.773078757 | L18: 3.105848208 | M18: 3.478549993 | N18: 3.895975993 | O18: 4.363493112 | P18: 4.887112285 | Q18: 5.473565759 | R18: 6.13039365 | S18: 6.866040888 | T18: 7.689965795 | U18: 8.61276169 | V18: 9.646293093 | W18: 10.80384826 | X18: 12.10031006 | Y18: 13.55234726 | Z18: 15.17862893 | AA18: 17.00006441 | AB18: 19.04007214 | AC18: 21.32488079 | AD18: 23.88386649 | AE18: 26.74993047
A19: µ'' | B19: =csinterpolate(CSTableU2,'2643167851x3 4t'!B18*1000000) -> 48 | C19: =csinterpolate(CSTableU2,'2643167851x3 4t'!C18*1000000) -> 59.97376587 | D19: =csinterpolate(CSTableU2,'2643167851x3 4t'!D18*1000000) -> 72.45144838 | E19: =csinterpolate(CSTableU2,'2643167851x3 4t'!E18*1000000) -> 94.66648207 | F19: =csinterpolate(CSTableU2,'2643167851x3 4t'!F18*1000000) -> 126.1188988 | G19: =csinterpolate(CSTableU2,'2643167851x3 4t'!G18*1000000) -> 168.0995067 | H19: =csinterpolate(CSTableU2,'2643167851x3 4t'!H18*1000000) -> 217.7133619 | I19: =csinterpolate(CSTableU2,'2643167851x3 4t'!I18*1000000) -> 269.6232937 | J19: =csinterpolate(CSTableU2,'2643167851x3 4t'!J18*1000000) -> 318.9751508 | K19: =csinterpolate(CSTableU2,'2643167851x3 4t'!K18*1000000) -> 362.0165413 | L19: =csinterpolate(CSTableU2,'2643167851x3 4t'!L18*1000000) -> 396.1326455 | M19: =csinterpolate(CSTableU2,'2643167851x3 4t'!M18*1000000) -> 418.571865 | N19: =csinterpolate(CSTableU2,'2643167851x3 4t'!N18*1000000) -> 431.4651761 | O19: =csinterpolate(CSTableU2,'2643167851x3 4t'!O18*1000000) -> 435.2465068 | P19: =csinterpolate(CSTableU2,'2643167851x3 4t'!P18*1000000) -> 432.5656862 | Q19: =csinterpolate(CSTableU2,'2643167851x3 4t'!Q18*1000000) -> 424.870243 | R19: =csinterpolate(CSTableU2,'2643167851x3 4t'!R18*1000000) -> 413.3932788 | S19: =csinterpolate(CSTableU2,'2643167851x3 4t'!S18*1000000) -> 399.0847877 | T19: =csinterpolate(CSTableU2,'2643167851x3 4t'!T18*1000000) -> 382.9862174 | U19: =csinterpolate(CSTableU2,'2643167851x3 4t'!U18*1000000) -> 365.8374303 | V19: =csinterpolate(CSTableU2,'2643167851x3 4t'!V18*1000000) -> 348.4821151 | W19: =csinterpolate(CSTableU2,'2643167851x3 4t'!W18*1000000) -> 331.0294542 | X19: =csinterpolate(CSTableU2,'2643167851x3 4t'!X18*1000000) -> 314.1246305 | Y19: =csinterpolate(CSTableU2,'2643167851x3 4t'!Y18*1000000) -> 297.6732896 | Z19: =csinterpolate(CSTableU2,'2643167851x3 4t'!Z18*1000000) -> 281.9476113 | AA19: =csinterpolate(CSTableU2,'2643167851x3 4t'!AA18*1000000) -> 267.0366292 | AB19: =csinterpolate(CSTableU2,'2643167851x3 4t'!AB18*1000000) -> 252.8460601 | AC19: =csinterpolate(CSTableU2,'2643167851x3 4t'!AC18*1000000) -> 239.5151542 | AD19: =csinterpolate(CSTableU2,'2643167851x3 4t'!AD18*1000000) -> 226.8510208 | AE19: =csinterpolate(CSTableU2,'2643167851x3 4t'!AE18*1000000) -> 214.6150777
A20: µ' | B20: =csinterpolate(CSTableU1,'2643167851x3 4t'!B18*1000000) -> 851.3550816 | C20: =csinterpolate(CSTableU1,'2643167851x3 4t'!C18*1000000) -> 862.5652723 | D20: =csinterpolate(CSTableU1,'2643167851x3 4t'!D18*1000000) -> 876.7710249 | E20: =csinterpolate(CSTableU1,'2643167851x3 4t'!E18*1000000) -> 892.2277089 | F20: =csinterpolate(CSTableU1,'2643167851x3 4t'!F18*1000000) -> 905.3070482 | G20: =csinterpolate(CSTableU1,'2643167851x3 4t'!G18*1000000) -> 911.0602698 | H20: =csinterpolate(CSTableU1,'2643167851x3 4t'!H18*1000000) -> 906.5017899 | I20: =csinterpolate(CSTableU1,'2643167851x3 4t'!I18*1000000) -> 888.1476375 | J20: =csinterpolate(CSTableU1,'2643167851x3 4t'!J18*1000000) -> 856.6449305 | K20: =csinterpolate(CSTableU1,'2643167851x3 4t'!K18*1000000) -> 812.8931567 | L20: =csinterpolate(CSTableU1,'2643167851x3 4t'!L18*1000000) -> 761.555736 | M20: =csinterpolate(CSTableU1,'2643167851x3 4t'!M18*1000000) -> 705.1537012 | N20: =csinterpolate(CSTableU1,'2643167851x3 4t'!N18*1000000) -> 647.8669615 | O20: =csinterpolate(CSTableU1,'2643167851x3 4t'!O18*1000000) -> 592.0977178 | P20: =csinterpolate(CSTableU1,'2643167851x3 4t'!P18*1000000) -> 539.7326444 | Q20: =csinterpolate(CSTableU1,'2643167851x3 4t'!Q18*1000000) -> 490.8919885 | R20: =csinterpolate(CSTableU1,'2643167851x3 4t'!R18*1000000) -> 446.3616975 | S20: =csinterpolate(CSTableU1,'2643167851x3 4t'!S18*1000000) -> 405.7972084 | T20: =csinterpolate(CSTableU1,'2643167851x3 4t'!T18*1000000) -> 368.9812963 | U20: =csinterpolate(CSTableU1,'2643167851x3 4t'!U18*1000000) -> 335.9305144 | V20: =csinterpolate(CSTableU1,'2643167851x3 4t'!V18*1000000) -> 306.0352297 | W20: =csinterpolate(CSTableU1,'2643167851x3 4t'!W18*1000000) -> 279.1599119 | X20: =csinterpolate(CSTableU1,'2643167851x3 4t'!X18*1000000) -> 254.9757557 | Y20: =csinterpolate(CSTableU1,'2643167851x3 4t'!Y18*1000000) -> 232.9308987 | Z20: =csinterpolate(CSTableU1,'2643167851x3 4t'!Z18*1000000) -> 212.7689263 | AA20: =csinterpolate(CSTableU1,'2643167851x3 4t'!AA18*1000000) -> 194.2602511 | AB20: =csinterpolate(CSTableU1,'2643167851x3 4t'!AB18*1000000) -> 177.1126065 | AC20: =csinterpolate(CSTableU1,'2643167851x3 4t'!AC18*1000000) -> 160.9509576 | AD20: =csinterpolate(CSTableU1,'2643167851x3 4t'!AD18*1000000) -> 145.7600199 | AE20: =csinterpolate(CSTableU1,'2643167851x3 4t'!AE18*1000000) -> 131.202047
A21: Rl | B21: =B19/$B$13*$B$16*B18*1000000 -> 41.61981947 | C21: 58.24227054 | D21: 78.80287675 | E21: 115.3212288 | F21: 172.0723997 | G21: 256.8712547 | H21: 372.608 | I21: 516.8238218 | J21: 684.7940646 | K21: 870.4615126 | L21: 1066.792161 | M21: 1262.487937 | N21: 1457.541657 | O21: 1646.753305 | P21: 1833.003683 | Q21: 2016.441421 | R21: 2197.408139 | S21: 2375.912891 | T21: 2553.680193 | U21: 2732.055537 | V21: 2914.740545 | W21: 3101.016441 | X21: 3295.774159 | Y21: 3497.947952 | Z21: 3710.73481 | AA21: 3936.229019 | AB21: 4174.300741 | AC21: 4428.723467 | AD21: 4697.906051 | AE21: 4977.850417
A22: Xl | B22: =B20/$B$13*$B$16*B18*1000000 -> 738.1926001 | C22: 837.6622548 | D22: 953.6328198 | E22: 1086.897849 | F22: 1235.170603 | G22: 1392.182519 | H22: 1551.442759 | I22: 1702.433977 | J22: 1839.094245 | K22: 1954.585291 | L22: 2050.882952 | M22: 2126.870237 | N22: 2188.573116 | O22: 2240.199194 | P22: 2287.125301 | Q22: 2329.781751 | R22: 2372.653058 | S22: 2415.874642 | T22: 2460.298009 | U22: 2508.712192 | V22: 2559.710394 | W22: 2615.113143 | X22: 2675.188206 | Y22: 2737.162481 | Z22: 2800.268665 | AA22: 2863.475472 | AB22: 2923.997645 | AC22: 2976.042519 | AD22: 3018.575261 | AE22: 3043.142036
A23: Yl | B23: =IMDIV(1,COMPLEX(B21,B22)) -> 0.0000761346715747579-0.00135036749023161i | C23: 0.0000826049225760065-0.00118805508550641i | D23: 0.0000860645331514909-0.00104150973687306i | E23: 0.0000965317227918582-0.000909807526113996i | F23: 0.000110639324904463-0.000794191525691022i | G23: 0.000128169355062118-0.000694648125492038i | H23: 0.000146361198022992-0.000609409945249828i | I23: 0.000163273434806152-0.000537827846305165i | J23: 0.000177812678765407-0.000477536665423488i | K23: 0.000190135689389171-0.000426941819297643i | L23: 0.000199618066075028-0.000383761058214592i | M23: 0.000206374773801911-0.00034767252115418i | N23: 0.000210801654612373-0.000316529432778807i | O23: 0.000213026101807868-0.000289795016737063i | P23: 0.000213367108687577-0.000266228222620551i | Q23: 0.000212392945274793-0.000245397264110169i | R23: 0.000210115726325109-0.000226872610356217i | S23: 0.0002069355945528-0.000210416155106544i | T23: 0.000203086476228258-0.000195660073022658i | U23: 0.00019858281283117-0.000182348827473205i | V23: 0.00019369839995529-0.000170104954474875i | W23: 0.000188452985691907-0.000158923981582404i | X23: 0.000182907941360819-0.000148466837800541i | Y23: 0.00017731150866973-0.000138747178548574i | Z23: 0.000171705379164223-0.000129575735685464i | AA23: 0.000166131942634616-0.000120855453406156i | AB23: 0.000160707343037696-0.00011257164296414i | AC23: 0.000155555252444434-0.000104531034463355i | AD23: 0.000150660262089908-0.0000968046902236987i | AE23: 0.000146236577112056-0.0000893997685421429i
A24: Yc | B24: =COMPLEX(0,2*PI()*B18*1000000*$B$9*0.000000000001) -> 0.0000376991118430775i | C24: 0.0000422230052642468i | D24: 0.0000472897658959564i | E24: 0.0000529645378034712i | F24: 0.0000593202823398878i | G24: 0.0000664387162206743i | H24: 0.0000744113621671552i | I24: 0.0000833407256272139i | J24: 0.0000933416127024796i | K24: 0.000104542606226777i | L24: 0.00011708771897399i | M24: 0.000131138245250869i | N24: 0.000146874834680974i | O24: 0.00016449981484269i | P24: 0.000184239792623813i | Q24: 0.000206348567738671i | R24: 0.000231110395867311i | S24: 0.000258843643371389i | T24: 0.000289904880575955i | U24: 0.00032469346624507i | V24: 0.000363656682194479i | W24: 0.000407295484057816i | X24: 0.000456170942144754i | Y24: 0.000510911455202125i | Z24: 0.00057222082982638i | AA24: 0.000640887329405545i | AB24: 0.000717793808934211i | AC24: 0.000803929066006316i | AD24: 0.000900400553927074i | AE24: 0.00100844862039832i
A25: Z | B25: =IMDIV(1,IMSUM(B23,B24)) -> 44.0366142251118+759.252910519731i | C25: 62.5911169243922+868.215930402531i | D25: 86.4205465201503+998.332647687183i | E25: 129.834493734146+1152.44784180246i | F25: 200.333101080846+1330.62123438292i | G25: 311.791103711867+1528.2132377429i | H25: 475.746909493718+1739.0122923503i | I25: 700.093066396785+1948.77557595967i | J25: 992.129877159616+2143.66823056704i | K25: 1357.21210971812+2301.32552993648i | L25: 1798.97613796361+2403.28434874529i | M25: 2306.43962029158+2419.98197693443i | N25: 2879.01661202256+2317.05205126508i | O25: 3487.71386335509+2051.36276235769i | P25: 4083.76659675739+1569.22786178597i | Q25: 4554.31279381669+837.315840394267i | R25: 4757.34682848635-95.9500548274727i | S25: 4581.50906957067-1072.17406063655i | T25: 4051.5034829737-1880.15062915961i | U25: 3326.50520551458-2384.44694735122i | V25: 2583.2880049015-2581.33188844835i | W25: 1938.75826212781-2555.1853197409i | X25: 1427.43902690271-2401.36564881355i | Y25: 1043.34262188832-2189.90213940453i | Z25: 761.721883576495-1963.66856126525i | AA25: 557.428059624893-1744.88033417501i | AB25: 409.841497077146-1543.45877342558i | AC25: 303.016897444599-1362.40607929785i | AD25: 225.382482465036-1202.15130484785i | AE25: 168.857402199496-1061.21330711911i
A26: R | B26: =IMREAL(B25) -> 44.03661423 | C26: 62.59111692 | D26: 86.42054652 | E26: 129.8344937 | F26: 200.3331011 | G26: 311.7911037 | H26: 475.7469095 | I26: 700.0930664 | J26: 992.1298772 | K26: 1357.21211 | L26: 1798.976138 | M26: 2306.43962 | N26: 2879.016612 | O26: 3487.713863 | P26: 4083.766597 | Q26: 4554.312794 | R26: 4757.346828 | S26: 4581.50907 | T26: 4051.503483 | U26: 3326.505206 | V26: 2583.288005 | W26: 1938.758262 | X26: 1427.439027 | Y26: 1043.342622 | Z26: 761.7218836 | AA26: 557.4280596 | AB26: 409.8414971 | AC26: 303.0168974 | AD26: 225.3824825 | AE26: 168.8574022
A27: X | B27: =IMAGINARY(B25) -> 759.2529105 | C27: 868.2159304 | D27: 998.3326477 | E27: 1152.447842 | F27: 1330.621234 | G27: 1528.213238 | H27: 1739.012292 | I27: 1948.775576 | J27: 2143.668231 | K27: 2301.32553 | L27: 2403.284349 | M27: 2419.981977 | N27: 2317.052051 | O27: 2051.362762 | P27: 1569.227862 | Q27: 837.3158404 | R27: -95.95005483 | S27: -1072.174061 | T27: -1880.150629 | U27: -2384.446947 | V27: -2581.331888 | W27: -2555.18532 | X27: -2401.365649 | Y27: -2189.902139 | Z27: -1963.668561 | AA27: -1744.880334 | AB27: -1543.458773 | AC27: -1362.406079 | AD27: -1202.151305 | AE27: -1061.213307
A28: |Z| | B28: =IMABS(B25) -> 760.5288985 | C28: 870.469155 | D28: 1002.066159 | E28: 1159.738343 | F28: 1345.617412 | G28: 1559.695288 | H28: 1802.913995 | I28: 2070.714019 | J28: 2362.12514 | K28: 2671.726765 | L28: 3002.014458 | M28: 3343.048981 | N28: 3695.601015 | O28: 4046.262124 | P28: 4374.885793 | Q28: 4630.64389 | R28: 4758.31433 | S28: 4705.293038 | T28: 4466.502755 | U28: 4092.825934 | V28: 3651.938011 | W28: 3207.453136 | X28: 2793.588938 | Y28: 2425.744258 | Z28: 2106.232287 | AA28: 1831.756922 | AB28: 1596.945534 | AC28: 1395.696803 | AD28: 1223.09649 | AE28: 1074.563402
A32: Module | B32: Version | C32: Date
A33: CubicSpline | B33: =CubicSpline_version("v") -> 1.04 | C33: =CubicSpline_version("d") -> 2014-03-07
A35: Copyright: Owen Duffy 2010. All rights reserved.

Sheet Mix
A1: Mix | B1: #43
A2: µi | B2: 800
A3: Fetched | B3: 2020-11-03
A5: # #43 mix u' | E5: CSTable | J5: # #43 mix u'' | N5: CSTable
A6: 10000 | B6: 816.0434106 | E6: =cstable(A6:A212,B6:B212) -> 10000 | F6: 816.0434106 | G6: 0 | J6: 10000 | K6: 10.11279513 | N6: =cstable(Mix!J6:J212,Mix!K6:K212) -> 10000 | O6: 10.11279513 | P6: 0
A7: 100000 | B7: 809.4449846 | E7: 100000 | F7: 809.4449846 | G7: 7.803729954e-10 | J7: 100000 | K7: 7.770352725 | N7: 100000 | O7: 7.770352725 | P7: 5.945587433e-10
A8: 300000 | B8: 808.5477831 | E8: 300000 | F8: 808.5477831 | G8: -1.981865782e-10 | J8: 300000 | K8: 13.12514619 | N8: 300000 | O8: 13.12514619 | P8: -1.401872009e-10
A9: 500000 | B9: 812.4832301 | E9: 500000 | F9: 812.4832301 | G9: 7.372705925e-10 | J9: 500000 | K9: 18.86346319 | N9: 500000 | O9: 18.86346319 | P9: 2.371859067e-11
A10: 700000 | B10: 830 | E10: 700000 | F10: 830 | G10: -7.136973567e-10 | J10: 700000 | K10: 26 | N10: 700000 | O10: 26 | P10: 2.550458098e-10
A11: 900000 | B11: 840 | E11: 900000 | F11: 840 | G11: 9.900033493e-10 | J11: 900000 | K11: 39.7584741 | N11: 900000 | O11: 39.7584741 | P11: -5.061123618e-11
A12: 1000000 | B12: 851.3550816 | E12: 1000000 | F12: 851.3550816 | G12: -6.995764226e-10 | J12: 1000000 | K12: 48 | N12: 1000000 | O12: 48 | P12: 6.109491076e-10
A13: 1040843.912 | B13: 855.3857072 | E13: 1040843.912 | F13: 855.3857072 | G13: 2.168921531e-10 | J13: 1040843.912 | K13: 52.24323758 | N13: 1040843.912 | O13: 52.24323758 | P13: -9.350893664e-10
A14: 1083356.049 | B14: 859.4280167 | E14: 1083356.049 | F14: 859.4280167 | G14: -6.861767624e-10 | J14: 1083356.049 | K14: 56.08474704 | N14: 1083356.049 | O14: 56.08474704 | P14: 1.170922691e-09
A15: 1127604.548 | B15: 863.329692 | E15: 1127604.548 | F15: 863.329692 | G15: 1.545551143e-09 | J15: 1127604.548 | K15: 60.66052028 | N15: 1127604.548 | O15: 60.66052028 | P15: -1.924096593e-09
A16: 1173660.329 | B16: 868.8362314 | E16: 1173660.329 | F16: 868.8362314 | G16: -1.312794584e-09 | J16: 1173660.329 | K16: 63.77378899 | N16: 1173660.329 | O16: 63.77378899 | P16: 1.754797474e-09
A17: 1221597.208 | B17: 873.4029217 | E17: 1221597.208 | F17: 873.4029217 | G17: 6.22028875e-10 | J17: 1221597.208 | K17: 68.79225981 | N17: 1221597.208 | O17: 68.79225981 | P17: -3.903514673e-10
A18: 1271492.016 | B18: 878.6444097 | E18: 1271492.016 | F18: 878.6444097 | G18: -1.208758275e-12 | J18: 1271492.016 | K18: 74.55092495 | N18: 1271492.016 | O18: 74.55092495 | P18: 1.134783946e-09
A19: 1323424.724 | B19: 884.0783849 | E19: 1323424.724 | F19: 884.0783849 | G19: -6.409234295e-10 | J19: 1323424.724 | K19: 82.10240562 | N19: 1323424.724 | O19: 82.10240562 | P19: -6.098459875e-10
A20: 1377478.567 | B20: 889.0529029 | E20: 1377478.567 | F20: 889.0529029 | G20: 1.115283944e-09 | J20: 1377478.567 | K20: 89.91580362 | N20: 1377478.567 | O20: 89.91580362 | P20: 1.205749456e-09
A21: 1433740.18 | B21: 895.3839031 | E21: 1433740.18 | F21: 895.3839031 | G21: -1.571730547e-09 | J21: 1433740.18 | K21: 99.86344223 | N21: 1433740.18 | O21: 99.86344223 | P21: -7.018855663e-10
A22: 1492299.738 | B22: 899.4493574 | E22: 1492299.738 | F22: 899.4493574 | G22: 6.75662637e-10 | J22: 1492299.738 | K22: 109.8854973 | N22: 1492299.738 | O22: 109.8854973 | P22: 1.013335143e-09
A23: 1553251.097 | B23: 904.0126394 | E23: 1553251.097 | F23: 904.0126394 | G23: -6.037316723e-10 | J23: 1553251.097 | K23: 122.0905173 | N23: 1553251.097 | O23: 122.0905173 | P23: -4.349857192e-10
A24: 1616691.948 | B24: 907.5266357 | E24: 1616691.948 | F24: 907.5266357 | G24: -1.237122459e-10 | J24: 1616691.948 | K24: 134.9205245 | N24: 1616691.948 | O24: 134.9205245 | P24: 9.207967911e-10
A25: 1682723.971 | B25: 910.0203411 | E25: 1682723.971 | F25: 910.0203411 | G25: -5.363178757e-10 | J25: 1682723.971 | K25: 150.1954341 | N25: 1682723.971 | O25: 150.1954341 | P25: -5.497370893e-10
A26: 1751453.001 | B26: 910.9492314 | E26: 1751453.001 | F26: 910.9492314 | G26: 1.050424771e-10 | J26: 1751453.001 | K26: 165.5561763 | N26: 1751453.001 | O26: 165.5561763 | P26: 5.877050501e-10
A27: 1822989.193 | B27: 911.4432599 | E27: 1822989.193 | F27: 911.4432599 | G27: -4.509964222e-10 | J27: 1822989.193 | K27: 182.6703335 | N27: 1822989.193 | O27: 182.6703335 | P27: -4.563100824e-10
A28: 1897447.203 | B28: 910.0241714 | E28: 1897447.203 | F28: 910.0241714 | G28: -4.246424971e-10 | J28: 1897447.203 | K28: 199.6600693 | N28: 1897447.203 | O28: 199.6600693 | P28: 3.336258727e-10
A29: 1974946.369 | B29: 906.443633 | E29: 1974946.369 | F29: 906.443633 | G29: -2.803274828e-12 | J29: 1974946.369 | K29: 217.9770489 | N29: 1974946.369 | O29: 217.9770489 | P29: -2.372445983e-10
A30: 2055610.905 | B30: 901.7612532 | E30: 2055610.905 | F30: 901.7612532 | G30: -4.622010693e-10 | J30: 2055610.905 | K30: 236.2656043 | N30: 2055610.905 | O30: 236.2656043 | P30: -1.062555951e-10
A31: 2139570.096 | B31: 894.7454962 | E31: 2139570.096 | F31: 894.7454962 | G31: -8.087772947e-12 | J31: 2139570.096 | K31: 254.5206731 | N31: 2139570.096 | O31: 254.5206731 | P31: -1.968602238e-11
A32: 2226958.508 | B32: 886.5318274 | E32: 2226958.508 | F32: 886.5318274 | G32: -2.402543871e-10 | J32: 2226958.508 | K32: 272.9632256 | N32: 2226958.508 | O32: 272.9632256 | P32: -2.592200413e-10
A33: 2317916.205 | B33: 876.4861149 | E33: 2317916.205 | F33: 876.4861149 | G33: -1.354132701e-10 | J33: 2317916.205 | K33: 290.6334221 | N33: 2317916.205 | O33: 290.6334221 | P33: -7.096868037e-11
A34: 2412588.97 | B34: 864.8268961 | E34: 2412588.97 | F34: 864.8268961 | G34: -4.359869391e-11 | J34: 2412588.97 | K34: 308.0098765 | N34: 2412588.97 | O34: 308.0098765 | P34: -1.524215241e-10
A35: 2511128.542 | B35: 851.8814883 | E35: 2511128.542 | F35: 851.8814883 | G35: -1.994280758e-10 | J35: 2511128.542 | K35: 324.8292976 | N35: 2511128.542 | O35: 324.8292976 | P35: -1.16842055e-10
A36: 2613692.855 | B36: 836.9656884 | E36: 2613692.855 | F36: 836.9656884 | G36: 1.670200734e-12 | J36: 2613692.855 | K36: 340.8766836 | N36: 2613692.855 | O36: 340.8766836 | P36: -2.275385875e-10
A37: 2720446.295 | B37: 820.9649591 | E37: 2720446.295 | F37: 820.9649591 | G37: -6.540241503e-11 | J37: 2720446.295 | K37: 355.442382 | N37: 2720446.295 | O37: 355.442382 | P37: -1.206147412e-10
A38: 2831559.964 | B38: 803.9201657 | E38: 2831559.964 | F38: 803.9201657 | G38: 6.508245414e-11 | J38: 2831559.964 | K38: 368.9213716 | N38: 2831559.964 | O38: 368.9213716 | P38: -1.256315281e-10
A39: 2947211.95 | B39: 786.4046357 | E39: 2947211.95 | F39: 786.4046357 | G39: -9.125721632e-11 | J39: 2947211.95 | K39: 381.3955747 | N39: 2947211.95 | O39: 381.3955747 | P39: -8.91463114e-11
A40: 3067587.615 | B40: 767.5437693 | E40: 3067587.615 | F40: 767.5437693 | G40: 3.450154087e-11 | J40: 3067587.615 | K40: 392.885811 | N40: 3067587.615 | O40: 392.885811 | P40: -1.481074882e-10
A41: 3192879.893 | B41: 748.078803 | E41: 3192879.893 | F41: 748.078803 | G41: 1.592090765e-11 | J41: 3192879.893 | K41: 402.6777229 | N41: 3192879.893 | O41: 402.6777229 | P41: -1.620369779e-10
A42: 3323289.598 | B42: 728.1939222 | E42: 3323289.598 | F42: 728.1939222 | G42: 3.675821374e-11 | J42: 3323289.598 | K42: 410.5907043 | N42: 3323289.598 | O42: 410.5907043 | P42: -2.626433233e-11
A43: 3459025.746 | B43: 708.024764 | E43: 3459025.746 | F43: 708.024764 | G43: 1.246978236e-11 | J43: 3459025.746 | K43: 417.6843355 | N43: 3459025.746 | O43: 417.6843355 | P43: -1.134038586e-10
A44: 3600305.888 | B44: 687.5199527 | E44: 3600305.888 | F44: 687.5199527 | G44: 6.25168477e-11 | J44: 3600305.888 | K44: 423.3470394 | N44: 3600305.888 | O44: 423.3470394 | P44: -4.728116298e-11
A45: 3747356.465 | B45: 667.2839247 | E45: 3747356.465 | F45: 667.2839247 | G45: 4.981942654e-11 | J45: 3747356.465 | K45: 427.9791561 | N45: 3747356.465 | O45: 427.9791561 | P45: -5.576597784e-11
A46: 3900413.162 | B46: 647.2975609 | E46: 3900413.162 | F46: 647.2975609 | G46: 2.02024744e-11 | J46: 3900413.162 | K46: 431.5502447 | N46: 3900413.162 | O46: 431.5502447 | P46: -5.609602551e-11
A47: 4059721.294 | B47: 627.2853647 | E47: 4059721.294 | F47: 627.2853647 | G47: 5.979477959e-11 | J47: 4059721.294 | K47: 433.8375244 | N47: 4059721.294 | O47: 433.8375244 | P47: -6.443556714e-11
A48: 4225536.192 | B48: 607.7149357 | E48: 4225536.192 | F48: 607.7149357 | G48: 2.088035769e-11 | J48: 4225536.192 | K48: 434.8004796 | N48: 4225536.192 | O48: 434.8004796 | P48: -2.807386636e-12
A49: 4398123.62 | B49: 588.2959163 | E49: 4398123.62 | F49: 588.2959163 | G49: 5.218089722e-11 | J49: 4398123.62 | K49: 435.3066996 | N49: 4398123.62 | O49: 435.3066996 | P49: -2.700835069e-11
A50: 4577760.194 | B50: 569.4661363 | E50: 4577760.194 | F50: 569.4661363 | G50: 3.234538078e-11 | J50: 4577760.194 | K50: 434.9828234 | N50: 4577760.194 | O50: 434.9828234 | P50: -4.957759275e-11
A51: 4764733.828 | B51: 551.1033373 | E51: 4764733.828 | F51: 551.1033373 | G51: 3.516790769e-11 | J51: 4764733.828 | K51: 433.4925342 | N51: 4764733.828 | O51: 433.4925342 | P51: 2.244806771e-11
A52: 4959344.196 | B52: 533.2520488 | E52: 4959344.196 | F52: 533.2520488 | G52: 3.086643024e-11 | J52: 4959344.196 | K52: 431.9292566 | N52: 4959344.196 | O52: 431.9292566 | P52: -4.231834292e-11
A53: 5161903.214 | B53: 515.834048 | E53: 5161903.214 | F53: 515.834048 | G53: 1.515178811e-11 | J53: 5161903.214 | K53: 429.3102906 | N53: 5161903.214 | O53: 429.3102906 | P53: -6.553980357e-13
A54: 5372735.534 | B54: 498.6328191 | E54: 5372735.534 | F54: 498.6328191 | G54: 3.621618691e-11 | J54: 5372735.534 | K54: 426.2907469 | N54: 5372735.534 | O54: 426.2907469 | P54: 3.595869392e-12
A55: 5592179.071 | B55: 482.1858831 | E55: 5592179.071 | F55: 482.1858831 | G55: 2.493974948e-11 | J55: 5592179.071 | K55: 423.1008996 | N55: 5592179.071 | O55: 423.1008996 | P55: -1.932433206e-11
A56: 5820585.54 | B56: 466.3487294 | E56: 5820585.54 | F56: 466.3487294 | G56: 1.479277162e-11 | J56: 5820585.54 | K56: 419.1481421 | N56: 5820585.54 | O56: 419.1481421 | P56: -4.319881227e-13
A57: 6058321.023 | B57: 450.8418277 | E57: 6058321.023 | F57: 450.8418277 | G57: 2.175864474e-11 | J57: 6058321.023 | K57: 414.7761543 | N57: 6058321.023 | O57: 414.7761543 | P57: -7.106446871e-12
A58: 6305766.553 | B58: 435.856601 | E58: 6305766.553 | F58: 435.856601 | G58: 1.364560544e-11 | J58: 6305766.553 | K58: 409.9786354 | N58: 6305766.553 | O58: 409.9786354 | P58: 4.082713388e-12
A59: 6563318.726 | B59: 421.3303978 | E59: 6563318.726 | F59: 421.3303978 | G59: 2.246551036e-11 | J59: 6563318.726 | K59: 405.0314957 | N59: 6563318.726 | O59: 405.0314957 | P59: -4.992308292e-12
A60: 6831390.338 | B60: 407.5182508 | E60: 6831390.338 | F60: 407.5182508 | G60: 7.946526031e-12 | J60: 6831390.338 | K60: 399.7558796 | N60: 6831390.338 | O60: 399.7558796 | P60: 5.10009528e-12
A61: 7110411.043 | B61: 393.9971741 | E61: 7110411.043 | F61: 393.9971741 | G61: 1.316378109e-11 | J61: 7110411.043 | K61: 394.3670598 | N61: 7110411.043 | O61: 394.3670598 | P61: -7.321648784e-12
A62: 7400828.045 | B62: 380.9413358 | E62: 7400828.045 | F62: 380.9413358 | G62: 1.312657505e-11 | J62: 7400828.045 | K62: 388.5238795 | N62: 7400828.045 | O62: 388.5238795 | P62: 7.147012328e-12
A63: 7703106.813 | B63: 368.4577648 | E63: 7703106.813 | F63: 368.4577648 | G63: 8.470912425e-12 | J63: 7703106.813 | K63: 382.7374037 | N63: 7703106.813 | O63: 382.7374037 | P63: -1.597706121e-12
A64: 8017731.829 | B64: 356.3852298 | E64: 8017731.829 | F64: 356.3852298 | G64: 9.988915664e-12 | J64: 8017731.829 | K64: 376.7736165 | N64: 8017731.829 | O64: 376.7736165 | P64: 2.976910149e-12
A65: 8345207.362 | B65: 344.7942781 | E65: 8345207.362 | F65: 344.7942781 | G65: 7.221910699e-12 | J65: 8345207.362 | K65: 370.7288147 | N65: 8345207.362 | O65: 370.7288147 | P65: -1.043351989e-12
A66: 8686058.276 | B66: 333.5853593 | E66: 8686058.276 | F66: 333.5853593 | G66: 6.261457886e-12 | J66: 8686058.276 | K66: 364.5412953 | N66: 8686058.276 | O66: 364.5412953 | P66: 6.611512661e-12
A67: 9040830.875 | B67: 322.7425848 | E67: 9040830.875 | F67: 322.7425848 | G67: 7.785798793e-12 | J67: 9040830.875 | K67: 358.5572719 | N67: 9040830.875 | O67: 358.5572719 | P67: -3.176519813e-12 | Q67: x
A68: 9410093.774 | B68: 312.35968 | E68: 9410093.774 | F68: 312.35968 | G68: 3.174755181e-12 | J68: 9410093.774 | K68: 352.293695 | N68: 9410093.774 | O68: 352.293695 | P68: 4.558338542e-12
A69: 9794438.815 | B69: 302.2204109 | E69: 9794438.815 | F69: 302.2204109 | G69: 7.190465334e-12 | J69: 9794438.815 | K69: 346.1714307 | N69: 9794438.815 | O69: 346.1714307 | P69: 1.30699574e-12
A70: 10194482.01 | B70: 292.5988049 | E70: 10194482.01 | F70: 292.5988049 | G70: 3.686886621e-12 | J70: 10194482.01 | K70: 340.0336128 | N70: 10194482.01 | O70: 340.0336128 | P70: -7.128846981e-13
A71: 10610864.54 | B71: 283.2869199 | E71: 10610864.54 | F71: 283.2869199 | G71: 2.952152414e-12 | J71: 10610864.54 | K71: 333.7435023 | N71: 10610864.54 | O71: 333.7435023 | P71: 4.945228551e-12
A72: 11044253.75 | B72: 274.2216373 | E72: 11044253.75 | F72: 274.2216373 | G72: 4.907980849e-12 | J72: 11044253.75 | K72: 327.7813875 | N72: 11044253.75 | O72: 327.7813875 | P72: -2.333420728e-14
A73: 11495344.28 | B73: 265.6180661 | E73: 11495344.28 | F73: 265.6180661 | G73: 2.448971817e-12 | J73: 11495344.28 | K73: 321.7860835 | N73: 11495344.28 | O73: 321.7860835 | P73: 1.542149808e-12
A74: 11964859.11 | B74: 257.2803026 | E74: 11964859.11 | F74: 257.2803026 | G74: 2.480042392e-12 | J74: 11964859.11 | K74: 315.8033369 | N74: 11964859.11 | O74: 315.8033369 | P74: 9.814965863e-13
A75: 12453550.76 | B75: 249.160291 | E75: 12453550.76 | F75: 249.160291 | G75: 1.948057846e-12 | J75: 12453550.76 | K75: 309.8798359 | N75: 12453550.76 | O75: 309.8798359 | P75: 2.29703577e-12
A76: 12962202.49 | B76: 241.2841181 | E76: 12962202.49 | F76: 241.2841181 | G76: 3.323878321e-12 | J76: 12962202.49 | K76: 304.1390618 | N76: 12962202.49 | O76: 304.1390618 | P76: -1.026321648e-13
A77: 13491629.55 | B77: 233.775772 | E77: 13491629.55 | F77: 233.775772 | G77: -1.462666136e-13 | J77: 13491629.55 | K77: 298.321386 | N77: 13491629.55 | O77: 298.321386 | P77: 1.568632579e-12
A78: 14042680.47 | B78: 226.2806641 | E78: 14042680.47 | F78: 226.2806641 | G78: 3.701249846e-12 | J78: 14042680.47 | K78: 292.6251645 | N78: 14042680.47 | O78: 292.6251645 | P78: 1.042110447e-12
A79: 14616238.48 | B79: 219.2852607 | E79: 14616238.48 | F79: 219.2852607 | G79: 3.234694926e-13 | J79: 14616238.48 | K79: 287.063184 | N79: 14616238.48 | O79: 287.063184 | P79: 1.098035601e-12
A80: 15213222.83 | B80: 212.3792322 | E80: 15213222.83 | F80: 212.3792322 | G80: 1.490391907e-12 | J80: 15213222.83 | K80: 281.6429841 | N80: 15213222.83 | O80: 281.6429841 | P80: 9.043245368e-13
A81: 15834590.37 | B81: 205.65458 | E81: 15834590.37 | F81: 205.65458 | G81: 1.046623106e-12 | J81: 15834590.37 | K81: 276.3156579 | N81: 15834590.37 | O81: 276.3156579 | P81: 2.823010767e-13
A82: 16481336.98 | B82: 199.1326295 | E82: 16481336.98 | F82: 199.1326295 | G82: 1.311231483e-12 | J82: 16481336.98 | K82: 271.0000261 | N82: 16481336.98 | O82: 271.0000261 | P82: 1.313046779e-12
A83: 17154499.26 | B83: 192.8574158 | E83: 17154499.26 | F83: 192.8574158 | G83: 6.464948852e-13 | J83: 17154499.26 | K83: 265.8900686 | N83: 17154499.26 | O83: 265.8900686 | P83: 1.776272265e-13
A84: 17855156.11 | B84: 186.7017878 | E84: 17855156.11 | F84: 186.7017878 | G84: 7.990888559e-13 | J84: 17855156.11 | K84: 260.7994498 | N84: 17855156.11 | O84: 260.7994498 | P84: 8.291171632e-13
A85: 18584430.54 | B85: 180.6860621 | E85: 18584430.54 | F85: 180.6860621 | G85: 6.599609974e-13 | J85: 18584430.54 | K85: 255.8300132 | N85: 18584430.54 | O85: 255.8300132 | P85: 2.907426705e-13
A86: 19343491.38 | B86: 174.8067106 | E86: 19343491.38 | F86: 174.8067106 | G86: 6.230208326e-13 | J86: 19343491.38 | K86: 250.9296943 | N86: 19343491.38 | O86: 250.9296943 | P86: 8.966719736e-13
A87: 20133555.24 | B87: 169.0641159 | E87: 20133555.24 | F87: 169.0641159 | G87: 5.455499548e-13 | J87: 20133555.24 | K87: 246.2315314 | N87: 20133555.24 | O87: 246.2315314 | P87: 7.141628608e-14
A88: 20955888.39 | B88: 163.4172714 | E88: 20955888.39 | F88: 163.4172714 | G88: 1.926967418e-13 | J88: 20955888.39 | K88: 241.5308595 | N88: 20955888.39 | O88: 241.5308595 | P88: 5.387860037e-13
A89: 21811808.85 | B89: 157.8108122 | E89: 21811808.85 | F89: 157.8108122 | G89: 9.398883213e-13 | J89: 21811808.85 | K89: 236.9549992 | N89: 21811808.85 | O89: 236.9549992 | P89: 4.131673169e-13
A90: 22702688.45 | B90: 152.496357 | E90: 22702688.45 | F90: 152.496357 | G90: 6.771102899e-14 | J90: 22702688.45 | K90: 232.489607 | N90: 22702688.45 | O90: 232.489607 | P90: 1.101421182e-13
A91: 23629955.06 | B91: 147.1781132 | E91: 23629955.06 | F91: 147.1781132 | G91: 3.197316481e-13 | J91: 23629955.06 | K91: 228.0226635 | N91: 23629955.06 | O91: 228.0226635 | P91: 4.330049143e-13
A92: 24595094.86 | B92: 141.9045894 | E92: 24595094.86 | F92: 141.9045894 | G92: 3.68322378e-13 | J92: 24595094.86 | K92: 223.6806842 | N92: 24595094.86 | O92: 223.6806842 | P92: 1.762615744e-13
A93: 25599654.75 | B93: 136.7576294 | E93: 25599654.75 | F93: 136.7576294 | G93: 2.815791572e-13 | J93: 25599654.75 | K93: 219.3635523 | N93: 25599654.75 | O93: 219.3635523 | P93: 9.493047212e-14
A94: 26645244.79 | B94: 131.6965718 | E94: 26645244.79 | F94: 131.6965718 | G94: 1.670972132e-13 | J94: 26645244.79 | K94: 215.0323858 | N94: 26645244.79 | O94: 215.0323858 | P94: 3.490819666e-13
A95: 27733540.82 | B95: 126.6982028 | E95: 27733540.82 | F95: 126.6982028 | G95: 4.389609836e-13 | J95: 27733540.82 | K95: 210.832678 | N95: 27733540.82 | O95: 210.832678 | P95: 1.019889939e-13
A96: 28866287.12 | B96: 121.9103193 | E96: 28866287.12 | F96: 121.9103193 | G96: 5.696711787e-14 | J96: 28866287.12 | K96: 206.6547215 | N96: 28866287.12 | O96: 206.6547215 | P96: 1.684836607e-13
A97: 30045299.2 | B97: 117.1243187 | E97: 30045299.2 | F97: 117.1243187 | G97: 2.070777772e-13 | J97: 30045299.2 | K97: 202.4945207 | N97: 30045299.2 | O97: 202.4945207 | P97: 5.44971904e-14
A98: 31272466.76 | B98: 112.4318844 | E98: 31272466.76 | F98: 112.4318844 | G98: 2.848299691e-13 | J98: 31272466.76 | K98: 198.3025938 | N98: 31272466.76 | O98: 198.3025938 | P98: 1.750070216e-13
A99: 32549756.63 | B99: 107.9118477 | E99: 32549756.63 | F99: 107.9118477 | G99: 2.295491601e-14 | J99: 32549756.63 | K99: 194.1682534 | N99: 32549756.63 | O99: 194.1682534 | P99: 1.028024588e-13
A100: 33879216.03 | B100: 103.3905232 | E100: 33879216.03 | F100: 103.3905232 | G100: 2.586728954e-13 | J100: 33879216.03 | K100: 190.0809625 | N100: 33879216.03 | O100: 190.0809625 | P100: 1.616753679e-13
A101: 35262975.74 | B101: 99.04778341 | E101: 35262975.74 | F101: 99.04778341 | G101: 1.018100613e-13 | J101: 35262975.74 | K101: 186.059191 | N101: 35262975.74 | O101: 186.059191 | P101: -4.36649301e-15
A102: 36703253.61 | B102: 94.80141586 | E102: 36703253.61 | F102: 94.80141586 | G102: 1.44013376e-13 | J102: 36703253.61 | K102: 181.9879784 | N102: 36703253.61 | O102: 181.9879784 | P102: 1.939087916e-13
A103: 38202358.07 | B103: 90.66367569 | E103: 38202358.07 | F103: 90.66367569 | G103: 9.050812875e-14 | J103: 38202358.07 | K103: 178.0347824 | N103: 38202358.07 | O103: 178.0347824 | P103: 2.820109437e-15
A104: 39762691.82 | B104: 86.61887717 | E104: 39762691.82 | F104: 86.61887717 | G104: 1.522488282e-13 | J104: 39762691.82 | K104: 174.0459223 | N104: 39762691.82 | O104: 174.0459223 | P104: 1.126661485e-13
A105: 41386755.7 | B105: 82.7360264 | E105: 41386755.7 | F105: 82.7360264 | G105: 6.020809805e-14 | J105: 41386755.7 | K105: 170.1143112 | N105: 41386755.7 | O105: 170.1143112 | P105: 5.631224905e-14
A106: 43077152.7 | B106: 78.92937687 | E106: 43077152.7 | F106: 78.92937687 | G106: 1.106301518e-13 | J106: 43077152.7 | K106: 166.2235604 | N106: 43077152.7 | O106: 166.2235604 | P106: 9.391084206e-14
A107: 44836592.13 | B107: 75.24423862 | E107: 44836592.13 | F107: 75.24423862 | G107: 4.518293581e-14 | J107: 44836592.13 | K107: 162.4113316 | N107: 44836592.13 | O107: 162.4113316 | P107: 3.782620955e-14
A108: 46667893.95 | B108: 71.61557489 | E108: 46667893.95 | F108: 71.61557489 | G108: 8.684845528e-14 | J108: 46667893.95 | K108: 158.6054727 | N108: 46667893.95 | O108: 158.6054727 | P108: 5.14066273e-14
A109: 48573993.3 | B109: 68.11114917 | E109: 48573993.3 | F109: 68.11114917 | G109: 6.593922514e-14 | J109: 48573993.3 | K109: 154.8116149 | N109: 48573993.3 | O109: 154.8116149 | P109: 3.859358166e-14
A110: 50557945.2 | B110: 64.70845403 | E110: 50557945.2 | F110: 64.70845403 | G110: 3.124142144e-14 | J110: 50557945.2 | K110: 151.0441475 | N110: 50557945.2 | O110: 151.0441475 | P110: 7.570330039e-14
A111: 52622929.46 | B111: 61.35970005 | E111: 52622929.46 | F111: 61.35970005 | G111: 8.558851678e-14 | J111: 52622929.46 | K111: 147.3701595 | N111: 52622929.46 | O111: 147.3701595 | P111: 1.41000258e-14
A112: 54772255.75 | B112: 58.16417106 | E112: 54772255.75 | F112: 58.16417106 | G112: 1.100489691e-14 | J112: 54772255.75 | K112: 143.6761117 | N112: 54772255.75 | O112: 143.6761117 | P112: 4.08198453e-14
A113: 57009368.94 | B113: 54.99950081 | E113: 57009368.94 | F113: 54.99950081 | G113: 6.808525021e-14 | J113: 57009368.94 | K113: 140.0112141 | N113: 57009368.94 | O113: 140.0112141 | P113: 4.221119559e-14
A114: 59337854.58 | B114: 51.98086999 | E114: 59337854.58 | F114: 51.98086999 | G114: 2.708246403e-14 | J114: 59337854.58 | K114: 136.406703 | N114: 59337854.58 | O114: 136.406703 | P114: 2.772649419e-14
A115: 61761444.68 | B115: 49.04606958 | E115: 61761444.68 | F115: 49.04606958 | G115: 3.995571595e-14 | J115: 61761444.68 | K115: 132.8270467 | N115: 61761444.68 | O115: 132.8270467 | P115: 2.648986099e-14
A116: 64284023.69 | B116: 46.21742756 | E116: 64284023.69 | F116: 46.21742756 | G116: 3.041228391e-14 | J116: 64284023.69 | K116: 129.2737356 | N116: 64284023.69 | O116: 129.2737356 | P116: 3.217923017e-14
A117: 66909634.69 | B117: 43.48953175 | E117: 66909634.69 | F117: 43.48953175 | G117: 3.058682364e-14 | J117: 66909634.69 | K117: 125.7777699 | N117: 66909634.69 | O117: 125.7777699 | P117: 2.458224904e-14
A118: 69642485.91 | B118: 40.86438026 | E118: 69642485.91 | F118: 40.86438026 | G118: 2.28873378e-14 | J118: 69642485.91 | K118: 122.3131771 | N118: 69642485.91 | O118: 122.3131771 | P118: 1.260134771e-14
A119: 72486957.47 | B119: 38.32897415 | E119: 72486957.47 | F119: 38.32897415 | G119: 2.69236622e-14 | J119: 72486957.47 | K119: 118.8394449 | N119: 72486957.47 | O119: 118.8394449 | P119: 2.512528766e-14
A120: 75447608.37 | B120: 35.9111902 | E120: 75447608.37 | F120: 35.9111902 | G120: 2.382673434e-14 | J120: 75447608.37 | K120: 115.4182493 | N120: 75447608.37 | O120: 115.4182493 | P120: 2.24436373e-14
A121: 78529183.84 | B121: 33.60366679 | E121: 78529183.84 | F121: 33.60366679 | G121: 1.275777311e-14 | J121: 78529183.84 | K121: 112.0540883 | N121: 78529183.84 | O121: 112.0540883 | P121: 1.217402769e-14
A122: 81736622.91 | B122: 31.36620548 | E122: 81736622.91 | F122: 31.36620548 | G122: 2.29079678e-14 | J122: 81736622.91 | K122: 108.7120941 | N122: 81736622.91 | O122: 108.7120941 | P122: 2.376259899e-14
A123: 85075066.33 | B123: 29.25810043 | E123: 85075066.33 | F123: 29.25810043 | G123: 1.674539724e-14 | J123: 85075066.33 | K123: 105.4466725 | N123: 85075066.33 | O123: 105.4466725 | P123: 9.825536416e-15
A124: 88549864.84 | B124: 27.26016277 | E124: 88549864.84 | F124: 27.26016277 | G124: 9.855645532e-15 | J124: 88549864.84 | K124: 102.2010201 | N124: 88549864.84 | O124: 102.2010201 | P124: 1.473904499e-14
A125: 92166587.72 | B125: 25.33436861 | E125: 92166587.72 | F125: 25.33436861 | G125: 1.578512257e-14 | J125: 92166587.72 | K125: 98.99834385 | N125: 92166587.72 | O125: 98.99834385 | P125: 1.327992044e-14
A126: 95931031.71 | B126: 23.52832203 | E126: 95931031.71 | F126: 23.52832203 | G126: 1.263370068e-14 | J126: 95931031.71 | K126: 95.86141645 | N126: 95931031.71 | O126: 95.86141645 | P126: 1.698458658e-14
A127: 99849230.31 | B127: 21.83230634 | E127: 99849230.31 | F127: 21.83230634 | G127: 7.12278598e-15 | J127: 99849230.31 | K127: 92.81023381 | N127: 99849230.31 | O127: 92.81023381 | P127: 4.22048291e-15
A128: 103927463.5 | B128: 20.20725259 | E128: 103927463.5 | F128: 20.20725259 | G128: 1.051939076e-14 | J128: 103927463.5 | K128: 89.77140325 | N128: 103927463.5 | O128: 89.77140325 | P128: 1.654479402e-14
A129: 108172267.6 | B129: 18.68336788 | E129: 108172267.6 | F129: 18.68336788 | G129: 7.695349731e-15 | J129: 108172267.6 | K129: 86.83106141 | N129: 108172267.6 | O129: 86.83106141 | P129: 5.190941302e-15
A130: 112590446.2 | B130: 17.24877159 | E130: 112590446.2 | F130: 17.24877159 | G130: 6.292035054e-15 | J130: 112590446.2 | K130: 83.92687516 | N130: 112590446.2 | O130: 83.92687516 | P130: 1.177521666e-14
A131: 117189080.5 | B131: 15.89862405 | E131: 117189080.5 | F131: 15.89862405 | G131: 8.516867688e-15 | J131: 117189080.5 | K131: 81.10449855 | N131: 117189080.5 | O131: 81.10449855 | P131: 5.701924943e-15
A132: 121975540.9 | B132: 14.65712437 | E132: 121975540.9 | F132: 14.65712437 | G132: 3.451942746e-15 | J132: 121975540.9 | K132: 78.33059554 | N132: 121975540.9 | O132: 78.33059554 | P132: 9.211591948e-15
A133: 126957499.2 | B133: 13.47214896 | E133: 126957499.2 | F133: 13.47214896 | G133: 4.202908033e-15 | J133: 126957499.2 | K133: 75.64825806 | N133: 126957499.2 | O133: 75.64825806 | P133: 7.922195188e-15
A134: 132142940.1 | B134: 12.35542792 | E134: 132142940.1 | F134: 12.35542792 | G134: 6.231920007e-15 | J134: 132142940.1 | K134: 73.04742107 | N134: 132142940.1 | O134: 73.04742107 | P134: 2.715687611e-15
A135: 137540174.7 | B135: 11.33991416 | E135: 137540174.7 | F135: 11.33991416 | G135: 1.763975075e-15 | J135: 137540174.7 | K135: 70.47486799 | N135: 137540174.7 | O135: 70.47486799 | P135: 9.444855536e-15
A136: 143157853.5 | B136: 10.36420209 | E136: 143157853.5 | F136: 10.36420209 | G136: 2.548322037e-15 | J136: 143157853.5 | K136: 68.01979237 | N136: 143157853.5 | O136: 68.01979237 | P136: 2.664970627e-15
A137: 149004980.2 | B137: 9.440788341 | E137: 149004980.2 | F137: 9.440788341 | G137: 4.483911171e-15 | J137: 149004980.2 | K137: 65.61151219 | N137: 149004980.2 | O137: 65.61151219 | P137: 6.285232544e-15
A138: 155090926.5 | B138: 8.612194737 | E138: 155090926.5 | F138: 8.612194737 | G138: 1.43778137e-15 | J138: 155090926.5 | K138: 63.29295152 | N138: 155090926.5 | O138: 63.29295152 | P138: 3.260018483e-15
A139: 161425446.7 | B139: 7.826606509 | E139: 161425446.7 | F139: 7.826606509 | G139: 1.544776872e-15 | J139: 161425446.7 | K139: 61.03288382 | N139: 161425446.7 | O139: 61.03288382 | P139: 4.08375897e-15
A140: 168018693.4 | B140: 7.078008771 | E140: 168018693.4 | F140: 7.078008771 | G140: 2.095005284e-15 | J140: 168018693.4 | K140: 58.84546545 | N140: 168018693.4 | O140: 58.84546545 | P140: 3.621612943e-15
A141: 174881234.1 | B141: 6.387697882 | E141: 174881234.1 | F141: 6.387697882 | G141: 1.621637166e-15 | J141: 174881234.1 | K141: 56.73133403 | N141: 174881234.1 | O141: 56.73133403 | P141: 2.593864486e-15
A142: 182024067.8 | B142: 5.752794218 | E142: 182024067.8 | F142: 5.752794218 | G142: 1.459612043e-15 | J142: 182024067.8 | K142: 54.67562862 | N142: 182024067.8 | O142: 54.67562862 | P142: 3.374317201e-15
A143: 189458642.8 | B143: 5.162377181 | E143: 189458642.8 | F143: 5.162377181 | G143: 3.62200713e-16 | J143: 189458642.8 | K143: 52.70152094 | N143: 189458642.8 | O143: 52.70152094 | P143: 2.247478569e-15
A144: 197196874.9 | B144: 4.592156449 | E144: 197196874.9 | F144: 4.592156449 | G144: 1.61727524e-15 | J144: 197196874.9 | K144: 50.78913283 | N144: 197196874.9 | O144: 50.78913283 | P144: 2.208022988e-15
A145: 205251166.7 | B145: 4.076342228 | E145: 205251166.7 | F145: 4.076342228 | G145: 4.960226747e-16 | J145: 205251166.7 | K145: 48.93524506 | N145: 205251166.7 | O145: 48.93524506 | P145: 1.817001424e-15
A146: 213634427.2 | B146: 3.586660745 | E146: 213634427.2 | F146: 3.586660745 | G146: 5.307282648e-16 | J146: 213634427.2 | K146: 47.14199955 | N146: 213634427.2 | O146: 47.14199955 | P146: 2.395003335e-15
A147: 222360093 | B147: 3.120234351 | E147: 222360093 | F147: 3.120234351 | G147: 8.509420762e-16 | J147: 222360093 | K147: 45.42751077 | N147: 222360093 | O147: 45.42751077 | P147: 8.406148791e-16
A148: 231442149 | B148: 2.695352478 | E148: 231442149 | F148: 2.695352478 | G148: 5.60905468e-16 | J148: 231442149 | K148: 43.74810579 | N148: 231442149 | O148: 43.74810579 | P148: 2.048378471e-15
A149: 240895151.7 | B149: 2.302422231 | E149: 240895151.7 | F149: 2.302422231 | G149: 2.934493483e-16 | J149: 240895151.7 | K149: 42.14543587 | N149: 240895151.7 | O149: 42.14543587 | P149: 9.176587803e-16
A150: 250734252.1 | B150: 1.929560777 | E150: 250734252.1 | F150: 1.929560777 | G150: 5.488502268e-16 | J150: 250734252.1 | K150: 40.58795409 | N150: 250734252.1 | O150: 40.58795409 | P150: 1.29114161e-15
A151: 260975219.8 | B151: 1.587058651 | E151: 260975219.8 | F151: 1.587058651 | G151: 1.73838924e-16 | J151: 260975219.8 | K151: 39.09008945 | N151: 260975219.8 | O151: 39.09008945 | P151: 1.105105807e-15
A152: 271634468.7 | B152: 1.261615037 | E152: 271634468.7 | F152: 1.261615037 | G152: 4.305322768e-16 | J152: 271634468.7 | K152: 37.64841345 | N152: 271634468.7 | O152: 37.64841345 | P152: 6.237404342e-16
A153: 282729083 | B153: 0.961547574 | E153: 282729083 | F153: 0.961547574 | G153: 2.952671058e-17 | J153: 282729083 | K153: 36.24304964 | N153: 282729083 | O153: 36.24304964 | P153: 1.132538919e-15
A154: 294276844.7 | B154: 0.671581848 | E154: 294276844.7 | F154: 0.671581848 | G154: 4.765359127e-16 | J154: 294276844.7 | K154: 34.90317234 | N154: 294276844.7 | O154: 34.90317234 | P154: 4.886577689e-16
A155: 306296262.3 | B155: 0.415344641 | E155: 306296262.3 | F155: 0.415344641 | G155: -4.414905675e-18 | J155: 306296262.3 | K155: 33.59938343 | N155: 306296262.3 | O155: 33.59938343 | P155: 7.673335271e-16
A156: 318806599.8 | B156: 0.167703835 | E156: 318806599.8 | F156: 0.167703835 | G156: 2.902535438e-16 | J156: 318806599.8 | K156: 32.34859618 | N156: 318806599.8 | O156: 32.34859618 | P156: 5.947993351e-16
A157: 331827908.5 | B157: -0.055788884 | E157: 331827908.5 | F157: -0.055788884 | G157: 7.84567648e-17 | J157: 331827908.5 | K157: 31.14511465 | N157: 331827908.5 | O157: 31.14511465 | P157: 4.120722796e-16
A158: 345381058.3 | B158: -0.266081108 | E158: 345381058.3 | F158: -0.266081108 | G158: 1.428173712e-16 | J158: 345381058.3 | K158: 29.97529319 | N158: 345381058.3 | O158: 29.97529319 | P158: 5.176690007e-16
A159: 359487771.8 | B159: -0.460160219 | E159: 359487771.8 | F159: -0.460160219 | G159: 1.123706623e-16 | J159: 359487771.8 | K159: 28.85230646 | N159: 359487771.8 | O159: 28.85230646 | P159: 4.267669503e-16
A160: 374170658.7 | B160: -0.6384921 | E160: 374170658.7 | F160: -0.6384921 | G160: 8.099881728e-17 | J160: 374170658.7 | K160: 27.7720412 | N160: 374170658.7 | O160: 27.7720412 | P160: 2.94578674e-16
A161: 389453252.1 | B161: -0.803665771 | E161: 389453252.1 | F161: -0.803665771 | G161: 9.954666186e-17 | J161: 389453252.1 | K161: 26.72586867 | N161: 389453252.1 | O161: 26.72586867 | P161: 4.440951318e-16
A162: 405360046.4 | B162: -0.95280532 | E162: 405360046.4 | F162: -0.95280532 | G162: 7.199801934e-17 | J162: 405360046.4 | K162: 25.72936557 | N162: 405360046.4 | O162: 25.72936557 | P162: 1.665135185e-16
A163: 421916536.5 | B163: -1.089612412 | E163: 421916536.5 | F163: -1.089612412 | G163: 2.528849843e-17 | J163: 421916536.5 | K163: 24.75833806 | N163: 421916536.5 | O163: 24.75833806 | P163: 3.688499142e-16
A164: 439149258.3 | B164: -1.218894539 | E164: 439149258.3 | F164: -1.218894539 | G164: 9.659072108e-17 | J164: 439149258.3 | K164: 23.83742534 | N164: 439149258.3 | O164: 23.83742534 | P164: 2.074158873e-16
A165: 457085831.9 | B165: -1.330816403 | E165: 457085831.9 | F165: -1.330816403 | G165: 1.916339906e-17 | J165: 457085831.9 | K165: 22.95090576 | N165: 457085831.9 | O165: 22.95090576 | P165: 1.75146028e-16
A166: 475755005.4 | B166: -1.433134834 | E166: 475755005.4 | F166: -1.433134834 | G166: 7.606514931e-17 | J166: 475755005.4 | K166: 22.09307736 | N166: 475755005.4 | O166: 22.09307736 | P166: 2.311251812e-16
A167: 495186700.9 | B167: -1.521798239 | E167: 495186700.9 | F167: -1.521798239 | G167: -3.331432923e-17 | J167: 495186700.9 | K167: 21.27675587 | N167: 495186700.9 | O167: 21.27675587 | P167: 1.416658523e-16
A168: 515412062.8 | B168: -1.61281749 | E168: 515412062.8 | F168: -1.61281749 | G168: 7.612450243e-17 | J168: 515412062.8 | K168: 20.49158785 | N168: 515412062.8 | O168: 20.49158785 | P168: 1.68388638e-16
A169: 536463507.7 | B169: -1.685171164 | E169: 536463507.7 | F169: -1.685171164 | G169: 3.652964098e-17 | J169: 536463507.7 | K169: 19.74229606 | N169: 536463507.7 | O169: 19.74229606 | P169: 1.234710775e-16
A170: 558374776 | B170: -1.748774697 | E170: 558374776 | F170: -1.748774697 | G170: -7.010366728e-17 | J170: 558374776 | K170: 19.02552627 | N170: 558374776 | O170: 19.02552627 | P170: 1.429298252e-16
A171: 581180986.1 | B171: -1.824947393 | E171: 581180986.1 | F171: -1.824947393 | G171: 1.247898585e-16 | J171: 581180986.1 | K171: 18.34444448 | N171: 581180986.1 | O171: 18.34444448 | P171: 7.027555546e-17
A172: 604918691.1 | B172: -1.869291211 | E172: 604918691.1 | F172: -1.869291211 | G172: -4.996613708e-17 | J172: 604918691.1 | K172: 17.68643739 | N172: 604918691.1 | O172: 17.68643739 | P172: 1.290052131e-16
A173: 629625936.8 | B173: -1.919426596 | E173: 629625936.8 | F173: -1.919426596 | G173: 3.692746471e-17 | J173: 629625936.8 | K173: 17.06591121 | N173: 629625936.8 | O173: 17.06591121 | P173: 5.913604278e-17
A174: 655342323.1 | B174: -1.962779073 | E174: 655342323.1 | F174: -1.962779073 | G174: -1.668956715e-17 | J174: 655342323.1 | K174: 16.46785679 | N174: 655342323.1 | O174: 16.46785679 | P174: 7.797344031e-17
A175: 682109067.2 | B175: -2.010004471 | E175: 682109067.2 | F175: -2.010004471 | G175: 1.23648153e-17 | J175: 682109067.2 | K175: 15.89743828 | N175: 682109067.2 | O175: 15.89743828 | P175: 7.341142046e-17
A176: 709969069.8 | B176: -2.056958278 | E176: 709969069.8 | F176: -2.056958278 | G176: -1.544425956e-17 | J176: 709969069.8 | K176: 15.35949916 | N176: 709969069.8 | O176: 15.35949916 | P176: 6.837169734e-17
A177: 738966984 | B177: -2.106915463 | E177: 738966984 | F177: -2.106915463 | G177: 4.09391471e-17 | J177: 738966984 | K177: 14.85061966 | N177: 738966984 | O177: 14.85061966 | P177: 2.547574881e-17
A178: 769149286.3 | B178: -2.137781096 | E178: 769149286.3 | F178: -2.137781096 | G178: -6.522092444e-18 | J178: 769149286.3 | K178: 14.35392972 | N178: 769149286.3 | O178: 14.35392972 | P178: 5.15880793e-17
A179: 800564352 | B179: -2.169012949 | E179: 800564352 | F179: -2.169012949 | G179: -8.318224806e-18 | J179: 800564352 | K179: 13.8833472 | N179: 800564352 | O179: 13.8833472 | P179: 5.527864566e-17
A180: 833262531.9 | B180: -2.208400104 | E180: 833262531.9 | F180: -2.208400104 | G180: 2.787169473e-19 | J180: 833262531.9 | K180: 13.44260977 | N180: 833262531.9 | O180: 13.44260977 | P180: 9.007211229e-18
A181: 867296233.3 | B181: -2.246651436 | E181: 867296233.3 | F181: -2.246651436 | G181: 2.111567756e-17 | J181: 867296233.3 | K181: 13.0110046 | N181: 867296233.3 | O181: 13.0110046 | P181: 5.212218842e-17
A182: 902720004.2 | B182: -2.271554896 | E182: 902720004.2 | F182: -2.271554896 | G182: -1.17805418e-17 | J182: 902720004.2 | K182: 12.60952872 | N182: 902720004.2 | O182: 12.60952872 | P182: 1.530045087e-17
A183: 939590620.5 | B183: -2.300684784 | E183: 939590620.5 | F183: -2.300684784 | G183: 1.174616266e-17 | J183: 939590620.5 | K183: 12.22325904 | N183: 939590620.5 | O183: 12.22325904 | P183: 2.940896592e-17
A184: 977967177.1 | B184: -2.321922889 | E184: 977967177.1 | F184: -2.321922889 | G184: 2.253605312e-18 | J184: 977967177.1 | K184: 11.85805387 | N184: 977967177.1 | O184: 11.85805387 | P184: 2.006291756e-17
A185: 1017911182 | B185: -2.341299582 | E185: 1017911182 | F185: -2.341299582 | G185: -9.860850713e-18 | J185: 1017911182 | K185: 11.51208879 | N185: 1017911182 | O185: 11.51208879 | P185: 2.151420751e-17
A186: 1059486657 | B186: -2.367853582 | E186: 1059486657 | F186: -2.367853582 | G186: 1.433778333e-17 | J186: 1059486657 | K186: 11.18573273 | N186: 1059486657 | O186: 11.18573273 | P186: 1.347214347e-17
A187: 1102760237 | B187: -2.382587788 | E187: 1102760237 | F187: -2.382587788 | G187: -5.405145443e-18 | J187: 1102760237 | K187: 10.87660458 | N187: 1102760237 | O187: 10.87660458 | P187: 2.440818446e-17
A188: 1147801278 | B188: -2.397842195 | E188: 1147801278 | F188: -2.397842195 | G188: 7.662562036e-18 | J188: 1147801278 | K188: 10.59413026 | N188: 1147801278 | O188: 10.59413026 | P188: 7.512051954e-18
A189: 1194681973 | B189: -2.40574571 | E189: 1194681973 | F189: -2.40574571 | G189: -3.08694262e-18 | J189: 1194681973 | K189: 10.32674988 | N189: 1194681973 | O189: 10.32674988 | P189: 1.979453222e-17
A190: 1243477458 | B190: -2.41658175 | E190: 1243477458 | F190: -2.41658175 | G190: -1.832725478e-18 | J190: 1243477458 | K190: 10.0842746 | N190: 1243477458 | O190: 10.0842746 | P190: 5.437745911e-18
A191: 1294265942 | B191: -2.428523833 | E191: 1294265942 | F191: -2.428523833 | G191: 8.609633439e-18 | J191: 1294265942 | K191: 9.857029553 | N191: 1294265942 | O191: 9.857029553 | P191: 1.812088977e-17
A192: 1347128826 | B192: -2.429057786 | E192: 1347128826 | F192: -2.429057786 | G192: -6.460514998e-18 | J192: 1347128826 | K192: 9.658149541 | N192: 1347128826 | O192: 9.658149541 | P192: 4.544776029e-18
A193: 1402150837 | B193: -2.437691491 | E193: 1402150837 | F193: -2.437691491 | G193: 1.053692181e-18 | J193: 1402150837 | K193: 9.476343336 | N193: 1402150837 | O193: 9.476343336 | P193: 1.470501017e-17
A194: 1459420162 | B194: -2.447634592 | E194: 1459420162 | F194: -2.447634592 | G194: 3.246307654e-19 | J194: 1459420162 | K194: 9.322814549 | N194: 1459420162 | O194: 9.322814549 | P194: 3.282615155e-18
A195: 1519028591 | B195: -2.456583053 | E195: 1519028591 | F195: -2.456583053 | G195: 7.997562165e-20 | J195: 1519028591 | K195: 9.185113931 | N195: 1519028591 | O195: 9.185113931 | P195: 1.031616219e-17
A196: 1581071660 | B196: -2.466197302 | E196: 1581071660 | F196: -2.466197302 | G196: -1.093594634e-18 | J196: 1581071660 | K196: 9.07482699 | N196: 1581071660 | O196: 9.07482699 | P196: 7.887626124e-18
A197: 1645648812 | B197: -2.480427891 | E197: 1645648812 | F197: -2.480427891 | G197: -1.86518592e-18 | J197: 1645648812 | K197: 8.993569752 | N197: 1645648812 | O197: 8.993569752 | P197: 7.405505185e-18
A198: 1712863547 | B198: -2.503263931 | E198: 1712863547 | F198: -2.503263931 | G198: -2.291715052e-18 | J198: 1712863547 | K198: 8.940985197 | N198: 1712863547 | O198: 8.940985197 | P198: 5.868213262e-18
A199: 1782823595 | B199: -2.534327999 | E199: 1782823595 | F199: -2.534327999 | G199: 1.835750917e-18 | J199: 1782823595 | K199: 8.916090809 | N199: 1782823595 | O199: 8.916090809 | P199: 6.450770682e-18
A200: 1855641085 | B200: -2.56735631 | E200: 1855641085 | F200: -2.56735631 | G200: -5.784108609e-18 | J200: 1855641085 | K200: 8.922877831 | N200: 1855641085 | O200: 8.922877831 | P200: 6.065411363e-18
A201: 1931432726 | B201: -2.623242801 | E201: 1931432726 | F201: -2.623242801 | G201: -1.547572139e-18 | J201: 1931432726 | K201: 8.964492093 | N201: 1931432726 | O201: 8.964492093 | P201: 6.104270225e-18
... 11 more rows

Sheet 2643167851x3 5t (2)
A1: Calculate impedance of ferrite cored inductor
A3: Reference:
A4: A method for estimating the impedance of a ferrite cored toroidal inductor at RF
A6: Inputs:
A7: Al (nH for 1t) | B7: =3*2300 -> 6900
A8: N | B8: 5
A9: Cs (pF) | B9: 29
A11: Constants:
A12: Mix | B12: =Mix!B1 -> #43
A13: µi | B13: =Mix!B2 -> 800
A15: Calculated values:
A16: 2*pi*N^2*Al | B16: =2*PI()*$B$8^2*$B$7*0.000000001 -> 0.001083849465
A18: f (MHz) | B18: 1 | C18: =B18*1.06 -> 1.06 | D18: 1.1236 | E18: 1.191016 | F18: 1.26247696 | G18: 1.338225578 | H18: 1.418519112 | I18: 1.503630259 | J18: 1.593848075 | K18: 1.689478959 | L18: 1.790847697 | M18: 1.898298558 | N18: 2.012196472 | O18: 2.13292826 | P18: 2.260903956 | Q18: 2.396558193 | R18: 2.540351685 | S18: 2.692772786 | T18: 2.854339153 | U18: 3.025599502 | V18: 3.207135472 | W18: 3.399563601 | X18: 3.603537417 | Y18: 3.819749662 | Z18: 4.048934641 | AA18: 4.29187072 | AB18: 4.549382963 | AC18: 4.822345941 | AD18: 5.111686697 | AE18: 5.418387899
A19: µ'' | B19: =csinterpolate(CSTableU2,'2643167851x3 5t (2)'!B18*1000000) -> 48 | C19: =csinterpolate(CSTableU2,'2643167851x3 5t (2)'!C18*1000000) -> 53.95560986 | D19: =csinterpolate(CSTableU2,'2643167851x3 5t (2)'!D18*1000000) -> 60.31079422 | E19: =csinterpolate(CSTableU2,'2643167851x3 5t (2)'!E18*1000000) -> 65.38351679 | F19: =csinterpolate(CSTableU2,'2643167851x3 5t (2)'!F18*1000000) -> 73.41194219 | G19: =csinterpolate(CSTableU2,'2643167851x3 5t (2)'!G18*1000000) -> 84.19505597 | H19: =csinterpolate(CSTableU2,'2643167851x3 5t (2)'!H18*1000000) -> 97.13908238 | I19: =csinterpolate(CSTableU2,'2643167851x3 5t (2)'!I18*1000000) -> 112.0304216 | J19: =csinterpolate(CSTableU2,'2643167851x3 5t (2)'!J18*1000000) -> 130.15872 | K19: =csinterpolate(CSTableU2,'2643167851x3 5t (2)'!K18*1000000) -> 151.7330598 | L19: =csinterpolate(CSTableU2,'2643167851x3 5t (2)'!L18*1000000) -> 174.9504499 | M19: =csinterpolate(CSTableU2,'2643167851x3 5t (2)'!M18*1000000) -> 199.856674 | N19: =csinterpolate(CSTableU2,'2643167851x3 5t (2)'!N18*1000000) -> 226.5627543 | O19: =csinterpolate(CSTableU2,'2643167851x3 5t (2)'!O18*1000000) -> 253.1352695 | P19: =csinterpolate(CSTableU2,'2643167851x3 5t (2)'!P18*1000000) -> 281.6716275 | Q19: =csinterpolate(CSTableU2,'2643167851x3 5t (2)'!Q18*1000000) -> 316.0556391 | R19: =csinterpolate(CSTableU2,'2643167851x3 5t (2)'!R18*1000000) -> 361.5800703 | S19: =csinterpolate(CSTableU2,'2643167851x3 5t (2)'!S18*1000000) -> 425.3124796 | T19: =csinterpolate(CSTableU2,'2643167851x3 5t (2)'!T18*1000000) -> 516.5435337 | U19: =csinterpolate(CSTableU2,'2643167851x3 5t (2)'!U18*1000000) -> 647.3352307 | V19: =csinterpolate(CSTableU2,'2643167851x3 5t (2)'!V18*1000000) -> 833.1900947 | W19: =csinterpolate(CSTableU2,'2643167851x3 5t (2)'!W18*1000000) -> 1093.866365 | X19: =csinterpolate(CSTableU2,'2643167851x3 5t (2)'!X18*1000000) -> 1454.370219 | Y19: =csinterpolate(CSTableU2,'2643167851x3 5t (2)'!Y18*1000000) -> 1946.159695 | Z19: =csinterpolate(CSTableU2,'2643167851x3 5t (2)'!Z18*1000000) -> 2608.605681 | AA19: =csinterpolate(CSTableU2,'2643167851x3 5t (2)'!AA18*1000000) -> 3490.760797 | AB19: =csinterpolate(CSTableU2,'2643167851x3 5t (2)'!AB18*1000000) -> 4653.499032 | AC19: =csinterpolate(CSTableU2,'2643167851x3 5t (2)'!AC18*1000000) -> 6172.103543 | AD19: =csinterpolate(CSTableU2,'2643167851x3 5t (2)'!AD18*1000000) -> 8139.387245 | AE19: =csinterpolate(CSTableU2,'2643167851x3 5t (2)'!AE18*1000000) -> 10669.46037
A20: µ' | B20: =csinterpolate(CSTableU1,'2643167851x3 5t (2)'!B18*1000000) -> 851.3550816 | C20: =csinterpolate(CSTableU1,'2643167851x3 5t (2)'!C18*1000000) -> 857.256323 | D20: =csinterpolate(CSTableU1,'2643167851x3 5t (2)'!D18*1000000) -> 862.9174152 | E20: =csinterpolate(CSTableU1,'2643167851x3 5t (2)'!E18*1000000) -> 870.6049035 | F20: =csinterpolate(CSTableU1,'2643167851x3 5t (2)'!F18*1000000) -> 877.6523959 | G20: =csinterpolate(CSTableU1,'2643167851x3 5t (2)'!G18*1000000) -> 885.4100365 | H20: =csinterpolate(CSTableU1,'2643167851x3 5t (2)'!H18*1000000) -> 893.8065728 | I20: =csinterpolate(CSTableU1,'2643167851x3 5t (2)'!I18*1000000) -> 900.2498679 | J20: =csinterpolate(CSTableU1,'2643167851x3 5t (2)'!J18*1000000) -> 906.1011447 | K20: =csinterpolate(CSTableU1,'2643167851x3 5t (2)'!K18*1000000) -> 899.0292816 | L20: =csinterpolate(CSTableU1,'2643167851x3 5t (2)'!L18*1000000) -> 856.5529651 | M20: =csinterpolate(CSTableU1,'2643167851x3 5t (2)'!M18*1000000) -> 748.3256151 | N20: =csinterpolate(CSTableU1,'2643167851x3 5t (2)'!N18*1000000) -> 534.1273274 | O20: =csinterpolate(CSTableU1,'2643167851x3 5t (2)'!O18*1000000) -> 161.4046474 | P20: =csinterpolate(CSTableU1,'2643167851x3 5t (2)'!P18*1000000) -> -437.7362888 | Q20: =csinterpolate(CSTableU1,'2643167851x3 5t (2)'!Q18*1000000) -> -1350.188027 | R20: =csinterpolate(CSTableU1,'2643167851x3 5t (2)'!R18*1000000) -> -2686.306261 | S20: =csinterpolate(CSTableU1,'2643167851x3 5t (2)'!S18*1000000) -> -4585.321597 | T20: =csinterpolate(CSTableU1,'2643167851x3 5t (2)'!T18*1000000) -> -7221.920571 | U20: =csinterpolate(CSTableU1,'2643167851x3 5t (2)'!U18*1000000) -> -10814.19755 | V20: =csinterpolate(CSTableU1,'2643167851x3 5t (2)'!V18*1000000) -> -15633.31403 | W20: =csinterpolate(CSTableU1,'2643167851x3 5t (2)'!W18*1000000) -> -22015.13655 | X20: =csinterpolate(CSTableU1,'2643167851x3 5t (2)'!X18*1000000) -> -30374.31181 | Y20: =csinterpolate(CSTableU1,'2643167851x3 5t (2)'!Y18*1000000) -> -41221.26504 | Z20: =csinterpolate(CSTableU1,'2643167851x3 5t (2)'!Z18*1000000) -> -55182.66809 | AA20: =csinterpolate(CSTableU1,'2643167851x3 5t (2)'!AA18*1000000) -> -73026.06776 | AB20: =csinterpolate(CSTableU1,'2643167851x3 5t (2)'!AB18*1000000) -> -95689.61741 | AC20: =csinterpolate(CSTableU1,'2643167851x3 5t (2)'!AC18*1000000) -> -124317.7653 | AD20: =csinterpolate(CSTableU1,'2643167851x3 5t (2)'!AD18*1000000) -> -160304.1425 | AE20: =csinterpolate(CSTableU1,'2643167851x3 5t (2)'!AE18*1000000) -> -205343.2038
A21: Rl | B21: =B19/$B$13*$B$16*B18*1000000 -> 65.03096793 | C21: 77.48568055 | D21: 91.8091061 | E21: 105.5030106 | F21: 125.5651604 | G21: 152.6493281 | H21: 186.6844605 | I21: 228.2212123 | J21: 281.0600842 | K21: 347.3057583 | L21: 424.4755668 | M21: 513.9988584 | N21: 617.6435061 | O21: 731.4891507 | P21: 862.7882017 | Q21: 1026.196439 | R21: 1244.449593 | S21: 1551.625171 | T21: 1997.521602 | U21: 2653.503499 | V21: 3620.265189 | W21: 5038.095783 | X21: 7100.402846 | Y21: 10071.45823 | Z21: 14309.6227 | AA21: 20297.64733 | AB21: 28682.11056 | AC21: 40324.64438 | AD21: 56368.29769 | AE21: 78323.39931
A22: Xl | B22: =B20/$B$13*$B$16*B18*1000000 -> 1153.425938 | C22: 1231.10627 | D22: 1313.590338 | E22: 1404.810309 | F22: 1501.15309 | G22: 1605.287218 | H22: 1717.741137 | I22: 1833.931474 | J22: 1956.6024 | K22: 2057.811572 | L22: 2078.221609 | M22: 1924.571765 | N22: 1456.109925 | O22: 466.4136635 | P22: -1340.829777 | Q22: -4383.905787 | R22: -9245.456281 | S22: -16728.17223 | T22: -27927.83456 | U22: -44328.67188 | V22: -67927.76695 | W22: -101396.6332 | X22: -148290.8872 | Y22: -213321.7794 | Z22: -302706.9846 | AA22: -424623.0135 | AB22: -589788.4941 | AC22: -812214.1249 | AD22: -1110166.079 | AE22: -1507403.11
A23: Yl | B23: =IMDIV(1,COMPLEX(B21,B22)) -> 0.0000487261898078446-0.000864235193748225i | C23: 0.000050922924562366-0.000809072479719403i | D23: 0.0000529480009337168-0.000757571719965694i | E23: 0.0000531602307193812-0.000707847479137954i | F23: 0.0000553338863093139-0.000661526128334597i | G23: 0.0000587056607847318-0.000617359067705501i | H23: 0.0000625306831610959-0.000575364047516567i | I23: 0.0000668214291185236-0.000536961138631374i | J23: 0.0000719322722322292-0.000500757184721386i | K23: 0.0000797448981061331-0.000472494251080482i | L23: 0.000094344999845267-0.000461910726273324i | M23: 0.000129530410590216-0.000485002187959385i | N23: 0.000246885608037504-0.000582038960567501i | O23: 0.000971926089867585-0.000619721574566203i | P23: 0.000339382703501979+0.000527423107581198i | Q23: 0.000050622097770268+0.000216257335269559i | R23: 0.0000142995613439236+0.000106236500060788i | S23: 5.49755205721258E-06+0.0000592694674838236i | T23: 2.54800857054704E-06+0.0000356243265333417i | U23: 1.34554072451026E-06+0.0000224782191933468i | V23: 7.82373025508405E-07+0.0000146798230973281i | W23: 4.88819458661718E-07+9.83797241809092E-06i | X23: 3.22151025703627E-07+0.0000067280776101554i | Y23: 2.20828430779318E-07+4.67732801902731E-06i | Z23: 1.55816656526339E-07+3.29615890307905E-06i | AA23: 1.12317497721809E-07+2.34966119878892E-06i | AB23: 8.22607422194469E-08+1.69152263626602E-06i | AC23: 6.09761912086836E-08+1.22817509099298E-06i | AD23: 4.56184803389579E-08+8.98449865015966E-07i | AE23: 3.43765117026379E-08+6.61606379741186E-07i
A24: Yc | B24: =COMPLEX(0,2*PI()*B18*1000000*$B$9*0.000000000001) -> 0.000182212373908208i | C24: 0.0001931451163427i | D24: 0.000204733823323263i | E24: 0.000217017852722658i | F24: 0.000230038923886018i | G24: 0.000243841259319179i | H24: 0.00025847173487833i | I24: 0.000273980038971029i | J24: 0.000290418841309291i | K24: 0.000307843971787849i | L24: 0.00032631461009512i | M24: 0.000345893486700827i | N24: 0.000366647095902876i | O24: 0.000388645921657049i | P24: 0.000411964676956472i | Q24: 0.00043668255757386i | R24: 0.000462883511028292i | S24: 0.00049065652168999i | T24: 0.000520095912991389i | U24: 0.000551301667770872i | V24: 0.000584379767837125i | W24: 0.000619442553907352i | X24: 0.000656609107141793i | Y24: 0.000696005653570301i | Z24: 0.000737765992784519i | AA24: 0.00078203195235159i | AB24: 0.000828953869492686i | AC24: 0.000878691101662247i | AD24: 0.000931412567761982i | AE24: 0.000987297321827701i
A25: Z | B25: =IMDIV(1,IMSUM(B23,B24)) -> 104.220596834831+1458.78070128228i | C25: 133.320163710727+1612.54557991324i | D25: 171.667627389125+1792.40704793004i | E25: 218.102441560817+2013.74483261095i | F25: 292.395875622391+2280.06900255194i | G25: 410.638481902534+2612.70861700636i | H25: 599.350035553333+3037.37955903977i | I25: 907.601895231634+3571.94013373269i | J25: 1455.63354702516+4256.44205855022i | K25: 2382.65217605176+4919.49147294667i | L25: 3457.47102950561+4969.20498350223i | M25: 3585.18439408934+3850.29540601093i | N25: 2299.90165229905+2006.51674016855i | O25: 973.838434385369+231.530313261048i | P25: 340.188941368042-941.619395032241i | Q25: 118.029638894326-1522.38376453203i | R25: 44.1205500094963-1755.99008296369i | S25: 18.1768013449408-1818.24480343361i | T25: 8.25048209329706-1799.42875313688i | U25: 4.08699227925036-1742.8190208553i | V25: 2.18008324199388-1669.28016760706i | W25: 1.234410590543-1589.11543383581i | X25: 0.732134259114055-1507.52857992748i | Y25: 0.449792080488518-1427.1788054633i | Z25: 0.283729567316038-1349.41442295081i | AA25: 0.182554524277576-1274.88962288342i | AB25: 0.119223344043347-1203.88314877615i | AC25: 0.0787543637198504-1136.46788019885i | AD25: 0.052483063772732-1072.60343243727i | AE25: 0.0352195679596917-1012.18782505835i
A26: R | B26: =IMREAL(B25) -> 104.2205968 | C26: 133.3201637 | D26: 171.6676274 | E26: 218.1024416 | F26: 292.3958756 | G26: 410.6384819 | H26: 599.3500356 | I26: 907.6018952 | J26: 1455.633547 | K26: 2382.652176 | L26: 3457.47103 | M26: 3585.184394 | N26: 2299.901652 | O26: 973.8384344 | P26: 340.1889414 | Q26: 118.0296389 | R26: 44.12055001 | S26: 18.17680134 | T26: 8.250482093 | U26: 4.086992279 | V26: 2.180083242 | W26: 1.234410591 | X26: 0.7321342591 | Y26: 0.4497920805 | Z26: 0.2837295673 | AA26: 0.1825545243 | AB26: 0.119223344 | AC26: 0.07875436372 | AD26: 0.05248306377 | AE26: 0.03521956796
A27: X | B27: =IMAGINARY(B25) -> 1458.780701 | C27: 1612.54558 | D27: 1792.407048 | E27: 2013.744833 | F27: 2280.069003 | G27: 2612.708617 | H27: 3037.379559 | I27: 3571.940134 | J27: 4256.442059 | K27: 4919.491473 | L27: 4969.204984 | M27: 3850.295406 | N27: 2006.51674 | O27: 231.5303133 | P27: -941.619395 | Q27: -1522.383765 | R27: -1755.990083 | S27: -1818.244803 | T27: -1799.428753 | U27: -1742.819021 | V27: -1669.280168 | W27: -1589.115434 | X27: -1507.52858 | Y27: -1427.178805 | Z27: -1349.414423 | AA27: -1274.889623 | AB27: -1203.883149 | AC27: -1136.46788 | AD27: -1072.603432 | AE27: -1012.187825
A28: |Z| | B28: =IMABS(B25) -> 1462.498912 | C28: 1618.047439 | D28: 1800.609008 | E28: 2025.521396 | F28: 2298.740961 | G28: 2644.781707 | H28: 3095.948167 | I28: 3685.444006 | J28: 4498.462851 | K28: 5466.116331 | L28: 6053.685166 | M28: 5261.019089 | N28: 3052.156129 | O28: 1000.983308 | P28: 1001.187096 | Q28: 1526.952299 | R28: 1756.544276 | S28: 1818.335657 | T28: 1799.447667 | U28: 1742.823813 | V28: 1669.281591 | W28: 1589.115913 | X28: 1507.528758 | Y28: 1427.178876 | Z28: 1349.414453 | AA28: 1274.889636 | AB28: 1203.883155 | AC28: 1136.467883 | AD28: 1072.603434 | AE28: 1012.187826
B31: 1.04 | C31: 1.0895 | D31: 1.139 | E31: 1.1885 | F31: 1.238 | G31: 1.2875 | H31: 1.337 | I31: 1.3865 | J31: 1.436 | K31: 1.4855 | L31: 1.535 | M31: 1.5845 | N31: 1.634 | O31: 1.6835 | P31: 1.733 | Q31: 1.7825 | R31: 1.832 | S31: 1.8815 | T31: 1.931 | U31: 1.9805 | V31: 2.03 | W31: 2.0795 | X31: 2.129 | Y31: 2.1785 | Z31: 2.228 | AA31: 2.2775 | AB31: 2.327 | AC31: 2.3765 | AD31: 2.426 | AE31: 2.4755 | AF31: 2.525 | AG31: 2.5745 | AH31: 2.624 | AI31: 2.6735 | AJ31: 2.723 | AK31: 2.7725 | AL31: 2.822 | AM31: 2.8715 | AN31: 2.921 | AO31: 2.9705 | AP31: 3.02 | AQ31: 3.0695 | AR31: 3.119 | AS31: 3.1685 | AT31: 3.218 | AU31: 3.2675 | AV31: 3.317 | AW31: 3.3665 | AX31: 3.416 | AY31: 3.4655 | AZ31: 3.515 | BA31: 3.5645 | BB31: 3.614 | BC31: 3.6635 | BD31: 3.713 | BE31: 3.7625 | BF31: 3.812 | BG31: 3.8615 | BH31: 3.911 | BI31: 3.9605 | BJ31: 4.01 | BK31: 4.0595 | BL31: 4.109 | BM31: 4.1585 | BN31: 4.208 | BO31: 4.2575 | BP31: 4.307 | BQ31: 4.3565 | BR31: 4.406 | BS31: 4.4555 | BT31: 4.505 | BU31: 4.5545 | BV31: 4.604 | BW31: 4.6535 | BX31: 4.703 | BY31: 4.7525 | BZ31: 4.802 | CA31: 4.8515 | CB31: 4.901 | CC31: 4.9505 | CD31: 5
B32: 287.9009362 | C32: 358.0442007 | D32: 441.7751366 | E32: 539.9805648 | F32: 653.5378063 | G32: 781.7952063 | H32: 926.3326999 | I32: 1087.139904 | J32: 1265.531863 | K32: 1461.295533 | L32: 1674.716021 | M32: 1905.17556 | N32: 2154.716794 | O32: 2418.747672 | P32: 2699.185857 | Q32: 2992.462917 | R32: 3296.020648 | S32: 3606.89414 | T32: 3920.767632 | U32: 4233.16246 | V32: 4537.827314 | W32: 4833.336314 | X32: 5108.286333 | Y32: 5361.694676 | Z32: 5584.573579 | AA32: 5775.70854 | AB32: 5934.88008 | AC32: 6053.136332 | AD32: 6132.286525 | AE32: 6174.382545 | AF32: 6181.175916 | AG32: 6153.32823 | AH32: 6096.741061 | AI32: 6012.569453 | AJ32: 5906.823288 | AK32: 5778.99566 | AL32: 5640.146312 | AM32: 5488.65023 | AN32: 5327.880506 | AO32: 5162.520679 | AP32: 4994.495759 | AQ32: 4824.486598 | AR32: 4655.748363 | AS32: 4488.660674 | AT32: 4324.511704 | AU32: 4165.248163 | AV32: 4009.311847 | AW32: 3859.144078 | AX32: 3713.216508 | AY32: 3573.334666 | AZ32: 3438.186947 | BA32: 3309.440143 | BB32: 3185.688774 | BC32: 3067.366163 | BD32: 2954.190884 | BE32: 2846.161736 | BF32: 2743.118087 | BG32: 2644.145199 | BH32: 2551.228186 | BI32: 2462.418041 | BJ32: 2377.327833 | BK32: 2295.27502 | BL32: 2217.947678 | BM32: 2143.128962 | BN32: 2072.110867 | BO32: 2004.911529 | BP32: 1939.701875 | BQ32: 1877.883482 | BR32: 1818.55935 | BS32: 1762.409625 | BT32: 1708.508009 | BU32: 1656.91235 | BV32: 1606.959995 | BW32: 1560.000554 | BX32: 1514.592832 | BY32: 1471.104569 | BZ32: 1428.742972 | CA32: 1389.112351 | CB32: 1350.641093 | CC32: 1313.815051 | CD32: 1278.042779
B33: 1916.708797 | C33: 2055.286984 | D33: 2197.097167 | E33: 2340.123265 | F33: 2483.061215 | G33: 2623.244328 | H33: 2761.322392 | I33: 2893.325487 | J33: 3018.775034 | K33: 3135.022289 | L33: 3241.299249 | M33: 3333.6518 | N33: 3409.736473 | O33: 3467.551277 | P33: 3502.880553 | Q33: 3512.791474 | R33: 3495.080703 | S33: 3447.061838 | T33: 3365.667147 | U33: 3248.762965 | V33: 3096.895162 | W33: 2909.502401 | X33: 2686.618331 | Y33: 2431.943834 | Z33: 2150.13664 | AA33: 1844.610233 | AB33: 1522.913696 | AC33: 1186.304203 | AD33: 844.7714377 | AE33: 503.7517148 | AF33: 168.6643164 | AG33: -158.0136628 | AH33: -469.4588869 | AI33: -760.9726624 | AJ33: -1035.868604 | AK33: -1288.388859 | AL33: -1521.049028 | AM33: -1728.683344 | AN33: -1916.458326 | AO33: -2082.668595 | AP33: -2231.481757 | AQ33: -2360.357466 | AR33: -2472.090116 | AS33: -2569.237953 | AT33: -2650.018268 | AU33: -2719.679425 | AV33: -2777.293277 | AW33: -2825.05778 | AX33: -2863.016538 | AY33: -2892.194467 | AZ33: -2915.022784 | BA33: -2931.223641 | BB33: -2941.012929 | BC33: -2946.346335 | BD33: -2947.144838 | BE33: -2943.949303 | BF33: -2937.136536 | BG33: -2926.357977 | BH33: -2914.644611 | BI33: -2900.858903 | BJ33: -2885.370351 | BK33: -2867.022923 | BL33: -2849.466977 | BM33: -2828.829028 | BN33: -2807.562794 | BO33: -2785.912388 | BP33: -2762.479451 | BQ33: -2739.609501 | BR33: -2715.737308 | BS33: -2692.415358 | BT33: -2667.760994 | BU33: -2643.264484 | BV33: -2618.416814 | BW33: -2593.971241 | BX33: -2569.277171 | BY33: -2544.822866 | BZ33: -2519.645997 | CA33: -2496.120231 | CB33: -2471.727515 | CC33: -2447.905526 | CD33: -2424.030836
B34: =(B33^2+B32^2)^0.5 -> 1938.210402 | C34: =(C33^2+C32^2)^0.5 -> 2086.240695 | D34: 2241.071448 | E34: 2401.615271 | F34: 2567.62627 | G34: 2737.264063 | H34: 2912.557918 | I34: 3090.826029 | J34: 3273.312329 | K34: 3458.865333 | L34: 3648.38246 | M34: 3839.652098 | N34: 4033.498144 | O34: 4227.795189 | P34: 4422.191364 | Q34: 4614.600551 | R34: 4804.096297 | S34: 4989.180359 | T34: 5167.217256 | U34: 5336.11518 | V34: 5493.872621 | W34: 5641.484215 | X34: 5771.698824 | Y34: 5887.454511 | Z34: 5984.191643 | AA34: 6063.117684 | AB34: 6127.158206 | AC34: 6168.288021 | AD34: 6190.200062 | AE34: 6194.898353 | AF34: 6183.47664 | AG34: 6155.356742 | AH34: 6114.788893 | AI34: 6060.533873 | AJ34: 5996.964659 | AK34: 5920.872967 | AL34: 5841.647076 | AM34: 5754.444148 | AN34: 5662.07764 | AO34: 5566.787964 | AP34: 5470.328941 | AQ34: 5370.936445 | AR34: 5271.358683 | AS34: 5171.949179 | AT34: 5071.883112 | AU34: 4974.529971 | AV34: 4877.288122 | AW34: 4782.67127 | AX34: 4688.799477 | AY34: 4597.119692 | AZ34: 4507.603278 | BA34: 4420.912359 | BB34: 4335.685645 | BC34: 4253.197845 | BD34: 4172.877481 | BE34: 4094.810633 | BF34: 4018.888886 | BG34: 3943.992247 | BH34: 3873.489185 | BI34: 3805.060444 | BJ34: 3738.589265 | BK34: 3672.615942 | BL34: 3610.921483 | BM34: 3548.982307 | BN34: 3489.42005 | BO34: =(BO33^2+BO32^2)^0.5 -> 3432.342942 | BP34: 3375.460869 | BQ34: 3321.431407 | BR34: 3268.392149 | BS34: 3217.947816 | BT34: 3167.956493 | BU34: 3119.648325 | BV34: 3072.202311 | BW34: 3026.927242 | BX34: 2982.478269 | BY34: 2939.433971 | BZ34: 2896.536281 | CA34: 2856.615013 | CB34: 2816.676814 | CC34: 2778.19212 | CD34: 2740.313639
A38: Module | B38: Version | C38: Date
A39: CubicSpline | B39: =CubicSpline_version("v") -> 1.04 | C39: =CubicSpline_version("d") -> 2014-03-07
A41: Copyright: Owen Duffy 2010. All rights reserved.

Sheet 2643167851x3 5t
A1: Calculate impedance of ferrite cored inductor
A3: Reference:
A4: A method for estimating the impedance of a ferrite cored toroidal inductor at RF
A6: Inputs:
A7: Al (nH for 1t) | B7: =3*2300 -> 6900
A8: N | B8: 5
A9: Cs (pF) | B9: 29
A11: Constants:
A12: Mix | B12: =Mix!B1 -> #43
A13: µi | B13: =Mix!B2 -> 800
A15: Calculated values:
A16: 2*pi*N^2*Al | B16: =2*PI()*$B$8^2*$B$7*0.000000001 -> 0.001083849465
A18: f (MHz) | B18: 1 | C18: =B18*1.06 -> 1.06 | D18: =C18*1.06 -> 1.1236 | E18: 1.191016 | F18: 1.26247696 | G18: 1.338225578 | H18: 1.418519112 | I18: 1.503630259 | J18: 1.593848075 | K18: 1.689478959 | L18: 1.790847697 | M18: 1.898298558 | N18: 2.012196472 | O18: 2.13292826 | P18: 2.260903956 | Q18: 2.396558193 | R18: 2.540351685 | S18: 2.692772786 | T18: 2.854339153 | U18: 3.025599502 | V18: 3.207135472 | W18: 3.399563601 | X18: 3.603537417 | Y18: 3.819749662 | Z18: 4.048934641 | AA18: 4.29187072 | AB18: 4.549382963 | AC18: 4.822345941 | AD18: 5.111686697 | AE18: 5.418387899
A19: µ'' | B19: =csinterpolate(CSTableU2,'2643167851x3 5t'!B18*1000000) -> 48 | C19: =csinterpolate(CSTableU2,'2643167851x3 5t'!C18*1000000) -> 53.95560986 | D19: =csinterpolate(CSTableU2,'2643167851x3 5t'!D18*1000000) -> 60.31079422 | E19: =csinterpolate(CSTableU2,'2643167851x3 5t'!E18*1000000) -> 65.38351679 | F19: =csinterpolate(CSTableU2,'2643167851x3 5t'!F18*1000000) -> 73.41194219 | G19: =csinterpolate(CSTableU2,'2643167851x3 5t'!G18*1000000) -> 84.19505597 | H19: =csinterpolate(CSTableU2,'2643167851x3 5t'!H18*1000000) -> 97.13908238 | I19: =csinterpolate(CSTableU2,'2643167851x3 5t'!I18*1000000) -> 112.0304216 | J19: =csinterpolate(CSTableU2,'2643167851x3 5t'!J18*1000000) -> 130.15872 | K19: =csinterpolate(CSTableU2,'2643167851x3 5t'!K18*1000000) -> 151.7330598 | L19: =csinterpolate(CSTableU2,'2643167851x3 5t'!L18*1000000) -> 174.9504499 | M19: =csinterpolate(CSTableU2,'2643167851x3 5t'!M18*1000000) -> 199.856674 | N19: =csinterpolate(CSTableU2,'2643167851x3 5t'!N18*1000000) -> 226.5627543 | O19: =csinterpolate(CSTableU2,'2643167851x3 5t'!O18*1000000) -> 253.1352695 | P19: =csinterpolate(CSTableU2,'2643167851x3 5t'!P18*1000000) -> 281.6716275 | Q19: =csinterpolate(CSTableU2,'2643167851x3 5t'!Q18*1000000) -> 316.0556391 | R19: =csinterpolate(CSTableU2,'2643167851x3 5t'!R18*1000000) -> 361.5800703 | S19: =csinterpolate(CSTableU2,'2643167851x3 5t'!S18*1000000) -> 425.3124796 | T19: =csinterpolate(CSTableU2,'2643167851x3 5t'!T18*1000000) -> 516.5435337 | U19: =csinterpolate(CSTableU2,'2643167851x3 5t'!U18*1000000) -> 647.3352307 | V19: =csinterpolate(CSTableU2,'2643167851x3 5t'!V18*1000000) -> 833.1900947 | W19: =csinterpolate(CSTableU2,'2643167851x3 5t'!W18*1000000) -> 1093.866365 | X19: =csinterpolate(CSTableU2,'2643167851x3 5t'!X18*1000000) -> 1454.370219 | Y19: =csinterpolate(CSTableU2,'2643167851x3 5t'!Y18*1000000) -> 1946.159695 | Z19: =csinterpolate(CSTableU2,'2643167851x3 5t'!Z18*1000000) -> 2608.605681 | AA19: =csinterpolate(CSTableU2,'2643167851x3 5t'!AA18*1000000) -> 3490.760797 | AB19: =csinterpolate(CSTableU2,'2643167851x3 5t'!AB18*1000000) -> 4653.499032 | AC19: =csinterpolate(CSTableU2,'2643167851x3 5t'!AC18*1000000) -> 6172.103543 | AD19: =csinterpolate(CSTableU2,'2643167851x3 5t'!AD18*1000000) -> 8139.387245 | AE19: =csinterpolate(CSTableU2,'2643167851x3 5t'!AE18*1000000) -> 10669.46037
A20: µ' | B20: =csinterpolate(CSTableU1,'2643167851x3 5t'!B18*1000000) -> 851.3550816 | C20: =csinterpolate(CSTableU1,'2643167851x3 5t'!C18*1000000) -> 857.256323 | D20: =csinterpolate(CSTableU1,'2643167851x3 5t'!D18*1000000) -> 862.9174152 | E20: =csinterpolate(CSTableU1,'2643167851x3 5t'!E18*1000000) -> 870.6049035 | F20: =csinterpolate(CSTableU1,'2643167851x3 5t'!F18*1000000) -> 877.6523959 | G20: =csinterpolate(CSTableU1,'2643167851x3 5t'!G18*1000000) -> 885.4100365 | H20: =csinterpolate(CSTableU1,'2643167851x3 5t'!H18*1000000) -> 893.8065728 | I20: =csinterpolate(CSTableU1,'2643167851x3 5t'!I18*1000000) -> 900.2498679 | J20: =csinterpolate(CSTableU1,'2643167851x3 5t'!J18*1000000) -> 906.1011447 | K20: =csinterpolate(CSTableU1,'2643167851x3 5t'!K18*1000000) -> 899.0292816 | L20: =csinterpolate(CSTableU1,'2643167851x3 5t'!L18*1000000) -> 856.5529651 | M20: =csinterpolate(CSTableU1,'2643167851x3 5t'!M18*1000000) -> 748.3256151 | N20: =csinterpolate(CSTableU1,'2643167851x3 5t'!N18*1000000) -> 534.1273274 | O20: =csinterpolate(CSTableU1,'2643167851x3 5t'!O18*1000000) -> 161.4046474 | P20: =csinterpolate(CSTableU1,'2643167851x3 5t'!P18*1000000) -> -437.7362888 | Q20: =csinterpolate(CSTableU1,'2643167851x3 5t'!Q18*1000000) -> -1350.188027 | R20: =csinterpolate(CSTableU1,'2643167851x3 5t'!R18*1000000) -> -2686.306261 | S20: =csinterpolate(CSTableU1,'2643167851x3 5t'!S18*1000000) -> -4585.321597 | T20: =csinterpolate(CSTableU1,'2643167851x3 5t'!T18*1000000) -> -7221.920571 | U20: =csinterpolate(CSTableU1,'2643167851x3 5t'!U18*1000000) -> -10814.19755 | V20: =csinterpolate(CSTableU1,'2643167851x3 5t'!V18*1000000) -> -15633.31403 | W20: =csinterpolate(CSTableU1,'2643167851x3 5t'!W18*1000000) -> -22015.13655 | X20: =csinterpolate(CSTableU1,'2643167851x3 5t'!X18*1000000) -> -30374.31181 | Y20: =csinterpolate(CSTableU1,'2643167851x3 5t'!Y18*1000000) -> -41221.26504 | Z20: =csinterpolate(CSTableU1,'2643167851x3 5t'!Z18*1000000) -> -55182.66809 | AA20: =csinterpolate(CSTableU1,'2643167851x3 5t'!AA18*1000000) -> -73026.06776 | AB20: =csinterpolate(CSTableU1,'2643167851x3 5t'!AB18*1000000) -> -95689.61741 | AC20: =csinterpolate(CSTableU1,'2643167851x3 5t'!AC18*1000000) -> -124317.7653 | AD20: =csinterpolate(CSTableU1,'2643167851x3 5t'!AD18*1000000) -> -160304.1425 | AE20: =csinterpolate(CSTableU1,'2643167851x3 5t'!AE18*1000000) -> -205343.2038
A21: Rl | B21: =B19/$B$13*$B$16*B18*1000000 -> 65.03096793 | C21: 77.48568055 | D21: 91.8091061 | E21: 105.5030106 | F21: 125.5651604 | G21: 152.6493281 | H21: 186.6844605 | I21: 228.2212123 | J21: 281.0600842 | K21: 347.3057583 | L21: 424.4755668 | M21: 513.9988584 | N21: 617.6435061 | O21: 731.4891507 | P21: 862.7882017 | Q21: 1026.196439 | R21: 1244.449593 | S21: 1551.625171 | T21: 1997.521602 | U21: 2653.503499 | V21: 3620.265189 | W21: 5038.095783 | X21: 7100.402846 | Y21: 10071.45823 | Z21: 14309.6227 | AA21: 20297.64733 | AB21: 28682.11056 | AC21: 40324.64438 | AD21: 56368.29769 | AE21: 78323.39931
A22: Xl | B22: =B20/$B$13*$B$16*B18*1000000 -> 1153.425938 | C22: 1231.10627 | D22: 1313.590338 | E22: 1404.810309 | F22: 1501.15309 | G22: 1605.287218 | H22: 1717.741137 | I22: 1833.931474 | J22: 1956.6024 | K22: 2057.811572 | L22: 2078.221609 | M22: 1924.571765 | N22: 1456.109925 | O22: 466.4136635 | P22: -1340.829777 | Q22: -4383.905787 | R22: -9245.456281 | S22: -16728.17223 | T22: -27927.83456 | U22: -44328.67188 | V22: -67927.76695 | W22: -101396.6332 | X22: -148290.8872 | Y22: -213321.7794 | Z22: -302706.9846 | AA22: -424623.0135 | AB22: -589788.4941 | AC22: -812214.1249 | AD22: -1110166.079 | AE22: -1507403.11
A23: Yl | B23: =IMDIV(1,COMPLEX(B21,B22)) -> 0.0000487261898078446-0.000864235193748225i | C23: 0.000050922924562366-0.000809072479719403i | D23: 0.0000529480009337168-0.000757571719965694i | E23: 0.0000531602307193812-0.000707847479137954i | F23: 0.0000553338863093139-0.000661526128334597i | G23: 0.0000587056607847318-0.000617359067705501i | H23: 0.0000625306831610959-0.000575364047516567i | I23: 0.0000668214291185236-0.000536961138631374i | J23: 0.0000719322722322292-0.000500757184721386i | K23: 0.0000797448981061331-0.000472494251080482i | L23: 0.000094344999845267-0.000461910726273324i | M23: 0.000129530410590216-0.000485002187959385i | N23: 0.000246885608037504-0.000582038960567501i | O23: 0.000971926089867585-0.000619721574566203i | P23: 0.000339382703501979+0.000527423107581198i | Q23: 0.000050622097770268+0.000216257335269559i | R23: 0.0000142995613439236+0.000106236500060788i | S23: 5.49755205721258E-06+0.0000592694674838236i | T23: 2.54800857054704E-06+0.0000356243265333417i | U23: 1.34554072451026E-06+0.0000224782191933468i | V23: 7.82373025508405E-07+0.0000146798230973281i | W23: 4.88819458661718E-07+9.83797241809092E-06i | X23: 3.22151025703627E-07+0.0000067280776101554i | Y23: 2.20828430779318E-07+4.67732801902731E-06i | Z23: 1.55816656526339E-07+3.29615890307905E-06i | AA23: 1.12317497721809E-07+2.34966119878892E-06i | AB23: 8.22607422194469E-08+1.69152263626602E-06i | AC23: 6.09761912086836E-08+1.22817509099298E-06i | AD23: 4.56184803389579E-08+8.98449865015966E-07i | AE23: 3.43765117026379E-08+6.61606379741186E-07i
A24: Yc | B24: =COMPLEX(0,2*PI()*B18*1000000*$B$9*0.000000000001) -> 0.000182212373908208i | C24: 0.0001931451163427i | D24: 0.000204733823323263i | E24: 0.000217017852722658i | F24: 0.000230038923886018i | G24: 0.000243841259319179i | H24: 0.00025847173487833i | I24: 0.000273980038971029i | J24: 0.000290418841309291i | K24: 0.000307843971787849i | L24: 0.00032631461009512i | M24: 0.000345893486700827i | N24: 0.000366647095902876i | O24: 0.000388645921657049i | P24: 0.000411964676956472i | Q24: 0.00043668255757386i | R24: 0.000462883511028292i | S24: 0.00049065652168999i | T24: 0.000520095912991389i | U24: 0.000551301667770872i | V24: 0.000584379767837125i | W24: 0.000619442553907352i | X24: 0.000656609107141793i | Y24: 0.000696005653570301i | Z24: 0.000737765992784519i | AA24: 0.00078203195235159i | AB24: 0.000828953869492686i | AC24: 0.000878691101662247i | AD24: 0.000931412567761982i | AE24: 0.000987297321827701i
A25: Z | B25: =IMDIV(1,IMSUM(B23,B24)) -> 104.220596834831+1458.78070128228i | C25: 133.320163710727+1612.54557991324i | D25: 171.667627389125+1792.40704793004i | E25: 218.102441560817+2013.74483261095i | F25: 292.395875622391+2280.06900255194i | G25: 410.638481902534+2612.70861700636i | H25: 599.350035553333+3037.37955903977i | I25: 907.601895231634+3571.94013373269i | J25: 1455.63354702516+4256.44205855022i | K25: 2382.65217605176+4919.49147294667i | L25: 3457.47102950561+4969.20498350223i | M25: 3585.18439408934+3850.29540601093i | N25: 2299.90165229905+2006.51674016855i | O25: 973.838434385369+231.530313261048i | P25: 340.188941368042-941.619395032241i | Q25: 118.029638894326-1522.38376453203i | R25: 44.1205500094963-1755.99008296369i | S25: 18.1768013449408-1818.24480343361i | T25: 8.25048209329706-1799.42875313688i | U25: 4.08699227925036-1742.8190208553i | V25: 2.18008324199388-1669.28016760706i | W25: 1.234410590543-1589.11543383581i | X25: 0.732134259114055-1507.52857992748i | Y25: 0.449792080488518-1427.1788054633i | Z25: 0.283729567316038-1349.41442295081i | AA25: 0.182554524277576-1274.88962288342i | AB25: 0.119223344043347-1203.88314877615i | AC25: 0.0787543637198504-1136.46788019885i | AD25: 0.052483063772732-1072.60343243727i | AE25: 0.0352195679596917-1012.18782505835i
A26: R | B26: =IMREAL(B25) -> 104.2205968 | C26: 133.3201637 | D26: 171.6676274 | E26: 218.1024416 | F26: 292.3958756 | G26: 410.6384819 | H26: 599.3500356 | I26: 907.6018952 | J26: 1455.633547 | K26: 2382.652176 | L26: 3457.47103 | M26: 3585.184394 | N26: 2299.901652 | O26: 973.8384344 | P26: 340.1889414 | Q26: 118.0296389 | R26: 44.12055001 | S26: 18.17680134 | T26: 8.250482093 | U26: 4.086992279 | V26: 2.180083242 | W26: 1.234410591 | X26: 0.7321342591 | Y26: 0.4497920805 | Z26: 0.2837295673 | AA26: 0.1825545243 | AB26: 0.119223344 | AC26: 0.07875436372 | AD26: 0.05248306377 | AE26: 0.03521956796
A27: X | B27: =IMAGINARY(B25) -> 1458.780701 | C27: 1612.54558 | D27: 1792.407048 | E27: 2013.744833 | F27: 2280.069003 | G27: 2612.708617 | H27: 3037.379559 | I27: 3571.940134 | J27: 4256.442059 | K27: 4919.491473 | L27: 4969.204984 | M27: 3850.295406 | N27: 2006.51674 | O27: 231.5303133 | P27: -941.619395 | Q27: -1522.383765 | R27: -1755.990083 | S27: -1818.244803 | T27: -1799.428753 | U27: -1742.819021 | V27: -1669.280168 | W27: -1589.115434 | X27: -1507.52858 | Y27: -1427.178805 | Z27: -1349.414423 | AA27: -1274.889623 | AB27: -1203.883149 | AC27: -1136.46788 | AD27: -1072.603432 | AE27: -1012.187825
A28: |Z| | B28: =IMABS(B25) -> 1462.498912 | C28: 1618.047439 | D28: 1800.609008 | E28: 2025.521396 | F28: 2298.740961 | G28: 2644.781707 | H28: 3095.948167 | I28: 3685.444006 | J28: 4498.462851 | K28: 5466.116331 | L28: 6053.685166 | M28: 5261.019089 | N28: 3052.156129 | O28: 1000.983308 | P28: 1001.187096 | Q28: 1526.952299 | R28: 1756.544276 | S28: 1818.335657 | T28: 1799.447667 | U28: 1742.823813 | V28: 1669.281591 | W28: 1589.115913 | X28: 1507.528758 | Y28: 1427.178876 | Z28: 1349.414453 | AA28: 1274.889636 | AB28: 1203.883155 | AC28: 1136.467883 | AD28: 1072.603434 | AE28: 1012.187826
A32: Module | B32: Version | C32: Date
A33: CubicSpline | B33: =CubicSpline_version("v") -> 1.04 | C33: =CubicSpline_version("d") -> 2014-03-07
A35: Copyright: Owen Duffy 2010. All rights reserved.
